Workbook

Sheet Readme
A1: Teamer VT Project Plots
A3: Created by | C3: Mirko Previsic
A4: Company | C4: RE Vision Consulting, LLC
A5: Contact | C5: mirko@re-vision.net
A6: Date | C6: 2023-05-20
A8: Disclaimer

Sheet Case 1
A2: CAPEX
E3: Cost | H3: Economics | K3: Uncertainty | M3: Multiplier
E4: $/Farm | F4: $/WEC | G4: $/kW | H4: $/MWh | I4: in % | J4: in % Total | K4: +% | L4: -% | M4: MC
C5: 1.1 | D5: Marine Energy Converter (MEC) | E5: 334334077.4 | F5: 1255187.049 | G5: 3343.340774 | H5: 95.43813594 | I5: 0.6390018361 | J5: 0.442845533
C6: 1.1.1 | D6: Structural Assembly | E6: 111700291.7 | F6: 419355.2766 | G6: 1117.002917 | H6: 31.88567468 | I6: 0.2134891305 | J6: 0.1479537342 | K6: 0.5 | L6: -0.5 | M6: 1
C7: 1.1.2 | D7: Power Take-Off System (PTO) | E7: 141191435.6 | F7: 530073.5801 | G7: 1411.914356 | H7: 40.30413989 | I7: 0.2698545936 | J7: 0.1870165227 | K7: 0.5 | L7: -0.5 | M7: 1
C8: 1.1.3 | D8: Mooring, Foundation, and Sub-Structure | E8: 81442350.08 | F8: 305758.192 | G8: 814.4235008 | H8: 23.24832137 | I8: 0.1556581119 | J8: 0.1078752762 | K8: 0.5 | L8: -0.5 | M8: 1
C9: 1.2 | D9: Balance of System (BOS) | E9: 141314118.3 | F9: 530534.1665 | G9: 1413.141183 | H9: 40.33916057 | I9: 0.270089073 | J9: 0.3003688967
C10: 1.2.1 | D10: Project Development | E10: 14857203.86 | F10: 55778.25033 | G10: 148.5720386 | H10: 4.241098761 | I10: 0.02839608998 | J10: 0.01967925738 | K10: 1 | L10: -0.5 | M10: 1
C11: 1.2.2 | D11: Engineering and Management | E11: 9326435.21 | F11: 35014.14147 | G11: 93.2643521 | H11: 2.662299932 | I11: 0.01782531194 | J11: 0.01235342267 | K11: 1 | L11: -0.5 | M11: 1
C12: 1.2.3 | D12: Electrical Infrastructure | E12: 31675779.83 | F12: 118920.0602 | G12: 316.7577983 | H12: 9.042085704 | I12: 0.06054088661 | J12: 0.04195646974 | K12: 1 | L12: -0.5 | M12: 1
C13: 1.2.6 | D13: Assembly & Installation | E13: 85454699.4 | F13: 320821.7145 | G13: 854.546994 | H13: 24.39367617 | I13: 0.1633267845 | J13: 0.1131898734 | K13: 1 | L13: -0.5 | M13: 1
C14: 1.2.6.1 | D14: Device | E14: 66835431.56 | F14: 250919.5854 | G14: 668.3543156 | H14: 19.07866841 | I14: 0.1277403841 | J14: 0.08852753671 | K14: 1 | L14: -0.5 | M14: 1
C15: 1.2.6.2 | D15: Subsea Cables | E15: 18619267.84 | F15: 69902.12914 | G15: 186.1926784 | H15: 5.315007759 | I15: 0.03558640038 | J15: 0.02466233672 | K15: 1 | L15: -0.5 | M15: 1
C16: 1.3 | D16: Financial Costs | E16: 47564819.57 | F16: 178572.1215 | G16: 475.6481957 | H16: 13.57772965 | I16: 0.09090909091 | J16: 0.06300245563
C17: 1.3.2 | D17: Insurance During Construction | E17: 9512963.914 | F17: 35714.4243 | G17: 95.12963914 | H17: 2.71554593 | I17: 0.01818181818 | J17: 0.01260049113 | K17: 0.5 | L17: -0.3 | M17: 1
C18: 1.3.3 | D18: Construction Financing Costs | E18: 38051855.66 | F18: 142857.6972 | G18: 380.5185566 | H18: 10.86218372 | I18: 0.07272727273 | J18: 0.0504019645 | K18: 0.5 | L18: -0.3 | M18: 1
C20: Total CAPEX | E20: 797546652.6 | F20: 2994221.339 | G20: 5232.130153 | H20: 149.3550262 | I20: 1 | J20: 0.8062168853
A22: OPEX
E23: Cost | H23: Economics | K23: Uncertainty | M23: Multiplier
E24: $/Farm | F24: $/WEC | G24: $/kW | H24: $/MWh | I24: in % | K24: +% | L24: -% | M24: MC
C25: 2.1 | D25: Operations | E25: 8096466.526 | F25: 30396.48247 | G25: 53.53130153 | H25: 33.01708958 | I25: 0.499078598 | J25: 0.1532036485
C26: 2.1.1 | D26: Environmental Monitoring | E26: 121000 | F26: 454.2690774 | G26: 1.21 | H26: 0.493433503 | I26: 0.007458625335 | J26: 0.002289596506 | K26: 1 | L26: -0.5 | M26: 1
C27: 2.1.3 | D27: Insurance | E27: 7975466.526 | F27: 29942.21339 | G27: 52.32130153 | H27: 32.52365608 | I27: 0.4916199726 | J27: 0.150914052 | K27: 1 | L27: -0.5 | M27: 1
C28: 2.2 | D28: Maintenance | E28: 8126362.02 | F28: 30508.71882 | G28: 81.2636202 | H28: 33.1390023 | I28: 0.500921402 | J28: 0.1537693396 | K28: 1 | L28: -0.5 | M28: 1
C30: Total OPEX | E30: 16222828.55 | F30: 60905.20129 | G30: 134.7949217 | H30: 66.15609188 | I30: 1 | J30: 0.3069729881
C32: $/MWh | H32: 215.511118
C34: Technology LCoE | E34: 464836157.1 | F34: 1745129.688 | G34: 4620.928207 | H34: 193.7571924 | I34: 1.850192686 | J34: 0.899058917
A36: Tables for Plots
D37: LCOE Table | E37: % | F37: LCoE | I37: CAPEX | J37: %
D38: Structural Assembly | E38: 0.1479537342 | F38: 31.88567468 | I38: Structural Assembly | J38: 0.2134891305
D39: Power Take-Off System (PTO) | E39: 0.1870165227 | F39: 40.30413989 | I39: Power Take-Off System (PTO) | J39: 0.2698545936
D40: Mooring, Foundation, and Sub-Structure | E40: 0.1078752762 | F40: 23.24832137 | I40: Mooring, Foundation, and Sub-Structure | J40: 0.1556581119
D41: Device Installation | E41: 0.08852753671 | F41: 19.07866841 | I41: Device Installation | J41: 0.1277403841
D42: Project Development | E42: 0.01967925738 | F42: 4.241098761 | I42: Project Development | J42: 0.02839608998
D43: Engineering and Management | E43: 0.01235342267 | F43: 2.662299932 | I43: Engineering and Management | J43: 0.01782531194
D44: Subsea Cables | E44: 0.06661880646 | F44: 14.35709346 | I44: Subsea Cables | J44: 0.09612728699
D45: Construction Financing and Insurance | E45: 0.06300245563 | F45: 13.57772965 | I45: Construction Financing and Insurance | J45: 0.09090909091
D46: Operations | E46: 0.1532036485 | F46: 33.01708958
D47: Annual Maintennce & Repair | E47: 0.1537693396 | F47: 33.1390023
E49: 1 | F49: 215.511118 | G49: /MWh | J49: 1
A51: Study 1 - Device Trade-Offs - 1-Body WEC | M51: Grid Connected | O51: Blue Economy | Q51: Steel Mass | R51: M/P
E52: Device Index | F52: Diameter | G52: Height | H52: Volume | I52: Pavg-Mech | J52: Pavg-Upper | K52: P/V | L52: P/V - Theory | M52: LCoE | N52: LCoE - Upper Limit | O52: LCoE | P52: LCoE - Upper Limit | Q52: mT | R52: mT/kW
E53: 6 | F53: 2 | G53: 1 | H53: 3.141592654 | I53: 2.838470149 | J53: 2.817213858 | K53: 1.133039378 | L53: 1.120933778 | M53: 573.1897 | N53: 576.9286 | O53: 223.6543 | P53: 224.9513 | Q53: 0.7238229474 | R53: 0.2550046009
E54: 7 | F54: 3 | G54: 1.5 | H54: 10.60287521 | I54: 5.716279495 | J54: 9.50809677 | K54: 0.6863164813 | L54: 1.120933778 | M54: 349.9866 | N54: 244.5993 | O54: 162.9375 | P54: 121.8078 | Q54: 2.080990974 | R54: 0.3640464004
E55: 8 | F55: 4 | G55: 2 | H55: 25.13274123 | I55: 9.641581641 | J55: 22.53664027 | K55: 0.4891295372 | L55: 1.120880531 | M55: 268.1017 | N55: 165.0923 | O55: 146.6543 | P55: 98.9546 | Q55: 5.096919921 | R55: 0.5286393987
E56: 9 | F56: 5 | G56: 2.5 | H56: 49.08738521 | I56: 13.77389625 | J56: 43.94925187 | K56: 0.3607776655 | L56: 1.119158509 | M56: 240.9157 | N56: 137.3378 | O56: 148.364 | P56: 91.8499 | Q56: 10.0059726 | R56: 0.7264446036
E57: 10 | F57: 8 | G57: 2.9 | H57: 145.7698991 | I57: 30.7812056 | J57: 125.6514792 | K57: 0.2707020859 | L57: 1.077481359 | M57: 197.082 | N57: 119.9027 | O57: 142.2293 | P57: 89.0209 | Q57: 27.21815556 | R57: 0.8842459233
E58: 11 | F58: 11 | G58: 3.3 | H58: 313.6094866 | I58: 51.09252412 | J58: 239.2225178 | K58: 0.2103171272 | L58: 0.9535047887 | M58: 200.5792 | N58: 120.1346 | O58: 158.149 | P58: 93.206 | Q58: 61.5733897 | R58: 1.205135012
E59: 12 | F59: 14 | G59: 3.7 | H59: 569.5707481 | I59: 73.26602398 | J59: 369.4861174 | K59: 0.1669797956 | L59: 0.8108905566 | M59: 217.9335 | N59: 123.4561 | O59: 181.2956 | P59: 98.1167 | Q59: 118.3144905 | R59: 1.614861624
E60: 13 | F60: 17 | G60: 4.1 | H60: 930.6182838 | I60: 67.00935487 | J60: 510.1695506 | K60: 0.09403850798 | L60: 0.6856597017 | M60: 307.9562 | N60: 130.0122 | O60: 270.05 | P60: 105.3974 | Q60: 203.8922619 | R60: 3.042743245
E61: 14 | F61: 24 | G61: 5.3 | H61: 2397.663513 | I61: 171.8776202 | J61: 760.788574 | K61: 0.09328007012 | L61: 0.4207826994 | M61: 310.3128 | N61: 155.8005 | O61: 281.6715 | P61: 131.7628 | Q61: 581.5772618 | R61: 3.383670666
E62: 15 | F62: 30 | G62: 6 | H62: 4241.150082 | I62: 203.8830679 | J62: 781.9093897 | K62: 0.06380507829 | L62: 0.2739348965 | M62: 417.275 | N62: 194.1944 | O62: 389.6199 | P62: 170.2134 | Q62: 1073.506157 | R62: 5.265303136
I68: Steel Mass | N68: Grid Connected | P68: Blue Economy | R68: AM | S68: Omega | T68: T | U68: M/P
A69: Study 2 - Device Trade-Offs - 2-Body WEC | E69: Device Index | F69: Diameter | G69: Height | H69: React Mass | I69: mT | J69: Pavg-Mech | K69: Pavg-Upper | L69: P/V | M69: P/V - Theory | N69: LCoE | P69: LCoE | R69: (kg) | S69: (rad/s) | T69: s | U69: mT/kW
E70: 36 | F70: 2 | G70: 1 | H70: 128 | I70: 14.59270141 | J70: 5.040006117 | K70: 2.817213858 | L70: 2.005354717 | M70: 1.120933778 | N70: 708.9491 | P70: 500.2798 | R70: 3220.13247 | S70: 0.4906492472 | T70: 12.80585947 | U70: 2.89537375
E71: 37 | F71: 2 | G71: 1 | H71: 160 | I71: 16.31184743 | J71: 4.6977289 | K71: 2.817213858 | L71: 1.869166939 | M71: 1.120933778 | N71: 801.7131 | P71: 579.7925 | R71: 3220.13247 | S71: 0.4399309431 | T71: 14.28220816 | U71: 3.472283689
E72: 38 | F72: 2 | G72: 1 | H72: 192 | I72: 17.88100315 | J72: 4.506856548 | K72: 2.817213858 | L72: 1.793287538 | M72: 1.120933778 | N72: 876.9822 | P72: 646.7825 | R72: 3220.13247 | S72: 0.402262058 | T72: 15.61963198 | U72: 3.967511048
E73: 39 | F73: 2 | G73: 1 | H73: 224 | I73: 19.3365035 | J73: 4.243243192 | K73: 2.817213858 | L73: 1.688522516 | M73: 1.120933778 | N73: 969.8586 | P73: 727.0366 | R73: 3220.13247 | S73: 0.3728618657 | T73: 16.8512414 | U73: 4.557010435
E74: 40 | F74: 2 | G74: 1 | H74: 256 | I74: 20.70202274 | J74: 4.239930327 | K74: 2.817213858 | L74: 1.687561084 | M74: 1.120933778 | N74: 1011.882 | P74: 768.8914 | R74: 3220.13247 | S74: 0.3490896788 | T74: 17.99877134 | U74: 4.882632766
E75: 41 | F75: 2 | G75: 1 | H75: 288 | I75: 21.99400504 | J75: 4.194225731 | K75: 2.817213858 | L75: 1.66889171 | M75: 1.120933778 | N75: 1061.2269 | P75: 815.8838 | R75: 3220.13247 | S75: 0.3293522807 | T75: 19.07740033 | U75: 5.243877285
E76: 42 | F76: 2 | G76: 1 | H76: 320 | I76: 23.2244233 | J76: 4.067772837 | K76: 2.817213858 | L76: 1.61875697 | M76: 1.120933778 | N76: 1129.7169 | P76: 877.5822 | R76: 3220.13247 | S76: 0.3126238958 | T76: 20.09822471 | U76: 5.709370761
E77: 43 | F77: 2 | G77: 1 | H77: 32 | I77: 7.502640717 | J77: 4.771847961 | K77: 2.817213858 | L77: 1.898657977 | M77: 1.120933778 | N77: 545.9384 | P77: 327.0527 | R77: 3220.13247 | S77: 0.9470564804 | T77: 6.634435682 | U77: 1.572271535
E78: 44 | F78: 2 | G78: 1 | H78: 64 | I78: 10.40167992 | J78: 5.439684017 | K78: 2.817213858 | L78: 2.164381501 | M78: 1.120933778 | N78: 561.6027 | P78: 366.3119 | R78: 3220.13247 | S78: 0.6855224639 | T78: 9.165542544 | U78: 1.912184584
E79: 45 | F79: 2 | G79: 1 | H79: 96 | I79: 12.66239985 | J79: 5.367540416 | K79: 2.817213858 | L79: 2.135676474 | M79: 1.120933778 | N79: 623.8436 | P79: 426.2921 | R79: 3220.13247 | S79: 0.5642498749 | T79: 11.13546602 | U79: 2.359069307
E80: 46 | F80: 3 | G80: 1.5 | H80: 144 | I80: 16.83120862 | J80: 14.38258006 | K80: 9.50809677 | L80: 1.695599046 | M80: 1.120933778 | N80: 325.2703 | P80: 235.5542 | R80: 7245.298057 | S80: 0.6855224639 | T80: 9.165542544 | U80: 1.170249604
E81: 47 | F81: 3 | G81: 1.5 | H81: 216 | I81: 20.33900462 | J81: 13.17549628 | K81: 9.50809677 | L81: 1.554018627 | M81: 1.120933778 | N81: 381.9312 | P81: 286.3086 | R81: 7245.298057 | S81: 0.5642498749 | T81: 11.13546602 | U81: 1.543699318
E82: 48 | F82: 3 | G82: 1.5 | H82: 288 | I82: 23.35117306 | J82: 11.79391006 | K82: 9.50809677 | L82: 1.392504956 | M82: 1.120933778 | N82: 449.4738 | P82: 345.5618 | R82: 7245.298057 | S82: 0.4906492472 | T82: 12.80585947 | U82: 1.979934808
E83: 49 | F83: 3 | G83: 1.5 | H83: 360 | I83: 26.04660819 | J83: 10.48554837 | K83: 9.50809677 | L83: 1.241189544 | M83: 1.120933778 | N83: 527.2569 | P83: 413.5461 | R83: 7245.298057 | S83: 0.4399309431 | T83: 14.28220816 | U83: 2.484048261
E84: 50 | F84: 3 | G84: 1.5 | H84: 432 | I84: 28.51705786 | J84: 9.824047094 | K84: 9.50809677 | L84: 1.167132661 | M84: 1.120933778 | N84: 588.7349 | P84: 469.0695 | R84: 7245.298057 | S84: 0.402262058 | T84: 15.61963198 | U84: 2.902781062
E85: 51 | F85: 3 | G85: 1.5 | H85: 576 | I85: 32.98201944 | J85: 9.828426403 | K85: 9.50809677 | L85: 1.166681948 | M85: 1.120933778 | N85: 646.0465 | P85: 526.4197 | R85: 7245.298057 | S85: 0.3490896788 | T85: 17.99877134 | U85: 3.355778239
E86: 52 | F86: 3 | G86: 1.5 | H86: 648 | I86: 35.03670899 | J86: 8.932230813 | K86: 9.50809677 | L86: 1.060855618 | M86: 1.120933778 | N86: 730.0399 | P86: 601.014 | R86: 7245.298057 | S86: 0.3293522807 | T86: 19.07740033 | U86: 3.922503764
E87: 53 | F87: 3 | G87: 1.5 | H87: 720 | I87: 36.99905248 | J87: 8.173177168 | K87: 9.50809677 | L87: 0.9808987299 | M87: 1.120933778 | N87: 819.0023 | P87: 680.331 | R87: 7245.298057 | S87: 0.3126238958 | T87: 20.09822471 | U87: 4.526887368
E88: 54 | F88: 3 | G88: 1.5 | H88: 72 | I88: 12.36593373 | J88: 11.44865347 | K88: 9.50809677 | L88: 1.350385236 | M88: 1.120933778 | N88: 333.2861 | P88: 227.0008 | R88: 7245.298057 | S88: 0.9470564804 | T88: 6.634435682 | U88: 1.080121235
E89: 65 | F89: 4 | G89: 2 | H89: 1024 | I89: 47.54326292 | J89: 13.69668063 | K89: 22.53664027 | L89: 0.7144768798 | M89: 1.120880531 | N89: 614.3522 | P89: 521.4099 | R89: 12880.52988 | S89: 0.3490896788 | T89: 17.99877134 | U89: 3.471152186
E90: 66 | F90: 4 | G90: 2 | H90: 1152 | I90: 50.43847044 | J90: 13.38854607 | K90: 22.53664027 | L90: 0.6913240379 | M90: 1.120880531 | N90: 652.7559 | P90: 558.2418 | R90: 12880.52988 | S90: 0.3293522807 | T90: 19.07740033 | U90: 3.767285125
E91: 67 | F91: 4 | G91: 2 | H91: 1280 | I91: 53.2105499 | J91: 13.22194603 | K91: 22.53664027 | L91: 0.6791627524 | M91: 1.120880531 | N91: 685.2173 | P91: 589.8271 | R91: 12880.52988 | S91: 0.3126238958 | T91: 20.09822471 | U91: 4.024411366
E92: 68 | F92: 4 | G92: 2 | H92: 128 | I92: 18.96579839 | J92: 18.79026679 | K92: 22.53664027 | L92: 0.9363566188 | M92: 1.120880531 | N92: 277.9808 | P92: 203.5331 | R92: 12880.52988 | S92: 0.9470564804 | T92: 6.634435682 | U92: 1.009341623
E93: 69 | F93: 4 | G93: 2 | H93: 256 | I93: 25.07511971 | J93: 24.80090173 | K93: 22.53664027 | L93: 1.235148669 | M93: 1.120880531 | N93: 265.6975 | P93: 203.3827 | R93: 12880.52988 | S93: 0.6855224639 | T93: 9.165542544 | U93: 1.011056775
E94: 70 | F94: 4 | G94: 2 | H94: 384 | I94: 29.90780251 | J94: 23.31215093 | K94: 22.53664027 | L94: 1.16203225 | M94: 1.120880531 | N94: 304.0403 | P94: 239.2832 | R94: 12880.52988 | S94: 0.5642498749 | T94: 11.13546602 | U94: 1.282927629
E95: 71 | F95: 4 | G95: 2 | H95: 512 | I95: 34.07964856 | J95: 20.68762063 | K95: 22.53664027 | L95: 1.039124233 | M95: 1.120880531 | N95: 356.8599 | P95: 286.9903 | R95: 12880.52988 | S95: 0.4906492472 | T95: 12.80585947 | U95: 1.647345008
E96: 72 | F96: 4 | G96: 2 | H96: 640 | I96: 37.82918353 | J96: 19.092121 | K96: 22.53664027 | L96: 0.9652522527 | M96: 1.120880531 | N96: 403.968 | P96: 330.2966 | R96: 12880.52988 | S96: 0.4399309431 | T96: 14.28220816 | U96: 1.98140288
E97: 73 | F97: 4 | G97: 2 | H97: 768 | I97: 41.27873788 | J97: 16.51445451 | K97: 22.53664027 | L97: 0.8427701956 | M97: 1.120880531 | N97: 478.4983 | P97: 397.223 | R97: 12880.52988 | S97: 0.402262058 | T97: 15.61963198 | U97: 2.499552004
E98: 74 | F98: 4 | G98: 2 | H98: 896 | I98: 44.50098152 | J98: 16.1249058 | K98: 22.53664027 | L98: 0.8215209356 | M98: 1.120880531 | N98: 512.7158 | P98: 430.0659 | R98: 12880.52988 | S98: 0.3728618657 | T98: 16.8512414 | U98: 2.759766914
E99: 55 | F99: 5 | G99: 2.5 | H99: 1000 | I99: 51.89393626 | J99: 26.82545139 | K99: 43.94925187 | L99: 0.7138767623 | M99: 1.119158509 | N99: 372.3475 | P99: 312.9069 | R99: 20125.82794 | S99: 0.4399309431 | T99: 14.28220816 | U99: 1.934503748
E100: 56 | F100: 5 | G100: 2.5 | H100: 1200 | I100: 56.40040602 | J100: 22.61787705 | K100: 43.94925187 | L100: 0.6133248627 | M100: 1.119158509 | N100: 448.4155 | P100: 382.4625 | R100: 20125.82794 | S100: 0.402262058 | T100: 15.61963198 | U100: 2.493620683
E101: 57 | F101: 5 | G101: 2.5 | H101: 1400 | I101: 60.6227374 | J101: 21.70523422 | K101: 43.94925187 | L101: 0.5958561442 | M101: 1.119158509 | N101: 486.9736 | P101: 419.2774 | R101: 20125.82794 | S101: 0.3728618657 | T101: 16.8512414 | U101: 2.793000839
E102: 58 | F102: 5 | G102: 2.5 | H102: 1600 | I102: 64.62011599 | J102: 20.01014081 | K102: 43.94925187 | L102: 0.5454920135 | M102: 1.119158509 | N102: 544.3371 | P102: 472.943 | R102: 20125.82794 | S102: 0.3490896788 | T102: 17.99877134 | U102: 3.229368379
E103: 59 | F103: 5 | G103: 2.5 | H103: 1800 | I103: 68.43365222 | J103: 18.54918876 | K103: 43.94925187 | L103: 0.5043767179 | M103: 1.119158509 | N103: 604.2811 | P103: 529.1662 | R103: 20125.82794 | S103: 0.3293522807 | T103: 19.07740033 | U103: 3.689307016
E104: 60 | F104: 5 | G104: 2.5 | H104: 2000 | I104: 72.09327836 | J104: 18.87113777 | K104: 43.94925187 | L104: 0.5045854705 | M104: 1.119158509 | N104: 618.567 | P104: 544.3262 | R104: 20125.82794 | S104: 0.3126238958 | T104: 20.09822471 | U104: 3.820293151
E105: 61 | F105: 5 | G105: 2.5 | H105: 200 | I105: 27.53659751 | J105: 25.04975257 | K105: 43.94925187 | L105: 0.6400829477 | M105: 1.119158509 | N105: 266.8634 | P105: 204.9224 | R105: 20125.82794 | S105: 0.9470564804 | T105: 6.634435682 | U105: 1.099276228
E106: 62 | F106: 5 | G106: 2.5 | H106: 400 | I106: 35.367776 | J106: 35.18564202 | K106: 43.94925187 | L106: 0.905801847 | M106: 1.119158509 | N106: 246.0238 | P106: 195.0689 | R106: 20125.82794 | S106: 0.6855224639 | T106: 9.165542544 | U106: 1.005176372
E107: 63 | F107: 5 | G107: 2.5 | H107: 600 | I107: 41.60315632 | J107: 32.03501369 | K107: 43.94925187 | L107: 0.8307941057 | M107: 1.119158509 | N107: 286.4305 | P107: 232.7702 | R107: 20125.82794 | S107: 0.5642498749 | T107: 11.13546602 | U107: 1.298677651
E108: 64 | F108: 5 | G108: 2.5 | H108: 800 | I108: 47.01249072 | J108: 30.04156843 | K108: 43.94925187 | L108: 0.7874190212 | M108: 1.119158509 | N108: 322.2114 | P108: 266.5619 | R108: 20125.82794 | S108: 0.4906492472 | T108: 12.80585947 | U108: 1.564914656
E109: 75 | F109: 8 | G109: 2.9 | H109: 1024 | I109: 69.66449857 | J109: 54.35884294 | K109: 125.6514792 | L109: 0.4744044588 | M109: 1.077481359 | N109: 256.9195 | P109: 215.6444 | R109: 51522.11952 | S109: 0.6855224639 | T109: 9.165542544 | U109: 1.281566987
E110: 76 | F110: 8 | G110: 2.9 | H110: 1536 | I110: 80.57483585 | J110: 53.11801053 | K110: 125.6514792 | L110: 0.4660515515 | M110: 1.077481359 | N110: 286.288 | P110: 244.5906 | R110: 51522.11952 | S110: 0.5642498749 | T110: 11.13546602 | U110: 1.516902366
E111: 77 | F111: 8 | G111: 2.9 | H111: 2048 | I111: 90.16349968 | J111: 49.65923403 | K111: 125.6514792 | L111: 0.4418803561 | M111: 1.077481359 | N111: 323.0096 | P111: 280.0249 | R111: 51522.11952 | S111: 0.4906492472 | T111: 12.80585947 | U111: 1.815644188
E112: 78 | F112: 8 | G112: 2.9 | H112: 2560 | I112: 98.90754132 | J112: 46.15343307 | K112: 125.6514792 | L112: 0.413108865 | M112: 1.077481359 | N112: 362.805 | P112: 318.3155 | R112: 51522.11952 | S112: 0.4399309431 | T112: 14.28220816 | U112: 2.143015909
E113: 79 | F113: 8 | G113: 2.9 | H113: 3072 | I113: 107.0516217 | J113: 42.93160407 | K113: 125.6514792 | L113: 0.3803974549 | M113: 1.077481359 | N113: 404.9174 | P113: 358.8472 | R113: 51522.11952 | S113: 0.402262058 | T113: 15.61963198 | U113: 2.493538829
E114: 80 | F114: 8 | G114: 2.9 | H114: 3584 | I114: 114.7410807 | J114: 41.24681234 | K114: 125.6514792 | L114: 0.3658094949 | M114: 1.077481359 | N114: 438.9285 | P114: 391.9373 | R114: 51522.11952 | S114: 0.3728618657 | T114: 16.8512414 | U114: 2.781816926
E115: 81 | F115: 8 | G115: 2.9 | H115: 4096 | I115: 122.0706152 | J115: 39.09415737 | K115: 125.6514792 | L115: 0.3505351553 | M115: 1.077481359 | N115: 478.9613 | P115: 430.6844 | R115: 51522.11952 | S115: 0.3490896788 | T115: 17.99877134 | U115: 3.122477204
E116: 82 | F116: 8 | G116: 2.9 | H116: 4608 | I116: 129.106002 | J116: 38.36766151 | K116: 125.6514792 | L116: 0.3394770158 | M116: 1.077481359 | N116: 504.1493 | P116: 455.407 | R116: 51522.11952 | S116: 0.3293522807 | T116: 19.07740033 | U116: 3.364969271
E117: 83 | F117: 8 | G117: 2.9 | H117: 5120 | I117: 135.8951326 | J117: 37.85734555 | K117: 125.6514792 | L117: 0.33378914 | M117: 1.077481359 | N117: 524.1709 | P117: 475.0892 | R117: 51522.11952 | S117: 0.3126238958 | T117: 20.09822471 | U117: 3.589663528
E118: 84 | F118: 8 | G118: 2.9 | H118: 512 | I118: 56.20088421 | J118: 44.1538506 | K118: 125.6514792 | L118: 0.3796519545 | M118: 1.077481359 | N118: 255.2293 | P118: 209.7947 | R118: 51522.11952 | S118: 0.9470564804 | T118: 6.634435682 | U118: 1.272842197
E119: 85 | F119: 11 | G119: 3.3 | H119: 1936.8 | I119: 122.5193988 | J119: 112.8835748 | K119: 239.2225178 | L119: 0.4690931115 | M119: 0.9535047887 | N119: 215.5111 | P119: 183.7374 | R119: 97409.00722 | S119: 0.6853876518 | T119: 9.167345357 | U119: 1.085360727
E120: 86 | F120: 11 | G120: 3.3 | H120: 2905.2 | I120: 138.8093268 | J120: 130.6669579 | K120: 239.2225178 | L120: 0.542230983 | M120: 0.9535047887 | N120: 214.8855 | P120: 184.3722 | R120: 97409.00722 | S120: 0.5641371117 | T120: 11.13769184 | U120: 1.062313909
E121: 87 | F121: 11 | G121: 3.3 | H121: 3873.6 | I121: 153.2815784 | J121: 128.2782153 | K121: 239.2225178 | L121: 0.5408621048 | M121: 0.9535047887 | N121: 230.399 | P121: 199.7345 | R121: 97409.00722 | S121: 0.4905503909 | T121: 12.80844012 | U121: 1.194915115
E122: 88 | F122: 11 | G122: 3.3 | H122: 4842 | I122: 166.5922345 | J122: 101.126402 | K122: 239.2225178 | L122: 0.4392231274 | M122: 0.9535047887 | N122: 276.5103 | P122: 243.659 | R122: 97409.00722 | S122: 0.4398418686 | T122: 14.28510052 | U122: 1.647366377
E123: 89 | F123: 11 | G123: 3.3 | H123: 5810.4 | I123: 179.0777735 | J123: 85.39835753 | K123: 239.2225178 | L123: 0.386928231 | M123: 0.9535047887 | N123: 320.9873 | P123: 286.2932 | R123: 97409.00722 | S123: 0.4021803418 | T123: 15.62280563 | U123: 2.096969763
E124: 90 | F124: 11 | G124: 3.3 | H124: 6778.8 | I124: 190.938079 | J124: 81.58491751 | K124: 239.2225178 | L124: 0.3588500145 | M124: 0.9535047887 | N124: 343.1362 | P124: 307.8837 | R124: 97409.00722 | S124: 0.3727859431 | T124: 16.85467337 | U124: 2.340360018
E125: 91 | F125: 11 | G125: 3.3 | H125: 7747.2 | I125: 202.303386 | J125: 73.86310137 | K125: 239.2225178 | L125: 0.3373753352 | M125: 0.9535047887 | N125: 380.8218 | P125: 344.2936 | R125: 97409.00722 | S125: 0.3490184706 | T125: 18.00244353 | U125: 2.738896449
E126: 92 | F126: 11 | G126: 3.3 | H126: 8715.6 | I126: 213.2641563 | J126: 67.68368511 | K126: 239.2225178 | L126: 0.295370854 | M126: 0.9535047887 | N126: 419.2777 | P126: 381.5159 | R126: 97409.00722 | S126: 0.3292850058 | T126: 19.08129796 | U126: 3.150894576
E127: 93 | F127: 11 | G127: 3.3 | H127: 9684 | I127: 223.8862545 | J127: 67.62295678 | K127: 239.2225178 | L127: 0.2932284646 | M127: 0.9535047887 | N127: 431.9242 | P127: 394.1489 | R127: 97409.00722 | S127: 0.3125599672 | T127: 20.10233545 | U127: 3.310802502
E128: 94 | F128: 11 | G128: 3.3 | H128: 968.4 | I128: 102.7179895 | J128: 68.803649 | K128: 239.2225178 | L128: 0.2755052515 | M128: 0.9535047887 | N128: 254.6782 | P128: 217.1609 | R128: 97409.00722 | S128: 0.9468787478 | T128: 6.635680991 | U128: 1.492914852
E129: 95 | F129: 14 | G129: 3.7 | H129: 10978.8 | I129: 294.3852263 | J129: 110.174938 | K129: 369.4861174 | L129: 0.2849553878 | M129: 0.8108905566 | N129: 344.6932 | P129: 312.6461 | R129: 157786.491 | S129: 0.3728149897 | T129: 16.8533602 | U129: 2.671979959
E130: 96 | F130: 14 | G130: 3.7 | H130: 12547.2 | I130: 310.4829879 | J130: 107.524421 | K130: 369.4861174 | L130: 0.2703152231 | M130: 0.8108905566 | N130: 362.0901 | P130: 329.8721 | R130: 157786.491 | S130: 0.3490457135 | T130: 18.00103844 | U130: 2.887557869
E131: 97 | F131: 14 | G131: 3.7 | H131: 14115.6 | I131: 326.0659253 | J131: 97.48024781 | K131: 369.4861174 | L131: 0.2317573598 | M131: 0.8108905566 | N131: 401.3248 | P131: 368.1096 | R131: 157786.491 | S131: 0.3293107438 | T131: 19.07980661 | U131: 3.344943541
E132: 98 | F132: 14 | G132: 3.7 | H132: 15684 | I132: 341.2178594 | J132: 88.03255278 | K132: 369.4861174 | L132: 0.2098707768 | M132: 0.8108905566 | N132: 446.6046 | P132: 412.2688 | R132: 157786.491 | S132: 0.312584425 | T132: 20.10076256 | U132: 3.876041858
E133: 99 | F133: 14 | G133: 3.7 | H133: 1568.4 | I133: 172.3101748 | J133: 91.56605562 | K133: 369.4861174 | L133: 0.2023186221 | M133: 0.8108905566 | N133: 272.8241 | P133: 238.9587 | R133: 157786.491 | S133: 0.9469467459 | T133: 6.635204497 | U133: 1.881812792
E134: 100 | F134: 14 | G134: 3.7 | H134: 3136.8 | I134: 199.1439453 | J134: 144.6560367 | K134: 369.4861174 | L134: 0.3291048236 | M134: 0.8108905566 | N134: 232.2712 | P134: 202.4646 | R134: 157786.491 | S134: 0.6854392286 | T134: 9.166655547 | U134: 1.376672206
E135: 101 | F135: 14 | G135: 3.7 | H135: 4705.2 | I135: 221.5089109 | J135: 160.9723543 | K135: 369.4861174 | L135: 0.3793745094 | M135: 0.8108905566 | N135: 231.4775 | P135: 202.4011 | R135: 157786.491 | S135: 0.5641802529 | T135: 11.13684018 | U135: 1.376068033
E136: 102 | F136: 14 | G136: 3.7 | H136: 6273.6 | I136: 241.5606531 | J136: 148.1340531 | K136: 369.4861174 | L136: 0.3595322759 | M136: 0.8108905566 | N136: 253.9412 | P136: 224.2953 | R136: 157786.491 | S136: 0.4905882115 | T136: 12.80745269 | U136: 1.630689554
E137: 103 | F137: 14 | G137: 3.7 | H137: 7842 | I137: 260.1341178 | J137: 136.2925501 | K137: 369.4861174 | L137: 0.340280696 | M137: 0.8108905566 | N137: 278.1895 | P137: 247.94 | R137: 157786.491 | S137: 0.4398759469 | T137: 14.28399382 | U137: 1.908645173
E138: 104 | F138: 14 | G138: 3.7 | H138: 9410.4 | I138: 277.6575166 | J138: 123.149233 | K138: 369.4861174 | L138: 0.3135535894 | M138: 0.8108905566 | N138: 308.3838 | P138: 277.3237 | R138: 157786.491 | S138: 0.4022116049 | T138: 15.6215913 | U138: 2.254642678
E139: 105 | F139: 17 | G139: 4.1 | H139: 11562 | I139: 386.015427 | J139: 141.9148663 | K139: 510.1695506 | L139: 0.2196394649 | M139: 0.6856597017 | N139: 328.8627 | P139: 298.913 | R139: 232654.571 | S139: 0.4398936424 | T139: 14.28341922 | U139: 2.720049259
E140: 106 | F140: 17 | G140: 4.1 | H140: 13874.4 | I140: 409.2771034 | J140: 134.4610994 | K140: 510.1695506 | L140: 0.2139049879 | M140: 0.6856597017 | N140: 354.8626 | P140: 324.5073 | R140: 232654.571 | S140: 0.4022278386 | T140: 15.62096082 | U140: 3.043832791
E141: 107 | F141: 17 | G141: 4.1 | H141: 16186.8 | I141: 431.5726258 | J141: 128.84201 | K141: 510.1695506 | L141: 0.1988812459 | M141: 0.6856597017 | N141: 379.1625 | P141: 348.4661 | R141: 232654.571 | S141: 0.3728300724 | T141: 16.8526784 | U141: 3.349626615
E142: 108 | F142: 17 | G142: 4.1 | H142: 18499.2 | I142: 453.1032424 | J142: 112.8202666 | K142: 510.1695506 | L142: 0.1854418872 | M142: 0.6856597017 | N142: 432.8084 | P142: 400.9835 | R142: 232654.571 | S142: 0.3490598597 | T142: 18.00030892 | U142: 4.016151142
E143: 109 | F143: 17 | G143: 4.1 | H143: 20811.6 | I143: 474.008741 | J143: 104.6803605 | K143: 510.1695506 | L143: 0.1721251661 | M143: 0.6856597017 | N143: 473.2147 | P143: 440.7279 | R143: 232654.571 | S143: 0.3293241087 | T143: 19.0790323 | U143: 4.528153503
E144: 110 | F144: 17 | G144: 4.1 | H144: 23124 | I144: 494.3909001 | J144: 101.6172263 | K144: 510.1695506 | L144: 0.1558875733 | M144: 0.6856597017 | N144: 499.2671 | P144: 466.4853 | R144: 232654.571 | S144: 0.3125971251 | T144: 20.09994592 | U144: 4.865227266
E145: 111 | F145: 17 | G145: 4.1 | H145: 2312.4 | I145: 271.4398963 | J145: 69.04751776 | K145: 510.1695506 | L145: 0.09335049451 | M145: 0.6856597017 | N145: 430.0653 | P145: 392.6012 | R145: 232654.571 | S145: 0.9469820542 | T145: 6.634957103 | U145: 3.931204264
E146: 112 | F146: 17 | G146: 4.1 | H146: 4624.8 | I146: 306.0065601 | J146: 108.3842269 | K146: 510.1695506 | L146: 0.1484754006 | M146: 0.6856597017 | N146: 339.216 | P146: 307.0821 | R146: 232654.571 | S146: 0.6854660104 | T146: 9.166297398 | U146: 2.823349566
E147: 113 | F147: 17 | G147: 4.1 | H147: 6937.2 | I147: 335.1470409 | J147: 144.8988392 | K147: 510.1695506 | L147: 0.2049928397 | M147: 0.6856597017 | N147: 296.1453 | P147: 266.3465 | R147: 232654.571 | S147: 0.5642026544 | T147: 11.13639799 | U147: 2.312972572
E148: 114 | F148: 17 | G148: 4.1 | H148: 9249.6 | I148: 361.4787226 | J148: 142.8787555 | K148: 510.1695506 | L148: 0.2088098487 | M148: 0.6856597017 | N148: 313.7684 | P148: 283.8633 | R148: 232654.571 | S148: 0.4906078503 | T148: 12.80694001 | U148: 2.529968304
E149: 16 | F149: 25 | G149: 5.3 | H149: 10002.4 | I149: 796.7918199 | J149: 255.5312631 | K149: 768.5848107 | L149: 0.1300674218 | M149: 0.3978671819 | N149: 318.7338 | P149: 292.0815 | R149: 503145.6984 | S149: 0.6854441553 | T149: 9.166589661 | U149: 3.11817744
E150: 17 | F150: 25 | G150: 5.3 | H150: 15003.6 | I150: 847.4303976 | J150: 279.2158764 | K150: 768.5848107 | L150: 0.1454832862 | M150: 0.3978671819 | N150: 314.9936 | P150: 288.699 | R150: 503145.6984 | S150: 0.5641843738 | T150: 11.13675883 | U150: 3.035036577
E151: 18 | F151: 25 | G151: 5.3 | H151: 20004.8 | I151: 893.9382502 | J151: 297.0716171 | K151: 768.5848107 | L151: 0.1645243482 | M151: 0.3978671819 | N151: 314.5473 | P151: 288.4759 | R151: 503145.6984 | S151: 0.4905918242 | T151: 12.80735837 | U151: 3.009167483
E152: 19 | F152: 25 | G152: 5.3 | H152: 25006 | I152: 937.8063418 | J152: 282.8845423 | K152: 768.5848107 | L152: 0.1610861437 | M152: 0.3978671819 | N152: 336.6257 | P152: 310.3844 | R152: 503145.6984 | S152: 0.4398792021 | T152: 14.28388812 | U152: 3.315155838
E153: 20 | F153: 25 | G153: 5.3 | H153: 30007.2 | I153: 979.7993295 | J153: 229.3697251 | K153: 768.5848107 | L153: 0.1514615785 | M153: 0.3978671819 | N153: 403.9453 | P153: 376.8182 | R153: 503145.6984 | S153: 0.4022145912 | T153: 15.62147531 | U153: 4.271702943
E154: 21 | F154: 25 | G154: 5.3 | H154: 35008.4 | I154: 1020.371455 | J154: 212.5516931 | K154: 768.5848107 | L154: 0.118266414 | M154: 0.3978671819 | N154: 441.4416 | P154: 413.9452 | R154: 503145.6984 | S154: 0.3728177642 | T154: 16.85323477 | U154: 4.800580226
E155: 22 | F155: 25 | G155: 5.3 | H155: 40009.6 | I155: 1059.818681 | J155: 217.9168876 | K155: 768.5848107 | L155: 0.1167507638 | M155: 0.3978671819 | N155: 445.9062 | P155: 418.6003 | R155: 503145.6984 | S155: 0.3490483158 | T155: 18.00090424 | U155: 4.863407756
E156: 23 | F156: 25 | G156: 5.3 | H156: 45010.8 | I156: 1098.346586 | J156: 210.0449123 | K156: 768.5848107 | L156: 0.1132556795 | M156: 0.3978671819 | N156: 471.7084 | P156: 444.2222 | R156: 503145.6984 | S156: 0.3293132024 | T156: 19.07966417 | U156: 5.229103498
E157: 24 | F157: 25 | G157: 5.3 | H157: 50012 | I157: 1136.104847 | J157: 199.2883929 | K157: 768.5848107 | L157: 0.1041139709 | M157: 0.3978671819 | N157: 504.9678 | P157: 477.1777 | R157: 503145.6984 | S157: 0.3125867613 | T157: 20.10061233 | U157: 5.700807914
E158: 25 | F158: 25 | G158: 5.3 | H158: 5001.2 | I158: 738.1732938 | J158: 186.2938838 | K158: 768.5848107 | L158: 0.09092429559 | M158: 0.3978671819 | N158: 372.4212 | P158: 344.2506 | R158: 503145.6984 | S158: 0.9469532411 | T158: 6.635158986 | U158: 3.96241293
E159: 26 | F159: 30 | G159: 6 | H159: 14403.2 | I159: 1284.066198 | J159: 318.1263886 | K159: 781.9093897 | L159: 0.09951245771 | M159: 0.2739348965 | N159: 354.5902 | P159: 328.7607 | R159: 724529.8057 | S159: 0.685449955 | T159: 9.166512101 | U159: 4.036339782
E160: 27 | F160: 30 | G160: 6 | H160: 21604.8 | I160: 1350.668794 | J160: 339.7614199 | K160: 781.9093897 | L160: 0.1093663467 | M160: 0.2739348965 | N160: 355.3963 | P160: 329.792 | R160: 724529.8057 | S160: 0.564189225 | T160: 11.13666307 | U160: 3.9753448
E161: 28 | F161: 30 | G161: 6 | H161: 28806.4 | I161: 1412.314563 | J161: 332.0338387 | K161: 781.9093897 | L161: 0.1166910286 | M161: 0.2739348965 | N161: 373.9431 | P161: 348.2693 | R161: 724529.8057 | S161: 0.490596077 | T161: 12.80724735 | U161: 4.253525992
E162: 29 | F162: 30 | G162: 6 | H162: 36008 | I162: 1470.792648 | J162: 305.8896158 | K162: 781.9093897 | L162: 0.1135538898 | M162: 0.2739348965 | N162: 407.3554 | P162: 381.4024 | R162: 724529.8057 | S162: 0.4398830341 | T162: 14.28376368 | U162: 4.808246412
E163: 30 | F163: 30 | G163: 6 | H163: 43209.6 | I163: 1527.020627 | J163: 275.4504214 | K163: 781.9093897 | L163: 0.09829199736 | M163: 0.2739348965 | N163: 471.5102 | P163: 445.1603 | R163: 724529.8057 | S163: 0.4022181067 | T163: 15.62133878 | U163: 5.54372224
E164: 31 | F164: 30 | G164: 6 | H164: 50411.2 | I164: 1581.543588 | J164: 282.3588836 | K164: 781.9093897 | L164: 0.09673549276 | M164: 0.2739348965 | N164: 476.3027 | P164: 450.0512 | R164: 724529.8057 | S164: 0.3728210305 | T164: 16.85308712 | U164: 5.601182323
E165: 32 | F165: 30 | G165: 6 | H165: 57612.8 | I165: 1634.716681 | J165: 257.7034884 | K165: 781.9093897 | L165: 0.08746772874 | M165: 0.2739348965 | N165: 526.0817 | P165: 499.4637 | R165: 724529.8057 | S165: 0.3490513792 | T165: 18.00074626 | U165: 6.343401446
E166: 33 | F166: 30 | G166: 6 | H166: 64814.4 | I166: 1686.786598 | J166: 260.7269872 | K166: 781.9093897 | L166: 0.08397534107 | M166: 0.2739348965 | N166: 535.0819 | P166: 508.5157 | R166: 724529.8057 | S166: 0.3293160966 | T166: 19.07949648 | U166: 6.469551217
E167: 34 | F167: 30 | G167: 6 | H167: 72016 | I167: 1737.932951 | J167: 241.3872312 | K167: 781.9093897 | L167: 0.07682366008 | M167: 0.2739348965 | N167: 583.9189 | P167: 557.0202 | R167: 724529.8057 | S167: 0.3125895115 | T167: 20.10043548 | U167: 7.199771681
E168: 35 | F168: 30 | G168: 6 | H168: 7201.6 | I168: 1207.88775 | J168: 205.7777048 | K168: 781.9093897 | L168: 0.06180273982 | M168: 0.2739348965 | N168: 477.8919 | P168: 450.293 | R168: 724529.8057 | S168: 0.9469608873 | T168: 6.635105411 | U168: 5.869866955
A171: Configuration Comparisons | E171: 1-Body
M172: Grid Connected | O172: Blue Economy
E173: Device Index | F173: Diameter | G173: Height | H173: Volume | I173: Pavg-Mech | J173: Pavg-Upper | K173: P/V | L173: P/V - Theory | M173: LCoE | N173: LCoE - Upper Limit | O173: LCoE | P173: LCoE - Upper Limit
E174: 6 | F174: 2 | G174: 1 | H174: 3.141592654 | I174: 2.838470149 | J174: 2.817213858 | K174: 1.133039378 | L174: 1.120933778 | M174: 573.1897 | N174: 576.9286 | O174: 223.6543 | P174: 224.9513
E175: 7 | F175: 3 | G175: 1.5 | H175: 10.60287521 | I175: 5.716279495 | J175: 9.50809677 | K175: 0.6863164813 | L175: 1.120933778 | M175: 349.9866 | N175: 244.5993 | O175: 162.9375 | P175: 121.8078
E176: 8 | F176: 4 | G176: 2 | H176: 25.13274123 | I176: 9.641581641 | J176: 22.53664027 | K176: 0.4891295372 | L176: 1.120880531 | M176: 268.1017 | N176: 165.0923 | O176: 146.6543 | P176: 98.9546
E177: 9 | F177: 5 | G177: 2.5 | H177: 49.08738521 | I177: 13.77389625 | J177: 43.94925187 | K177: 0.3607776655 | L177: 1.119158509 | M177: 240.9157 | N177: 137.3378 | O177: 148.364 | P177: 91.8499
E178: 10 | F178: 8 | G178: 2.9 | H178: 145.7698991 | I178: 30.7812056 | J178: 125.6514792 | K178: 0.2707020859 | L178: 1.077481359 | M178: 197.082 | N178: 119.9027 | O178: 142.2293 | P178: 89.0209
E179: 11 | F179: 11 | G179: 3.3 | H179: 313.6094866 | I179: 51.09252412 | J179: 239.2225178 | K179: 0.2103171272 | L179: 0.9535047887 | M179: 200.5792 | N179: 120.1346 | O179: 158.149 | P179: 93.206
E180: 12 | F180: 14 | G180: 3.7 | H180: 569.5707481 | I180: 73.26602398 | J180: 369.4861174 | K180: 0.1669797956 | L180: 0.8108905566 | M180: 217.9335 | N180: 123.4561 | O180: 181.2956 | P180: 98.1167
E181: 13 | F181: 17 | G181: 4.1 | H181: 930.6182838 | I181: 67.00935487 | J181: 510.1695506 | K181: 0.09403850798 | L181: 0.6856597017 | M181: 307.9562 | N181: 130.0122 | O181: 270.05 | P181: 105.3974
E182: 14 | F182: 24 | G182: 5.3 | H182: 2397.663513 | I182: 171.8776202 | J182: 760.788574 | K182: 0.09328007012 | L182: 0.4207826994 | M182: 310.3128 | N182: 155.8005 | O182: 281.6715 | P182: 131.7628
E183: 15 | F183: 30 | G183: 6 | H183: 4241.150082 | I183: 203.8830679 | J183: 781.9093897 | K183: 0.06380507829 | L183: 0.2739348965 | M183: 417.275 | N183: 194.1944 | O183: 389.6199 | P183: 170.2134
E185: 2-Body
N186: Grid Connected | P186: Blue Economy | R186: AM | S186: Omega | T186: T
E187: Device Index | F187: Diameter | G187: Height | H187: React Mass | I187: Volume | J187: Pavg-Mech | K187: Pavg-Upper | L187: P/V | M187: P/V - Theory | N187: LCoE | P187: LCoE | R187: (kg) | S187: (rad/s) | T187: s
E188: 43 | F188: 2 | G188: 1 | H188: 32 | I188: 7.502640717 | J188: 4.771847961 | K188: 2.817213858 | L188: 1.898657977 | M188: 1.120933778 | N188: 545.9384 | O188: 0 | P188: 327.0527 | Q188: 0 | R188: 3220.13247 | S188: 0.9470564804 | T188: 6.634435682
E189: 46 | F189: 3 | G189: 1.5 | H189: 144 | I189: 16.83120862 | J189: 14.38258006 | K189: 9.50809677 | L189: 1.695599046 | M189: 1.120933778 | N189: 325.2703 | O189: 0 | P189: 235.5542 | Q189: 0 | R189: 7245.298057 | S189: 0.6855224639 | T189: 9.165542544
E190: 69 | F190: 4 | G190: 2 | H190: 256 | I190: 25.07511971 | J190: 24.80090173 | K190: 22.53664027 | L190: 1.235148669 | M190: 1.120880531 | N190: 265.6975 | O190: 0 | P190: 203.3827 | Q190: 0 | R190: 12880.52988 | S190: 0.6855224639 | T190: 9.165542544
E191: 62 | F191: 5 | G191: 2.5 | H191: 400 | I191: 35.367776 | J191: 35.18564202 | K191: 43.94925187 | L191: 0.905801847 | M191: 1.119158509 | N191: 246.0238 | O191: 0 | P191: 195.0689 | Q191: 0 | R191: 20125.82794 | S191: 0.6855224639 | T191: 9.165542544
E192: 75 | F192: 8 | G192: 2.9 | H192: 1024 | I192: 69.66449857 | J192: 54.35884294 | K192: 125.6514792 | L192: 0.4744044588 | M192: 1.077481359 | N192: 256.9195 | O192: 0 | P192: 215.6444 | Q192: 0 | R192: 51522.11952 | S192: 0.6855224639 | T192: 9.165542544
E193: 85 | F193: 11 | G193: 3.3 | H193: 1936.8 | I193: 122.5193988 | J193: 112.8835748 | K193: 239.2225178 | L193: 0.4690931115 | M193: 0.9535047887 | N193: 215.5111 | O193: 0 | P193: 183.7374 | Q193: 0 | R193: 97409.00722 | S193: 0.6853876518 | T193: 9.167345357
E194: 101 | F194: 14 | G194: 3.7 | H194: 4705.2 | I194: 221.5089109 | J194: 160.9723543 | K194: 369.4861174 | L194: 0.3793745094 | M194: 0.8108905566 | N194: 231.4775 | O194: 0 | P194: 202.4011 | Q194: 0 | R194: 157786.491 | S194: 0.5641802529 | T194: 11.13684018
E195: 113 | F195: 17 | G195: 4.1 | H195: 6937.2 | I195: 335.1470409 | J195: 144.8988392 | K195: 510.1695506 | L195: 0.2049928397 | M195: 0.6856597017 | N195: 296.1453 | O195: 0 | P195: 266.3465 | Q195: 0 | R195: 232654.571 | S195: 0.5642026544 | T195: 11.13639799
E196: 16 | F196: 25 | G196: 5.3 | H196: 10002.4 | I196: 796.7918199 | J196: 255.5312631 | K196: 768.5848107 | L196: 0.1300674218 | M196: 0.3978671819 | N196: 318.7338 | O196: 0 | P196: 292.0815 | Q196: 0 | R196: 503145.6984 | S196: 0.6854441553 | T196: 9.166589661
E197: 26 | F197: 30 | G197: 6 | H197: 14403.2 | I197: 1284.066198 | J197: 318.1263886 | K197: 781.9093897 | L197: 0.09951245771 | M197: 0.2739348965 | N197: 354.5902 | O197: 0 | P197: 328.7607 | Q197: 0 | R197: 724529.8057 | S197: 0.685449955 | T197: 9.166512101
A200: Plant Capacity vs. LCoE
E201: Plant Capacity | G201: LCoE
E202: 1 | G202: 1106.4872
E203: 2 | G203: 695.8288
E204: 4 | G204: 416.1624
E205: 10 | G205: 305.7935
E206: 20 | G206: 260.2539
E207: 40 | G207: 234.5605
E208: 80 | G208: 219.2683
E209: 160 | G209: 208.8491
E210: 320 | G210: 201.1768
E211: 640 | G211: 195.1018
A213: Sensitivity to Capacity Factor
E214: Capacity Factor | F214: LCoE
E215: 0.1 | F215: 414.56
E216: 0.2 | F216: 261.3451
E217: 0.3 | F217: 215.5111
E218: 0.4 | F218: 200.0066
E219: 0.5 | F219: 197.2039
E220: 0.6 | F220: 204.7213
... 120 more rows

Sheet Case 2
A2: CAPEX
E3: Cost | H3: Economics | K3: Uncertainty | M3: Multiplier
E4: $/Farm | F4: $/WEC | G4: $/kW | H4: $/MWh | I4: in % | J4: in % Total | K4: +% | L4: -% | M4: MC
C5: 1.1 | D5: Marine Energy Converter (MEC) | E5: 346782971.8 | F5: 355220.1353 | G5: 3467.829718 | H5: 99.05039289 | I5: 0.6119518131 | J5: 0.4223277008
C6: 1.1.1 | D6: Structural Assembly | E6: 105777261.6 | F6: 108350.8022 | G6: 1057.772616 | H6: 30.21278485 | I6: 0.1866602235 | J6: 0.1288202458 | K6: 0.5 | L6: -0.5 | M6: 1
C7: 1.1.2 | D7: Power Take-Off System (PTO) | E7: 125614691.1 | F7: 128670.8725 | G7: 1256.146911 | H7: 35.87887964 | I7: 0.2216664145 | J7: 0.1529791483 | K7: 0.5 | L7: -0.5 | M7: 1
C8: 1.1.3 | D8: Mooring, Foundation, and Sub-Structure | E8: 115391019.1 | F8: 118198.4606 | G8: 1153.910191 | H8: 32.9587284 | I8: 0.2036251752 | J8: 0.1405283067 | K8: 0.5 | L8: -0.5 | M8: 1
C9: 1.2 | D9: Balance of System (BOS) | E9: 168383811.5 | F9: 172480.5575 | G9: 1683.838115 | H9: 48.09487212 | I9: 0.297139096 | J9: 0.3362588786
C10: 1.2.1 | D10: Project Development | E10: 19139660.99 | F10: 19605.32529 | G10: 191.3966099 | H10: 5.466793629 | I10: 0.03377487131 | J10: 0.02330912899 | K10: 1 | L10: -0.5 | M10: 1
C11: 1.2.2 | D11: Engineering and Management | E11: 10101309.48 | F11: 10347.07241 | G11: 101.0130948 | H11: 2.885201275 | I11: 0.01782531194 | J11: 0.0123018232 | K11: 1 | L11: -0.5 | M11: 1
C12: 1.2.3 | D12: Electrical Infrastructure | E12: 31416766.75 | F12: 32181.13069 | G12: 314.1676675 | H12: 8.973459896 | I12: 0.05543970996 | J12: 0.03826073351 | K12: 1 | L12: -0.5 | M12: 1
C13: 1.2.6 | D13: Assembly & Installation | E13: 107726074.3 | F13: 110347.0291 | G13: 1077.260743 | H13: 30.76941732 | I13: 0.1900992027 | J13: 0.1311935965 | K13: 1 | L13: -0.5 | M13: 1
C14: 1.2.6.1 | D14: Device | E14: 48404066.25 | F14: 49581.72794 | G14: 484.0406625 | H14: 13.82548213 | I14: 0.08541640885 | J14: 0.0589486211 | K14: 1 | L14: -0.5 | M14: 1
C15: 1.2.6.2 | D15: Subsea Cables | E15: 59322008.01 | F15: 60765.30114 | G15: 593.2200801 | H15: 16.94393519 | I15: 0.1046827939 | J15: 0.07224497536 | K15: 1 | L15: -0.5 | M15: 1
C16: 1.3 | D16: Financial Costs | E16: 51516678.33 | F16: 52770.06928 | G16: 515.1667833 | H16: 14.7145265 | I16: 0.09090909091 | J16: 0.0627392983
C17: 1.3.2 | D17: Insurance During Construction | E17: 10303335.67 | F17: 10554.01386 | G17: 103.0333567 | H17: 2.9429053 | I17: 0.01818181818 | J17: 0.01254785966 | K17: 0.5 | L17: -0.3 | M17: 1
C18: 1.3.3 | D18: Construction Financing Costs | E18: 41213342.67 | F18: 42216.05542 | G18: 412.1334267 | H18: 11.7716212 | I18: 0.07272727273 | J18: 0.05019143864 | K18: 0.5 | L18: -0.3 | M18: 1
C20: Total CAPEX | E20: 894310025.7 | F20: 916068.4179 | G20: 5666.834617 | H20: 161.8597915 | I20: 1 | J20: 0.8213258778
A22: OPEX
E23: Cost | H23: Economics | K23: Uncertainty | M23: Multiplier
E24: $/Farm | F24: $/WEC | G24: $/kW | H24: $/MWh | I24: in % | K24: +% | L24: -% | M24: MC
C25: 2.1 | D25: Operations | E25: 9064100.257 | F25: 9284.628085 | G25: 57.87834617 | H25: 36.98495538 | I25: 0.5089113418 | J25: 0.1576951965
C26: 2.1.1 | D26: Environmental Monitoring | E26: 121000 | F26: 123.9439069 | G26: 1.21 | H26: 0.4937257393 | I26: 0.006793644223 | J26: 0.002105131037 | K26: 1 | L26: -0.5 | M26: 1
C27: 2.1.3 | D27: Insurance | E27: 8943100.257 | F27: 9160.684179 | G27: 56.66834617 | H27: 36.49122964 | I27: 0.5021176975 | J27: 0.1555900655 | K27: 1 | L27: -0.5 | M27: 1
C28: 2.2 | D28: Maintenance | E28: 8746664.631 | F28: 8959.469311 | G28: 87.46664631 | H28: 35.68969803 | I28: 0.4910886582 | J28: 0.1521725222 | K28: 1 | L28: -0.5 | M28: 1
C30: Total OPEX | E30: 17810764.89 | F30: 18244.0974 | G30: 145.3449925 | H30: 72.6746534 | I30: 1 | J30: 0.3098677187
C32: $/MWh | H32: 234.5344449
C34: Technology LCoE | E34: 464393481.3 | F34: 475692.086 | G34: 4611.172157 | H34: 199.7713292 | I34: 1.781483669 | J34: 0.8517782079
A36: Tables for Plots
D37: LCOE Table | E37: % | F37: LCoE | I37: CAPEX | J37: %
D38: Structural Assembly | E38: 0.1288202458 | F38: 30.21278485 | I38: Structural Assembly | J38: 0.1866602235
D39: Power Take-Off System (PTO) | E39: 0.1529791483 | F39: 35.87887964 | I39: Power Take-Off System (PTO) | J39: 0.2216664145
D40: Mooring, Foundation, and Sub-Structure | E40: 0.1405283067 | F40: 32.9587284 | I40: Mooring, Foundation, and Sub-Structure | J40: 0.2036251752
D41: Device Installation | E41: 0.0589486211 | F41: 13.82548213 | I41: Device Installation | J41: 0.08541640885
D42: Project Development | E42: 0.02330912899 | F42: 5.466793629 | I42: Project Development | J42: 0.03377487131
D43: Engineering and Management | E43: 0.0123018232 | F43: 2.885201275 | I43: Engineering and Management | J43: 0.01782531194
D44: Subsea Cables | E44: 0.1105057089 | F44: 25.91739509 | I44: Subsea Cables | J44: 0.1601225038
D45: Construction Financing and Insurance | E45: 0.0627392983 | F45: 14.7145265 | I45: Construction Financing and Insurance | J45: 0.09090909091
D46: Operations | E46: 0.1576951965 | F46: 36.98495538
D47: Annual Maintennce & Repair | E47: 0.1521725222 | F47: 35.68969803
E49: 1 | F49: 234.5344449 | G49: /MWh | J49: 1
A51: Study 1 - Device Trade-Offs - 1-Body WEC | M51: Grid Connected | O51: Blue Economy | Q51: Steel Mass | R51: M/P
E52: Device Index | F52: Diameter | G52: Height | H52: Volume | I52: Pavg-Mech | J52: Pavg-Upper | K52: P/V | L52: P/V - Theory | M52: LCoE | N52: LCoE - Upper Limit | O52: LCoE | P52: LCoE - Upper Limit | Q52: mT | R52: mT/kW
E53: 6 | F53: 2 | G53: 1 | H53: 3.141592654 | I53: 2.838470149 | J53: 2.817213858 | K53: 1.133039378 | L53: 1.120933778 | M53: 573.1897 | N53: 576.9286 | O53: 223.6543 | P53: 224.9513 | Q53: 0.7238229474 | R53: 0.2550046009
E54: 7 | F54: 3 | G54: 1.5 | H54: 10.60287521 | I54: 5.716279495 | J54: 9.50809677 | K54: 0.6863164813 | L54: 1.120933778 | M54: 349.9866 | N54: 244.5993 | O54: 162.9375 | P54: 121.8078 | Q54: 2.080990974 | R54: 0.3640464004
E55: 8 | F55: 4 | G55: 2 | H55: 25.13274123 | I55: 9.641581641 | J55: 22.53664027 | K55: 0.4891295372 | L55: 1.120880531 | M55: 268.1017 | N55: 165.0923 | O55: 146.6543 | P55: 98.9546 | Q55: 5.096919921 | R55: 0.5286393987
E56: 9 | F56: 5 | G56: 2.5 | H56: 49.08738521 | I56: 13.77389625 | J56: 43.94925187 | K56: 0.3607776655 | L56: 1.119158509 | M56: 240.9157 | N56: 137.3378 | O56: 148.364 | P56: 91.8499 | Q56: 10.0059726 | R56: 0.7264446036
E57: 10 | F57: 8 | G57: 2.9 | H57: 145.7698991 | I57: 30.7812056 | J57: 125.6514792 | K57: 0.2707020859 | L57: 1.077481359 | M57: 197.082 | N57: 119.9027 | O57: 142.2293 | P57: 89.0209 | Q57: 27.21815556 | R57: 0.8842459233
E58: 11 | F58: 11 | G58: 3.3 | H58: 313.6094866 | I58: 51.09252412 | J58: 239.2225178 | K58: 0.2103171272 | L58: 0.9535047887 | M58: 200.5792 | N58: 120.1346 | O58: 158.149 | P58: 93.206 | Q58: 61.5733897 | R58: 1.205135012
E59: 12 | F59: 14 | G59: 3.7 | H59: 569.5707481 | I59: 73.26602398 | J59: 369.4861174 | K59: 0.1669797956 | L59: 0.8108905566 | M59: 217.9335 | N59: 123.4561 | O59: 181.2956 | P59: 98.1167 | Q59: 118.3144905 | R59: 1.614861624
E60: 13 | F60: 17 | G60: 4.1 | H60: 930.6182838 | I60: 67.00935487 | J60: 510.1695506 | K60: 0.09403850798 | L60: 0.6856597017 | M60: 307.9562 | N60: 130.0122 | O60: 270.05 | P60: 105.3974 | Q60: 203.8922619 | R60: 3.042743245
E61: 14 | F61: 24 | G61: 5.3 | H61: 2397.663513 | I61: 171.8776202 | J61: 760.788574 | K61: 0.09328007012 | L61: 0.4207826994 | M61: 310.3128 | N61: 155.8005 | O61: 281.6715 | P61: 131.7628 | Q61: 581.5772618 | R61: 3.383670666
E62: 15 | F62: 30 | G62: 6 | H62: 4241.150082 | I62: 203.8830679 | J62: 781.9093897 | K62: 0.06380507829 | L62: 0.2739348965 | M62: 417.275 | N62: 194.1944 | O62: 389.6199 | P62: 170.2134 | Q62: 1073.506157 | R62: 5.265303136
I68: Steel Mass | N68: Grid Connected | P68: Blue Economy | R68: AM | S68: Omega | T68: T | U68: M/P
A69: Study 2 - Device Trade-Offs - 2-Body WEC | E69: Device Index | F69: Diameter | G69: Height | H69: React Mass | I69: mT | J69: Pavg-Mech | K69: Pavg-Upper | L69: P/V | M69: P/V - Theory | N69: LCoE | P69: LCoE | R69: (kg) | S69: (rad/s) | T69: s | U69: mT/kW
E70: 36 | F70: 2 | G70: 1 | H70: 128 | I70: 14.59270141 | J70: 5.040006117 | K70: 2.817213858 | L70: 2.005354717 | M70: 1.120933778 | N70: 708.9491 | P70: 500.2798 | R70: 3220.13247 | S70: 0.4906492472 | T70: 12.80585947 | U70: 2.89537375
E71: 37 | F71: 2 | G71: 1 | H71: 160 | I71: 16.31184743 | J71: 4.6977289 | K71: 2.817213858 | L71: 1.869166939 | M71: 1.120933778 | N71: 801.7131 | P71: 579.7925 | R71: 3220.13247 | S71: 0.4399309431 | T71: 14.28220816 | U71: 3.472283689
E72: 38 | F72: 2 | G72: 1 | H72: 192 | I72: 17.88100315 | J72: 4.506856548 | K72: 2.817213858 | L72: 1.793287538 | M72: 1.120933778 | N72: 876.9822 | P72: 646.7825 | R72: 3220.13247 | S72: 0.402262058 | T72: 15.61963198 | U72: 3.967511048
E73: 39 | F73: 2 | G73: 1 | H73: 224 | I73: 19.3365035 | J73: 4.243243192 | K73: 2.817213858 | L73: 1.688522516 | M73: 1.120933778 | N73: 969.8586 | P73: 727.0366 | R73: 3220.13247 | S73: 0.3728618657 | T73: 16.8512414 | U73: 4.557010435
E74: 40 | F74: 2 | G74: 1 | H74: 256 | I74: 20.70202274 | J74: 4.239930327 | K74: 2.817213858 | L74: 1.687561084 | M74: 1.120933778 | N74: 1011.882 | P74: 768.8914 | R74: 3220.13247 | S74: 0.3490896788 | T74: 17.99877134 | U74: 4.882632766
E75: 41 | F75: 2 | G75: 1 | H75: 288 | I75: 21.99400504 | J75: 4.194225731 | K75: 2.817213858 | L75: 1.66889171 | M75: 1.120933778 | N75: 1061.2269 | P75: 815.8838 | R75: 3220.13247 | S75: 0.3293522807 | T75: 19.07740033 | U75: 5.243877285
E76: 42 | F76: 2 | G76: 1 | H76: 320 | I76: 23.2244233 | J76: 4.067772837 | K76: 2.817213858 | L76: 1.61875697 | M76: 1.120933778 | N76: 1129.7169 | P76: 877.5822 | R76: 3220.13247 | S76: 0.3126238958 | T76: 20.09822471 | U76: 5.709370761
E77: 43 | F77: 2 | G77: 1 | H77: 32 | I77: 7.502640717 | J77: 4.771847961 | K77: 2.817213858 | L77: 1.898657977 | M77: 1.120933778 | N77: 545.9384 | P77: 327.0527 | R77: 3220.13247 | S77: 0.9470564804 | T77: 6.634435682 | U77: 1.572271535
E78: 44 | F78: 2 | G78: 1 | H78: 64 | I78: 10.40167992 | J78: 5.439684017 | K78: 2.817213858 | L78: 2.164381501 | M78: 1.120933778 | N78: 561.6027 | P78: 366.3119 | R78: 3220.13247 | S78: 0.6855224639 | T78: 9.165542544 | U78: 1.912184584
E79: 45 | F79: 2 | G79: 1 | H79: 96 | I79: 12.66239985 | J79: 5.367540416 | K79: 2.817213858 | L79: 2.135676474 | M79: 1.120933778 | N79: 623.8436 | P79: 426.2921 | R79: 3220.13247 | S79: 0.5642498749 | T79: 11.13546602 | U79: 2.359069307
E80: 46 | F80: 3 | G80: 1.5 | H80: 144 | I80: 16.83120862 | J80: 14.38258006 | K80: 9.50809677 | L80: 1.695599046 | M80: 1.120933778 | N80: 325.2703 | P80: 235.5542 | R80: 7245.298057 | S80: 0.6855224639 | T80: 9.165542544 | U80: 1.170249604
E81: 47 | F81: 3 | G81: 1.5 | H81: 216 | I81: 20.33900462 | J81: 13.17549628 | K81: 9.50809677 | L81: 1.554018627 | M81: 1.120933778 | N81: 381.9312 | P81: 286.3086 | R81: 7245.298057 | S81: 0.5642498749 | T81: 11.13546602 | U81: 1.543699318
E82: 48 | F82: 3 | G82: 1.5 | H82: 288 | I82: 23.35117306 | J82: 11.79391006 | K82: 9.50809677 | L82: 1.392504956 | M82: 1.120933778 | N82: 449.4738 | P82: 345.5618 | R82: 7245.298057 | S82: 0.4906492472 | T82: 12.80585947 | U82: 1.979934808
E83: 49 | F83: 3 | G83: 1.5 | H83: 360 | I83: 26.04660819 | J83: 10.48554837 | K83: 9.50809677 | L83: 1.241189544 | M83: 1.120933778 | N83: 527.2569 | P83: 413.5461 | R83: 7245.298057 | S83: 0.4399309431 | T83: 14.28220816 | U83: 2.484048261
E84: 50 | F84: 3 | G84: 1.5 | H84: 432 | I84: 28.51705786 | J84: 9.824047094 | K84: 9.50809677 | L84: 1.167132661 | M84: 1.120933778 | N84: 588.7349 | P84: 469.0695 | R84: 7245.298057 | S84: 0.402262058 | T84: 15.61963198 | U84: 2.902781062
E85: 51 | F85: 3 | G85: 1.5 | H85: 576 | I85: 32.98201944 | J85: 9.828426403 | K85: 9.50809677 | L85: 1.166681948 | M85: 1.120933778 | N85: 646.0465 | P85: 526.4197 | R85: 7245.298057 | S85: 0.3490896788 | T85: 17.99877134 | U85: 3.355778239
E86: 52 | F86: 3 | G86: 1.5 | H86: 648 | I86: 35.03670899 | J86: 8.932230813 | K86: 9.50809677 | L86: 1.060855618 | M86: 1.120933778 | N86: 730.0399 | P86: 601.014 | R86: 7245.298057 | S86: 0.3293522807 | T86: 19.07740033 | U86: 3.922503764
E87: 53 | F87: 3 | G87: 1.5 | H87: 720 | I87: 36.99905248 | J87: 8.173177168 | K87: 9.50809677 | L87: 0.9808987299 | M87: 1.120933778 | N87: 819.0023 | P87: 680.331 | R87: 7245.298057 | S87: 0.3126238958 | T87: 20.09822471 | U87: 4.526887368
E88: 54 | F88: 3 | G88: 1.5 | H88: 72 | I88: 12.36593373 | J88: 11.44865347 | K88: 9.50809677 | L88: 1.350385236 | M88: 1.120933778 | N88: 333.2861 | P88: 227.0008 | R88: 7245.298057 | S88: 0.9470564804 | T88: 6.634435682 | U88: 1.080121235
E89: 65 | F89: 4 | G89: 2 | H89: 1024 | I89: 47.54326292 | J89: 13.69668063 | K89: 22.53664027 | L89: 0.7144768798 | M89: 1.120880531 | N89: 614.3522 | P89: 521.4099 | R89: 12880.52988 | S89: 0.3490896788 | T89: 17.99877134 | U89: 3.471152186
E90: 66 | F90: 4 | G90: 2 | H90: 1152 | I90: 50.43847044 | J90: 13.38854607 | K90: 22.53664027 | L90: 0.6913240379 | M90: 1.120880531 | N90: 652.7559 | P90: 558.2418 | R90: 12880.52988 | S90: 0.3293522807 | T90: 19.07740033 | U90: 3.767285125
E91: 67 | F91: 4 | G91: 2 | H91: 1280 | I91: 53.2105499 | J91: 13.22194603 | K91: 22.53664027 | L91: 0.6791627524 | M91: 1.120880531 | N91: 685.2173 | P91: 589.8271 | R91: 12880.52988 | S91: 0.3126238958 | T91: 20.09822471 | U91: 4.024411366
E92: 68 | F92: 4 | G92: 2 | H92: 128 | I92: 18.96579839 | J92: 18.79026679 | K92: 22.53664027 | L92: 0.9363566188 | M92: 1.120880531 | N92: 277.9808 | P92: 203.5331 | R92: 12880.52988 | S92: 0.9470564804 | T92: 6.634435682 | U92: 1.009341623
E93: 69 | F93: 4 | G93: 2 | H93: 256 | I93: 25.07511971 | J93: 24.80090173 | K93: 22.53664027 | L93: 1.235148669 | M93: 1.120880531 | N93: 265.6975 | P93: 203.3827 | R93: 12880.52988 | S93: 0.6855224639 | T93: 9.165542544 | U93: 1.011056775
E94: 70 | F94: 4 | G94: 2 | H94: 384 | I94: 29.90780251 | J94: 23.31215093 | K94: 22.53664027 | L94: 1.16203225 | M94: 1.120880531 | N94: 304.0403 | P94: 239.2832 | R94: 12880.52988 | S94: 0.5642498749 | T94: 11.13546602 | U94: 1.282927629
E95: 71 | F95: 4 | G95: 2 | H95: 512 | I95: 34.07964856 | J95: 20.68762063 | K95: 22.53664027 | L95: 1.039124233 | M95: 1.120880531 | N95: 356.8599 | P95: 286.9903 | R95: 12880.52988 | S95: 0.4906492472 | T95: 12.80585947 | U95: 1.647345008
E96: 72 | F96: 4 | G96: 2 | H96: 640 | I96: 37.82918353 | J96: 19.092121 | K96: 22.53664027 | L96: 0.9652522527 | M96: 1.120880531 | N96: 403.968 | P96: 330.2966 | R96: 12880.52988 | S96: 0.4399309431 | T96: 14.28220816 | U96: 1.98140288
E97: 73 | F97: 4 | G97: 2 | H97: 768 | I97: 41.27873788 | J97: 16.51445451 | K97: 22.53664027 | L97: 0.8427701956 | M97: 1.120880531 | N97: 478.4983 | P97: 397.223 | R97: 12880.52988 | S97: 0.402262058 | T97: 15.61963198 | U97: 2.499552004
E98: 74 | F98: 4 | G98: 2 | H98: 896 | I98: 44.50098152 | J98: 16.1249058 | K98: 22.53664027 | L98: 0.8215209356 | M98: 1.120880531 | N98: 512.7158 | P98: 430.0659 | R98: 12880.52988 | S98: 0.3728618657 | T98: 16.8512414 | U98: 2.759766914
E99: 55 | F99: 5 | G99: 2.5 | H99: 1000 | I99: 51.89393626 | J99: 26.82545139 | K99: 43.94925187 | L99: 0.7138767623 | M99: 1.119158509 | N99: 372.3475 | P99: 312.9069 | R99: 20125.82794 | S99: 0.4399309431 | T99: 14.28220816 | U99: 1.934503748
E100: 56 | F100: 5 | G100: 2.5 | H100: 1200 | I100: 56.40040602 | J100: 22.61787705 | K100: 43.94925187 | L100: 0.6133248627 | M100: 1.119158509 | N100: 448.4155 | P100: 382.4625 | R100: 20125.82794 | S100: 0.402262058 | T100: 15.61963198 | U100: 2.493620683
E101: 57 | F101: 5 | G101: 2.5 | H101: 1400 | I101: 60.6227374 | J101: 21.70523422 | K101: 43.94925187 | L101: 0.5958561442 | M101: 1.119158509 | N101: 486.9736 | P101: 419.2774 | R101: 20125.82794 | S101: 0.3728618657 | T101: 16.8512414 | U101: 2.793000839
E102: 58 | F102: 5 | G102: 2.5 | H102: 1600 | I102: 64.62011599 | J102: 20.01014081 | K102: 43.94925187 | L102: 0.5454920135 | M102: 1.119158509 | N102: 544.3371 | P102: 472.943 | R102: 20125.82794 | S102: 0.3490896788 | T102: 17.99877134 | U102: 3.229368379
E103: 59 | F103: 5 | G103: 2.5 | H103: 1800 | I103: 68.43365222 | J103: 18.54918876 | K103: 43.94925187 | L103: 0.5043767179 | M103: 1.119158509 | N103: 604.2811 | P103: 529.1662 | R103: 20125.82794 | S103: 0.3293522807 | T103: 19.07740033 | U103: 3.689307016
E104: 60 | F104: 5 | G104: 2.5 | H104: 2000 | I104: 72.09327836 | J104: 18.87113777 | K104: 43.94925187 | L104: 0.5045854705 | M104: 1.119158509 | N104: 618.567 | P104: 544.3262 | R104: 20125.82794 | S104: 0.3126238958 | T104: 20.09822471 | U104: 3.820293151
E105: 61 | F105: 5 | G105: 2.5 | H105: 200 | I105: 27.53659751 | J105: 25.04975257 | K105: 43.94925187 | L105: 0.6400829477 | M105: 1.119158509 | N105: 266.8634 | P105: 204.9224 | R105: 20125.82794 | S105: 0.9470564804 | T105: 6.634435682 | U105: 1.099276228
E106: 62 | F106: 5 | G106: 2.5 | H106: 400 | I106: 35.367776 | J106: 35.18564202 | K106: 43.94925187 | L106: 0.905801847 | M106: 1.119158509 | N106: 246.0238 | P106: 195.0689 | R106: 20125.82794 | S106: 0.6855224639 | T106: 9.165542544 | U106: 1.005176372
E107: 63 | F107: 5 | G107: 2.5 | H107: 600 | I107: 41.60315632 | J107: 32.03501369 | K107: 43.94925187 | L107: 0.8307941057 | M107: 1.119158509 | N107: 286.4305 | P107: 232.7702 | R107: 20125.82794 | S107: 0.5642498749 | T107: 11.13546602 | U107: 1.298677651
E108: 64 | F108: 5 | G108: 2.5 | H108: 800 | I108: 47.01249072 | J108: 30.04156843 | K108: 43.94925187 | L108: 0.7874190212 | M108: 1.119158509 | N108: 322.2114 | P108: 266.5619 | R108: 20125.82794 | S108: 0.4906492472 | T108: 12.80585947 | U108: 1.564914656
E109: 75 | F109: 8 | G109: 2.9 | H109: 1024 | I109: 69.66449857 | J109: 54.35884294 | K109: 125.6514792 | L109: 0.4744044588 | M109: 1.077481359 | N109: 256.9195 | P109: 215.6444 | R109: 51522.11952 | S109: 0.6855224639 | T109: 9.165542544 | U109: 1.281566987
E110: 76 | F110: 8 | G110: 2.9 | H110: 1536 | I110: 80.57483585 | J110: 53.11801053 | K110: 125.6514792 | L110: 0.4660515515 | M110: 1.077481359 | N110: 286.288 | P110: 244.5906 | R110: 51522.11952 | S110: 0.5642498749 | T110: 11.13546602 | U110: 1.516902366
E111: 77 | F111: 8 | G111: 2.9 | H111: 2048 | I111: 90.16349968 | J111: 49.65923403 | K111: 125.6514792 | L111: 0.4418803561 | M111: 1.077481359 | N111: 323.0096 | P111: 280.0249 | R111: 51522.11952 | S111: 0.4906492472 | T111: 12.80585947 | U111: 1.815644188
E112: 78 | F112: 8 | G112: 2.9 | H112: 2560 | I112: 98.90754132 | J112: 46.15343307 | K112: 125.6514792 | L112: 0.413108865 | M112: 1.077481359 | N112: 362.805 | P112: 318.3155 | R112: 51522.11952 | S112: 0.4399309431 | T112: 14.28220816 | U112: 2.143015909
E113: 79 | F113: 8 | G113: 2.9 | H113: 3072 | I113: 107.0516217 | J113: 42.93160407 | K113: 125.6514792 | L113: 0.3803974549 | M113: 1.077481359 | N113: 404.9174 | P113: 358.8472 | R113: 51522.11952 | S113: 0.402262058 | T113: 15.61963198 | U113: 2.493538829
E114: 80 | F114: 8 | G114: 2.9 | H114: 3584 | I114: 114.7410807 | J114: 41.24681234 | K114: 125.6514792 | L114: 0.3658094949 | M114: 1.077481359 | N114: 438.9285 | P114: 391.9373 | R114: 51522.11952 | S114: 0.3728618657 | T114: 16.8512414 | U114: 2.781816926
E115: 81 | F115: 8 | G115: 2.9 | H115: 4096 | I115: 122.0706152 | J115: 39.09415737 | K115: 125.6514792 | L115: 0.3505351553 | M115: 1.077481359 | N115: 478.9613 | P115: 430.6844 | R115: 51522.11952 | S115: 0.3490896788 | T115: 17.99877134 | U115: 3.122477204
E116: 82 | F116: 8 | G116: 2.9 | H116: 4608 | I116: 129.106002 | J116: 38.36766151 | K116: 125.6514792 | L116: 0.3394770158 | M116: 1.077481359 | N116: 504.1493 | P116: 455.407 | R116: 51522.11952 | S116: 0.3293522807 | T116: 19.07740033 | U116: 3.364969271
E117: 83 | F117: 8 | G117: 2.9 | H117: 5120 | I117: 135.8951326 | J117: 37.85734555 | K117: 125.6514792 | L117: 0.33378914 | M117: 1.077481359 | N117: 524.1709 | P117: 475.0892 | R117: 51522.11952 | S117: 0.3126238958 | T117: 20.09822471 | U117: 3.589663528
E118: 84 | F118: 8 | G118: 2.9 | H118: 512 | I118: 56.20088421 | J118: 44.1538506 | K118: 125.6514792 | L118: 0.3796519545 | M118: 1.077481359 | N118: 255.2293 | P118: 209.7947 | R118: 51522.11952 | S118: 0.9470564804 | T118: 6.634435682 | U118: 1.272842197
E119: 85 | F119: 11 | G119: 3.3 | H119: 1936.8 | I119: 122.5193988 | J119: 112.8835748 | K119: 239.2225178 | L119: 0.4690931115 | M119: 0.9535047887 | N119: 215.5111 | P119: 183.7374 | R119: 97409.00722 | S119: 0.6853876518 | T119: 9.167345357 | U119: 1.085360727
E120: 86 | F120: 11 | G120: 3.3 | H120: 2905.2 | I120: 138.8093268 | J120: 130.6669579 | K120: 239.2225178 | L120: 0.542230983 | M120: 0.9535047887 | N120: 214.8855 | P120: 184.3722 | R120: 97409.00722 | S120: 0.5641371117 | T120: 11.13769184 | U120: 1.062313909
E121: 87 | F121: 11 | G121: 3.3 | H121: 3873.6 | I121: 153.2815784 | J121: 128.2782153 | K121: 239.2225178 | L121: 0.5408621048 | M121: 0.9535047887 | N121: 230.399 | P121: 199.7345 | R121: 97409.00722 | S121: 0.4905503909 | T121: 12.80844012 | U121: 1.194915115
E122: 88 | F122: 11 | G122: 3.3 | H122: 4842 | I122: 166.5922345 | J122: 101.126402 | K122: 239.2225178 | L122: 0.4392231274 | M122: 0.9535047887 | N122: 276.5103 | P122: 243.659 | R122: 97409.00722 | S122: 0.4398418686 | T122: 14.28510052 | U122: 1.647366377
E123: 89 | F123: 11 | G123: 3.3 | H123: 5810.4 | I123: 179.0777735 | J123: 85.39835753 | K123: 239.2225178 | L123: 0.386928231 | M123: 0.9535047887 | N123: 320.9873 | P123: 286.2932 | R123: 97409.00722 | S123: 0.4021803418 | T123: 15.62280563 | U123: 2.096969763
E124: 90 | F124: 11 | G124: 3.3 | H124: 6778.8 | I124: 190.938079 | J124: 81.58491751 | K124: 239.2225178 | L124: 0.3588500145 | M124: 0.9535047887 | N124: 343.1362 | P124: 307.8837 | R124: 97409.00722 | S124: 0.3727859431 | T124: 16.85467337 | U124: 2.340360018
E125: 91 | F125: 11 | G125: 3.3 | H125: 7747.2 | I125: 202.303386 | J125: 73.86310137 | K125: 239.2225178 | L125: 0.3373753352 | M125: 0.9535047887 | N125: 380.8218 | P125: 344.2936 | R125: 97409.00722 | S125: 0.3490184706 | T125: 18.00244353 | U125: 2.738896449
E126: 92 | F126: 11 | G126: 3.3 | H126: 8715.6 | I126: 213.2641563 | J126: 67.68368511 | K126: 239.2225178 | L126: 0.295370854 | M126: 0.9535047887 | N126: 419.2777 | P126: 381.5159 | R126: 97409.00722 | S126: 0.3292850058 | T126: 19.08129796 | U126: 3.150894576
E127: 93 | F127: 11 | G127: 3.3 | H127: 9684 | I127: 223.8862545 | J127: 67.62295678 | K127: 239.2225178 | L127: 0.2932284646 | M127: 0.9535047887 | N127: 431.9242 | P127: 394.1489 | R127: 97409.00722 | S127: 0.3125599672 | T127: 20.10233545 | U127: 3.310802502
E128: 94 | F128: 11 | G128: 3.3 | H128: 968.4 | I128: 102.7179895 | J128: 68.803649 | K128: 239.2225178 | L128: 0.2755052515 | M128: 0.9535047887 | N128: 254.6782 | P128: 217.1609 | R128: 97409.00722 | S128: 0.9468787478 | T128: 6.635680991 | U128: 1.492914852
E129: 95 | F129: 14 | G129: 3.7 | H129: 10978.8 | I129: 294.3852263 | J129: 110.174938 | K129: 369.4861174 | L129: 0.2849553878 | M129: 0.8108905566 | N129: 344.6932 | P129: 312.6461 | R129: 157786.491 | S129: 0.3728149897 | T129: 16.8533602 | U129: 2.671979959
E130: 96 | F130: 14 | G130: 3.7 | H130: 12547.2 | I130: 310.4829879 | J130: 107.524421 | K130: 369.4861174 | L130: 0.2703152231 | M130: 0.8108905566 | N130: 362.0901 | P130: 329.8721 | R130: 157786.491 | S130: 0.3490457135 | T130: 18.00103844 | U130: 2.887557869
E131: 97 | F131: 14 | G131: 3.7 | H131: 14115.6 | I131: 326.0659253 | J131: 97.48024781 | K131: 369.4861174 | L131: 0.2317573598 | M131: 0.8108905566 | N131: 401.3248 | P131: 368.1096 | R131: 157786.491 | S131: 0.3293107438 | T131: 19.07980661 | U131: 3.344943541
E132: 98 | F132: 14 | G132: 3.7 | H132: 15684 | I132: 341.2178594 | J132: 88.03255278 | K132: 369.4861174 | L132: 0.2098707768 | M132: 0.8108905566 | N132: 446.6046 | P132: 412.2688 | R132: 157786.491 | S132: 0.312584425 | T132: 20.10076256 | U132: 3.876041858
E133: 99 | F133: 14 | G133: 3.7 | H133: 1568.4 | I133: 172.3101748 | J133: 91.56605562 | K133: 369.4861174 | L133: 0.2023186221 | M133: 0.8108905566 | N133: 272.8241 | P133: 238.9587 | R133: 157786.491 | S133: 0.9469467459 | T133: 6.635204497 | U133: 1.881812792
E134: 100 | F134: 14 | G134: 3.7 | H134: 3136.8 | I134: 199.1439453 | J134: 144.6560367 | K134: 369.4861174 | L134: 0.3291048236 | M134: 0.8108905566 | N134: 232.2712 | P134: 202.4646 | R134: 157786.491 | S134: 0.6854392286 | T134: 9.166655547 | U134: 1.376672206
E135: 101 | F135: 14 | G135: 3.7 | H135: 4705.2 | I135: 221.5089109 | J135: 160.9723543 | K135: 369.4861174 | L135: 0.3793745094 | M135: 0.8108905566 | N135: 231.4775 | P135: 202.4011 | R135: 157786.491 | S135: 0.5641802529 | T135: 11.13684018 | U135: 1.376068033
E136: 102 | F136: 14 | G136: 3.7 | H136: 6273.6 | I136: 241.5606531 | J136: 148.1340531 | K136: 369.4861174 | L136: 0.3595322759 | M136: 0.8108905566 | N136: 253.9412 | P136: 224.2953 | R136: 157786.491 | S136: 0.4905882115 | T136: 12.80745269 | U136: 1.630689554
E137: 103 | F137: 14 | G137: 3.7 | H137: 7842 | I137: 260.1341178 | J137: 136.2925501 | K137: 369.4861174 | L137: 0.340280696 | M137: 0.8108905566 | N137: 278.1895 | P137: 247.94 | R137: 157786.491 | S137: 0.4398759469 | T137: 14.28399382 | U137: 1.908645173
E138: 104 | F138: 14 | G138: 3.7 | H138: 9410.4 | I138: 277.6575166 | J138: 123.149233 | K138: 369.4861174 | L138: 0.3135535894 | M138: 0.8108905566 | N138: 308.3838 | P138: 277.3237 | R138: 157786.491 | S138: 0.4022116049 | T138: 15.6215913 | U138: 2.254642678
E139: 105 | F139: 17 | G139: 4.1 | H139: 11562 | I139: 386.015427 | J139: 141.9148663 | K139: 510.1695506 | L139: 0.2196394649 | M139: 0.6856597017 | N139: 328.8627 | P139: 298.913 | R139: 232654.571 | S139: 0.4398936424 | T139: 14.28341922 | U139: 2.720049259
E140: 106 | F140: 17 | G140: 4.1 | H140: 13874.4 | I140: 409.2771034 | J140: 134.4610994 | K140: 510.1695506 | L140: 0.2139049879 | M140: 0.6856597017 | N140: 354.8626 | P140: 324.5073 | R140: 232654.571 | S140: 0.4022278386 | T140: 15.62096082 | U140: 3.043832791
E141: 107 | F141: 17 | G141: 4.1 | H141: 16186.8 | I141: 431.5726258 | J141: 128.84201 | K141: 510.1695506 | L141: 0.1988812459 | M141: 0.6856597017 | N141: 379.1625 | P141: 348.4661 | R141: 232654.571 | S141: 0.3728300724 | T141: 16.8526784 | U141: 3.349626615
E142: 108 | F142: 17 | G142: 4.1 | H142: 18499.2 | I142: 453.1032424 | J142: 112.8202666 | K142: 510.1695506 | L142: 0.1854418872 | M142: 0.6856597017 | N142: 432.8084 | P142: 400.9835 | R142: 232654.571 | S142: 0.3490598597 | T142: 18.00030892 | U142: 4.016151142
E143: 109 | F143: 17 | G143: 4.1 | H143: 20811.6 | I143: 474.008741 | J143: 104.6803605 | K143: 510.1695506 | L143: 0.1721251661 | M143: 0.6856597017 | N143: 473.2147 | P143: 440.7279 | R143: 232654.571 | S143: 0.3293241087 | T143: 19.0790323 | U143: 4.528153503
E144: 110 | F144: 17 | G144: 4.1 | H144: 23124 | I144: 494.3909001 | J144: 101.6172263 | K144: 510.1695506 | L144: 0.1558875733 | M144: 0.6856597017 | N144: 499.2671 | P144: 466.4853 | R144: 232654.571 | S144: 0.3125971251 | T144: 20.09994592 | U144: 4.865227266
E145: 111 | F145: 17 | G145: 4.1 | H145: 2312.4 | I145: 271.4398963 | J145: 69.04751776 | K145: 510.1695506 | L145: 0.09335049451 | M145: 0.6856597017 | N145: 430.0653 | P145: 392.6012 | R145: 232654.571 | S145: 0.9469820542 | T145: 6.634957103 | U145: 3.931204264
E146: 112 | F146: 17 | G146: 4.1 | H146: 4624.8 | I146: 306.0065601 | J146: 108.3842269 | K146: 510.1695506 | L146: 0.1484754006 | M146: 0.6856597017 | N146: 339.216 | P146: 307.0821 | R146: 232654.571 | S146: 0.6854660104 | T146: 9.166297398 | U146: 2.823349566
E147: 113 | F147: 17 | G147: 4.1 | H147: 6937.2 | I147: 335.1470409 | J147: 144.8988392 | K147: 510.1695506 | L147: 0.2049928397 | M147: 0.6856597017 | N147: 296.1453 | P147: 266.3465 | R147: 232654.571 | S147: 0.5642026544 | T147: 11.13639799 | U147: 2.312972572
E148: 114 | F148: 17 | G148: 4.1 | H148: 9249.6 | I148: 361.4787226 | J148: 142.8787555 | K148: 510.1695506 | L148: 0.2088098487 | M148: 0.6856597017 | N148: 313.7684 | P148: 283.8633 | R148: 232654.571 | S148: 0.4906078503 | T148: 12.80694001 | U148: 2.529968304
E149: 16 | F149: 25 | G149: 5.3 | H149: 10002.4 | I149: 796.7918199 | J149: 255.5312631 | K149: 768.5848107 | L149: 0.1300674218 | M149: 0.3978671819 | N149: 318.7338 | P149: 292.0815 | R149: 503145.6984 | S149: 0.6854441553 | T149: 9.166589661 | U149: 3.11817744
E150: 17 | F150: 25 | G150: 5.3 | H150: 15003.6 | I150: 847.4303976 | J150: 279.2158764 | K150: 768.5848107 | L150: 0.1454832862 | M150: 0.3978671819 | N150: 314.9936 | P150: 288.699 | R150: 503145.6984 | S150: 0.5641843738 | T150: 11.13675883 | U150: 3.035036577
E151: 18 | F151: 25 | G151: 5.3 | H151: 20004.8 | I151: 893.9382502 | J151: 297.0716171 | K151: 768.5848107 | L151: 0.1645243482 | M151: 0.3978671819 | N151: 314.5473 | P151: 288.4759 | R151: 503145.6984 | S151: 0.4905918242 | T151: 12.80735837 | U151: 3.009167483
E152: 19 | F152: 25 | G152: 5.3 | H152: 25006 | I152: 937.8063418 | J152: 282.8845423 | K152: 768.5848107 | L152: 0.1610861437 | M152: 0.3978671819 | N152: 336.6257 | P152: 310.3844 | R152: 503145.6984 | S152: 0.4398792021 | T152: 14.28388812 | U152: 3.315155838
E153: 20 | F153: 25 | G153: 5.3 | H153: 30007.2 | I153: 979.7993295 | J153: 229.3697251 | K153: 768.5848107 | L153: 0.1514615785 | M153: 0.3978671819 | N153: 403.9453 | P153: 376.8182 | R153: 503145.6984 | S153: 0.4022145912 | T153: 15.62147531 | U153: 4.271702943
E154: 21 | F154: 25 | G154: 5.3 | H154: 35008.4 | I154: 1020.371455 | J154: 212.5516931 | K154: 768.5848107 | L154: 0.118266414 | M154: 0.3978671819 | N154: 441.4416 | P154: 413.9452 | R154: 503145.6984 | S154: 0.3728177642 | T154: 16.85323477 | U154: 4.800580226
E155: 22 | F155: 25 | G155: 5.3 | H155: 40009.6 | I155: 1059.818681 | J155: 217.9168876 | K155: 768.5848107 | L155: 0.1167507638 | M155: 0.3978671819 | N155: 445.9062 | P155: 418.6003 | R155: 503145.6984 | S155: 0.3490483158 | T155: 18.00090424 | U155: 4.863407756
E156: 23 | F156: 25 | G156: 5.3 | H156: 45010.8 | I156: 1098.346586 | J156: 210.0449123 | K156: 768.5848107 | L156: 0.1132556795 | M156: 0.3978671819 | N156: 471.7084 | P156: 444.2222 | R156: 503145.6984 | S156: 0.3293132024 | T156: 19.07966417 | U156: 5.229103498
E157: 24 | F157: 25 | G157: 5.3 | H157: 50012 | I157: 1136.104847 | J157: 199.2883929 | K157: 768.5848107 | L157: 0.1041139709 | M157: 0.3978671819 | N157: 504.9678 | P157: 477.1777 | R157: 503145.6984 | S157: 0.3125867613 | T157: 20.10061233 | U157: 5.700807914
E158: 25 | F158: 25 | G158: 5.3 | H158: 5001.2 | I158: 738.1732938 | J158: 186.2938838 | K158: 768.5848107 | L158: 0.09092429559 | M158: 0.3978671819 | N158: 372.4212 | P158: 344.2506 | R158: 503145.6984 | S158: 0.9469532411 | T158: 6.635158986 | U158: 3.96241293
E159: 26 | F159: 30 | G159: 6 | H159: 14403.2 | I159: 1284.066198 | J159: 318.1263886 | K159: 781.9093897 | L159: 0.09951245771 | M159: 0.2739348965 | N159: 354.5902 | P159: 328.7607 | R159: 724529.8057 | S159: 0.685449955 | T159: 9.166512101 | U159: 4.036339782
E160: 27 | F160: 30 | G160: 6 | H160: 21604.8 | I160: 1350.668794 | J160: 339.7614199 | K160: 781.9093897 | L160: 0.1093663467 | M160: 0.2739348965 | N160: 355.3963 | P160: 329.792 | R160: 724529.8057 | S160: 0.564189225 | T160: 11.13666307 | U160: 3.9753448
E161: 28 | F161: 30 | G161: 6 | H161: 28806.4 | I161: 1412.314563 | J161: 332.0338387 | K161: 781.9093897 | L161: 0.1166910286 | M161: 0.2739348965 | N161: 373.9431 | P161: 348.2693 | R161: 724529.8057 | S161: 0.490596077 | T161: 12.80724735 | U161: 4.253525992
E162: 29 | F162: 30 | G162: 6 | H162: 36008 | I162: 1470.792648 | J162: 305.8896158 | K162: 781.9093897 | L162: 0.1135538898 | M162: 0.2739348965 | N162: 407.3554 | P162: 381.4024 | R162: 724529.8057 | S162: 0.4398830341 | T162: 14.28376368 | U162: 4.808246412
E163: 30 | F163: 30 | G163: 6 | H163: 43209.6 | I163: 1527.020627 | J163: 275.4504214 | K163: 781.9093897 | L163: 0.09829199736 | M163: 0.2739348965 | N163: 471.5102 | P163: 445.1603 | R163: 724529.8057 | S163: 0.4022181067 | T163: 15.62133878 | U163: 5.54372224
E164: 31 | F164: 30 | G164: 6 | H164: 50411.2 | I164: 1581.543588 | J164: 282.3588836 | K164: 781.9093897 | L164: 0.09673549276 | M164: 0.2739348965 | N164: 476.3027 | P164: 450.0512 | R164: 724529.8057 | S164: 0.3728210305 | T164: 16.85308712 | U164: 5.601182323
E165: 32 | F165: 30 | G165: 6 | H165: 57612.8 | I165: 1634.716681 | J165: 257.7034884 | K165: 781.9093897 | L165: 0.08746772874 | M165: 0.2739348965 | N165: 526.0817 | P165: 499.4637 | R165: 724529.8057 | S165: 0.3490513792 | T165: 18.00074626 | U165: 6.343401446
E166: 33 | F166: 30 | G166: 6 | H166: 64814.4 | I166: 1686.786598 | J166: 260.7269872 | K166: 781.9093897 | L166: 0.08397534107 | M166: 0.2739348965 | N166: 535.0819 | P166: 508.5157 | R166: 724529.8057 | S166: 0.3293160966 | T166: 19.07949648 | U166: 6.469551217
E167: 34 | F167: 30 | G167: 6 | H167: 72016 | I167: 1737.932951 | J167: 241.3872312 | K167: 781.9093897 | L167: 0.07682366008 | M167: 0.2739348965 | N167: 583.9189 | P167: 557.0202 | R167: 724529.8057 | S167: 0.3125895115 | T167: 20.10043548 | U167: 7.199771681
E168: 35 | F168: 30 | G168: 6 | H168: 7201.6 | I168: 1207.88775 | J168: 205.7777048 | K168: 781.9093897 | L168: 0.06180273982 | M168: 0.2739348965 | N168: 477.8919 | P168: 450.293 | R168: 724529.8057 | S168: 0.9469608873 | T168: 6.635105411 | U168: 5.869866955
A171: Configuration Comparisons | E171: 1-Body
M172: Grid Connected | O172: Blue Economy
E173: Device Index | F173: Diameter | G173: Height | H173: Volume | I173: Pavg-Mech | J173: Pavg-Upper | K173: P/V | L173: P/V - Theory | M173: LCoE | N173: LCoE - Upper Limit | O173: LCoE | P173: LCoE - Upper Limit
E174: 6 | F174: 2 | G174: 1 | H174: 3.141592654 | I174: 2.838470149 | J174: 2.817213858 | K174: 1.133039378 | L174: 1.120933778 | M174: 573.1897 | N174: 576.9286 | O174: 223.6543 | P174: 224.9513
E175: 7 | F175: 3 | G175: 1.5 | H175: 10.60287521 | I175: 5.716279495 | J175: 9.50809677 | K175: 0.6863164813 | L175: 1.120933778 | M175: 349.9866 | N175: 244.5993 | O175: 162.9375 | P175: 121.8078
E176: 8 | F176: 4 | G176: 2 | H176: 25.13274123 | I176: 9.641581641 | J176: 22.53664027 | K176: 0.4891295372 | L176: 1.120880531 | M176: 268.1017 | N176: 165.0923 | O176: 146.6543 | P176: 98.9546
E177: 9 | F177: 5 | G177: 2.5 | H177: 49.08738521 | I177: 13.77389625 | J177: 43.94925187 | K177: 0.3607776655 | L177: 1.119158509 | M177: 240.9157 | N177: 137.3378 | O177: 148.364 | P177: 91.8499
E178: 10 | F178: 8 | G178: 2.9 | H178: 145.7698991 | I178: 30.7812056 | J178: 125.6514792 | K178: 0.2707020859 | L178: 1.077481359 | M178: 197.082 | N178: 119.9027 | O178: 142.2293 | P178: 89.0209
E179: 11 | F179: 11 | G179: 3.3 | H179: 313.6094866 | I179: 51.09252412 | J179: 239.2225178 | K179: 0.2103171272 | L179: 0.9535047887 | M179: 200.5792 | N179: 120.1346 | O179: 158.149 | P179: 93.206
E180: 12 | F180: 14 | G180: 3.7 | H180: 569.5707481 | I180: 73.26602398 | J180: 369.4861174 | K180: 0.1669797956 | L180: 0.8108905566 | M180: 217.9335 | N180: 123.4561 | O180: 181.2956 | P180: 98.1167
E181: 13 | F181: 17 | G181: 4.1 | H181: 930.6182838 | I181: 67.00935487 | J181: 510.1695506 | K181: 0.09403850798 | L181: 0.6856597017 | M181: 307.9562 | N181: 130.0122 | O181: 270.05 | P181: 105.3974
E182: 14 | F182: 24 | G182: 5.3 | H182: 2397.663513 | I182: 171.8776202 | J182: 760.788574 | K182: 0.09328007012 | L182: 0.4207826994 | M182: 310.3128 | N182: 155.8005 | O182: 281.6715 | P182: 131.7628
E183: 15 | F183: 30 | G183: 6 | H183: 4241.150082 | I183: 203.8830679 | J183: 781.9093897 | K183: 0.06380507829 | L183: 0.2739348965 | M183: 417.275 | N183: 194.1944 | O183: 389.6199 | P183: 170.2134
E185: 2-Body
N186: Grid Connected | P186: Blue Economy | R186: AM | S186: Omega | T186: T
E187: Device Index | F187: Diameter | G187: Height | H187: React Mass | I187: Volume | J187: Pavg-Mech | K187: Pavg-Upper | L187: P/V | M187: P/V - Theory | N187: LCoE | P187: LCoE | R187: (kg) | S187: (rad/s) | T187: s
E188: 43 | F188: 2 | G188: 1 | H188: 32 | I188: 7.502640717 | J188: 4.771847961 | K188: 2.817213858 | L188: 1.898657977 | M188: 1.120933778 | N188: 545.9384 | O188: 0 | P188: 327.0527 | Q188: 0 | R188: 3220.13247 | S188: 0.9470564804 | T188: 6.634435682
E189: 46 | F189: 3 | G189: 1.5 | H189: 144 | I189: 16.83120862 | J189: 14.38258006 | K189: 9.50809677 | L189: 1.695599046 | M189: 1.120933778 | N189: 325.2703 | O189: 0 | P189: 235.5542 | Q189: 0 | R189: 7245.298057 | S189: 0.6855224639 | T189: 9.165542544
E190: 69 | F190: 4 | G190: 2 | H190: 256 | I190: 25.07511971 | J190: 24.80090173 | K190: 22.53664027 | L190: 1.235148669 | M190: 1.120880531 | N190: 265.6975 | O190: 0 | P190: 203.3827 | Q190: 0 | R190: 12880.52988 | S190: 0.6855224639 | T190: 9.165542544
E191: 62 | F191: 5 | G191: 2.5 | H191: 400 | I191: 35.367776 | J191: 35.18564202 | K191: 43.94925187 | L191: 0.905801847 | M191: 1.119158509 | N191: 246.0238 | O191: 0 | P191: 195.0689 | Q191: 0 | R191: 20125.82794 | S191: 0.6855224639 | T191: 9.165542544
E192: 75 | F192: 8 | G192: 2.9 | H192: 1024 | I192: 69.66449857 | J192: 54.35884294 | K192: 125.6514792 | L192: 0.4744044588 | M192: 1.077481359 | N192: 256.9195 | O192: 0 | P192: 215.6444 | Q192: 0 | R192: 51522.11952 | S192: 0.6855224639 | T192: 9.165542544
E193: 85 | F193: 11 | G193: 3.3 | H193: 1936.8 | I193: 122.5193988 | J193: 112.8835748 | K193: 239.2225178 | L193: 0.4690931115 | M193: 0.9535047887 | N193: 215.5111 | O193: 0 | P193: 183.7374 | Q193: 0 | R193: 97409.00722 | S193: 0.6853876518 | T193: 9.167345357
E194: 101 | F194: 14 | G194: 3.7 | H194: 4705.2 | I194: 221.5089109 | J194: 160.9723543 | K194: 369.4861174 | L194: 0.3793745094 | M194: 0.8108905566 | N194: 231.4775 | O194: 0 | P194: 202.4011 | Q194: 0 | R194: 157786.491 | S194: 0.5641802529 | T194: 11.13684018
E195: 113 | F195: 17 | G195: 4.1 | H195: 6937.2 | I195: 335.1470409 | J195: 144.8988392 | K195: 510.1695506 | L195: 0.2049928397 | M195: 0.6856597017 | N195: 296.1453 | O195: 0 | P195: 266.3465 | Q195: 0 | R195: 232654.571 | S195: 0.5642026544 | T195: 11.13639799
E196: 16 | F196: 25 | G196: 5.3 | H196: 10002.4 | I196: 796.7918199 | J196: 255.5312631 | K196: 768.5848107 | L196: 0.1300674218 | M196: 0.3978671819 | N196: 318.7338 | O196: 0 | P196: 292.0815 | Q196: 0 | R196: 503145.6984 | S196: 0.6854441553 | T196: 9.166589661
E197: 26 | F197: 30 | G197: 6 | H197: 14403.2 | I197: 1284.066198 | J197: 318.1263886 | K197: 781.9093897 | L197: 0.09951245771 | M197: 0.2739348965 | N197: 354.5902 | O197: 0 | P197: 328.7607 | Q197: 0 | R197: 724529.8057 | S197: 0.685449955 | T197: 9.166512101
A200: Plant Capacity vs. LCoE
E201: Plant Capacity | G201: LCoE
E202: 1 | G202: 1046.418
E203: 2 | G203: 675.391
E204: 4 | G204: 413.4272
E205: 10 | G205: 312.1935
E206: 20 | G206: 276.8207
E207: 40 | G207: 253.4371
E208: 80 | G208: 238.298
E209: 160 | G209: 227.8179
E210: 320 | G210: 220.0212
E211: 640 | G211: 213.8133
A213: Sensitivity to Capacity Factor
E214: Capacity Factor | F214: LCoE
E215: 0.1 | F215: 420.3145
E216: 0.2 | F216: 277.9889
E217: 0.3 | F217: 234.5344
E218: 0.4 | F218: 217.5991
E219: 0.5 | F219: 214.2978
E220: 0.6 | F220: 219.2233
... 119 more rows

Sheet Case 3
A2: CAPEX
E3: Cost | H3: Economics | K3: Uncertainty | M3: Multiplier
E4: $/Farm | F4: $/WEC | G4: $/kW | H4: $/MWh | I4: in % | J4: in % Total | K4: +% | L4: -% | M4: MC
C5: 1.1 | D5: Marine Energy Converter (MEC) | E5: 198517098.2 | F5: 830730.6478 | G5: 1985.170982 | H5: 56.74621254 | I5: 0.6282161545 | J5: 0.4376442719
C6: 1.1.1 | D6: Structural Assembly | E6: 25892251.46 | F6: 108350.8022 | G6: 258.9225146 | H6: 7.401313126 | I6: 0.08193717716 | J6: 0.05708120682 | K6: 0.5 | L6: -0.5 | M6: 1
C7: 1.1.2 | D7: Power Take-Off System (PTO) | E7: 142577324.2 | F7: 596640.5616 | G7: 1425.773242 | H7: 40.75579998 | I7: 0.4511922609 | J7: 0.3143212843 | K7: 0.5 | L7: -0.5 | M7: 1
C8: 1.1.3 | D8: Mooring, Foundation, and Sub-Structure | E8: 30047522.47 | F8: 125739.2841 | G8: 300.4752247 | H8: 8.589099437 | I8: 0.0950867164 | J8: 0.06624178075 | K8: 0.5 | L8: -0.5 | M8: 1
C9: 1.2 | D9: Balance of System (BOS) | E9: 88756777.18 | F9: 371418.7628 | G9: 887.5677718 | H9: 25.37116948 | I9: 0.2808747546 | J9: 0.2769334097
C10: 1.2.1 | D10: Project Development | E10: 14546076.02 | F10: 60870.68201 | G10: 145.4607602 | H10: 4.15800316 | I10: 0.04603170218 | J10: 0.03206780125 | K10: 1 | L10: -0.5 | M10: 1
C11: 1.2.2 | D11: Engineering and Management | E11: 5632821.085 | F11: 23571.55707 | G11: 56.32821085 | H11: 1.610144745 | I11: 0.01782531194 | J11: 0.01241793229 | K11: 1 | L11: -0.5 | M11: 1
C12: 1.2.3 | D12: Electrical Infrastructure | E12: 31716614.43 | F12: 132723.9008 | G12: 317.1661443 | H12: 9.066210215 | I12: 0.1003686319 | J12: 0.06992140605 | K12: 1 | L12: -0.5 | M12: 1
C13: 1.2.6 | D13: Assembly & Installation | E13: 36861265.64 | F13: 154252.6229 | G13: 368.6126564 | H13: 10.53681136 | I13: 0.1166491086 | J13: 0.08126313508 | K13: 1 | L13: -0.5 | M13: 1
C14: 1.2.6.1 | D14: Device | E14: 19812750.16 | F14: 82910.03106 | G14: 198.1275016 | H14: 5.663484617 | I14: 0.06269832588 | J14: 0.04367853801 | K14: 1 | L14: -0.5 | M14: 1
C15: 1.2.6.2 | D15: Subsea Cables | E15: 17048515.48 | F15: 71342.59187 | G15: 170.4851548 | H15: 4.873326742 | I15: 0.05395078276 | J15: 0.03758459707 | K15: 1 | L15: -0.5 | M15: 1
C16: 1.3 | D16: Financial Costs | E16: 28727387.54 | F16: 120214.9411 | G16: 287.2738754 | H16: 8.211738202 | I16: 0.09090909091 | J16: 0.06333145466
C17: 1.3.2 | D17: Insurance During Construction | E17: 5745477.507 | F17: 24042.98821 | G17: 57.45477507 | H17: 1.64234764 | I17: 0.01818181818 | J17: 0.01266629093 | K17: 0.5 | L17: -0.3 | M17: 1
C18: 1.3.3 | D18: Construction Financing Costs | E18: 22981910.03 | F18: 96171.95285 | G18: 229.8191003 | H18: 6.569390562 | I18: 0.07272727273 | J18: 0.05066516372 | K18: 0.5 | L18: -0.3 | M18: 1
C20: Total CAPEX | E20: 470346693.2 | F20: 1968250.679 | G20: 3160.012629 | H20: 90.32912022 | I20: 1 | J20: 0.7779091363
A22: OPEX
E23: Cost | H23: Economics | K23: Uncertainty | M23: Multiplier
E24: $/Farm | F24: $/WEC | G24: $/kW | H24: $/MWh | I24: in % | K24: +% | L24: -% | M24: MC
C25: 2.1 | D25: Operations | E25: 4824466.932 | F25: 20188.85314 | G25: 32.81012629 | H25: 19.70109005 | I25: 0.5008698618 | J25: 0.1519408754
C26: 2.1.1 | D26: Environmental Monitoring | E26: 121000 | F26: 506.3463516 | G26: 1.21 | H26: 0.4941130138 | I26: 0.01256206211 | J26: 0.003810751775 | K26: 1 | L26: -0.5 | M26: 1
C27: 2.1.3 | D27: Insurance | E27: 4703466.932 | F27: 19682.50679 | G27: 31.60012629 | H27: 19.20697704 | I27: 0.4883077996 | J27: 0.1481301237 | K27: 1 | L27: -0.5 | M27: 1
C28: 2.2 | D28: Maintenance | E28: 4807709.608 | F28: 20118.72909 | G28: 48.07709608 | H28: 19.6326602 | I28: 0.4991301382 | J28: 0.1514131233 | K28: 1 | L28: -0.5 | M28: 1
C30: Total OPEX | E30: 9632176.541 | F30: 40307.58223 | G30: 80.88722237 | H30: 39.33375025 | I30: 1 | J30: 0.3033539988
C32: $/MWh | H32: 129.6628705
C34: Technology LCoE | E34: 256568412.4 | F34: 1073656.856 | G34: 2550.249581 | H34: 109.4610726 | I34: 1.769261509 | J34: 0.8441975116
A36: Tables for Plots
D37: LCOE Table | E37: % | F37: LCoE | I37: CAPEX | J37: %
D38: Structural Assembly | E38: 0.05708120682 | F38: 7.401313126 | I38: Structural Assembly | J38: 0.08193717716
D39: Power Take-Off System (PTO) | E39: 0.3143212843 | F39: 40.75579998 | I39: Power Take-Off System (PTO) | J39: 0.4511922609
D40: Mooring, Foundation, and Sub-Structure | E40: 0.06624178075 | F40: 8.589099437 | I40: Mooring, Foundation, and Sub-Structure | J40: 0.0950867164
D41: Device Installation | E41: 0.04367853801 | F41: 5.663484617 | I41: Device Installation | J41: 0.06269832588
D42: Project Development | E42: 0.03206780125 | F42: 4.15800316 | I42: Project Development | J42: 0.04603170218
D43: Engineering and Management | E43: 0.01241793229 | F43: 1.610144745 | I43: Engineering and Management | J43: 0.01782531194
D44: Subsea Cables | E44: 0.1075060031 | F44: 13.93953696 | I44: Subsea Cables | J44: 0.1543194146
D45: Construction Financing and Insurance | E45: 0.06333145466 | F45: 8.211738202 | I45: Construction Financing and Insurance | J45: 0.09090909091
D46: Operations | E46: 0.1519408754 | F46: 19.70109005
D47: Annual Maintennce & Repair | E47: 0.1514131233 | F47: 19.6326602
E49: 1 | F49: 129.6628705 | G49: /MWh | J49: 1
A51: Study 1 - Device Trade-Offs - 1-Body WEC | M51: Grid Connected | O51: Blue Economy | Q51: Steel Mass | R51: M/P
E52: Device Index | F52: Diameter | G52: Height | H52: Volume | I52: Pavg-Mech | J52: Pavg-Upper | K52: P/V | L52: P/V - Theory | M52: LCoE | N52: LCoE - Upper Limit | O52: LCoE | P52: LCoE - Upper Limit | Q52: mT | R52: mT/kW
E53: 6 | F53: 2 | G53: 1 | H53: 3.141592654 | I53: 2.838470149 | J53: 2.817213858 | K53: 1.133039378 | L53: 1.120933778 | M53: 67284.5907 | N53: 67788.999 | O53: 1131.1274 | P53: 1138.8882 | Q53: 0.7238229474 | R53: 0.2550046009
E54: 7 | F54: 3 | G54: 1.5 | H54: 10.60287521 | I54: 5.716279495 | J54: 9.50809677 | K54: 0.6863164813 | L54: 1.120933778 | M54: 33654.4081 | N54: 20351.5256 | O54: 669.1381 | P54: 445.9906 | Q54: 2.080990974 | R54: 0.3640464004
E55: 8 | F55: 4 | G55: 2 | H55: 25.13274123 | I55: 9.641581641 | J55: 22.53664027 | K55: 0.4891295372 | L55: 1.120880531 | M55: 20133.4542 | N55: 8749.8514 | O55: 501.2348 | P55: 277.0016 | Q55: 5.096919921 | R55: 0.5286393987
E56: 9 | F56: 5 | G56: 2.5 | H56: 49.08738521 | I56: 13.77389625 | J56: 43.94925187 | K56: 0.3607776655 | L56: 1.119158509 | M56: 14235.9821 | N56: 4607.5215 | O56: 449.5889 | P56: 215.7569 | Q56: 10.0059726 | R56: 0.7264446036
E57: 10 | F57: 8 | G57: 2.9 | H57: 145.7698991 | I57: 30.7812056 | J57: 125.6514792 | K57: 0.2707020859 | L57: 1.077481359 | M57: 6598.6978 | N57: 1759.3812 | O57: 367.6674 | P57: 172.6362 | Q57: 27.21815556 | R57: 0.8842459233
E58: 11 | F58: 11 | G58: 3.3 | H58: 313.6094866 | I58: 51.09252412 | J58: 239.2225178 | K58: 0.2103171272 | L58: 0.9535047887 | M58: 4223.6545 | N58: 1045.0827 | O58: 433.6986 | P58: 178.6568 | Q58: 61.5733897 | R58: 1.205135012
E59: 12 | F59: 14 | G59: 3.7 | H59: 569.5707481 | I59: 73.26602398 | J59: 369.4861174 | K59: 0.1669797956 | L59: 0.8108905566 | M59: 3175.8716 | N59: 772.657 | O59: 508.1491 | P59: 188.3213 | Q59: 118.3144905 | R59: 1.614861624
E60: 13 | F60: 17 | G60: 4.1 | H60: 930.6182838 | I60: 67.00935487 | J60: 510.1695506 | K60: 0.09403850798 | L60: 0.6856597017 | M60: 3714.5275 | N60: 642.0012 | O60: 805.1193 | P60: 200.7861 | Q60: 203.8922619 | R60: 3.042743245
E61: 14 | F61: 24 | G61: 5.3 | H61: 2397.663513 | I61: 171.8776202 | J61: 760.788574 | K61: 0.09328007012 | L61: 0.4207826994 | M61: 1961.5945 | N61: 578.2496 | O61: 782.6013 | P61: 261.3662 | Q61: 581.5772618 | R61: 3.383670666
E62: 15 | F62: 30 | G62: 6 | H62: 4241.150082 | I62: 203.8830679 | J62: 781.9093897 | K62: 0.06380507829 | L62: 0.2739348965 | M62: 2095.2434 | N62: 674.933 | O62: 1090.5638 | P62: 364.9868 | Q62: 1073.506157 | R62: 5.265303136
I68: Steel Mass | N68: Grid Connected | P68: Blue Economy | R68: AM | S68: Omega | T68: T | U68: M/P
A69: Study 2 - Device Trade-Offs - 2-Body WEC | E69: Device Index | F69: Diameter | G69: Height | H69: React Mass | I69: mT | J69: Pavg-Mech | K69: Pavg-Upper | L69: P/V | M69: P/V - Theory | N69: LCoE | P69: LCoE | R69: (kg) | S69: (rad/s) | T69: s | U69: mT/kW
E70: 36 | F70: 2 | G70: 1 | H70: 128 | I70: 14.59270141 | J70: 5.040006117 | K70: 2.817213858 | L70: 2.005354717 | M70: 1.120933778 | N70: 39567.0252 | P70: 2185.8125 | R70: 3220.13247 | S70: 0.4906492472 | T70: 12.80585947 | U70: 2.89537375
E71: 37 | F71: 2 | G71: 1 | H71: 160 | I71: 16.31184743 | J71: 4.6977289 | K71: 2.817213858 | L71: 1.869166939 | M71: 1.120933778 | N71: 42718.2177 | P71: 2631.2467 | R71: 3220.13247 | S71: 0.4399309431 | T71: 14.28220816 | U71: 3.472283689
E72: 38 | F72: 2 | G72: 1 | H72: 192 | I72: 17.88100315 | J72: 4.506856548 | K72: 2.817213858 | L72: 1.793287538 | M72: 1.120933778 | N72: 44789.7735 | P72: 3015.6296 | R72: 3220.13247 | S72: 0.402262058 | T72: 15.61963198 | U72: 3.967511048
E73: 39 | F73: 2 | G73: 1 | H73: 224 | I73: 19.3365035 | J73: 4.243243192 | K73: 2.817213858 | L73: 1.688522516 | M73: 1.120933778 | N73: 47820.4932 | P73: 3467.4502 | R73: 3220.13247 | S73: 0.3728618657 | T73: 16.8512414 | U73: 4.557010435
E74: 40 | F74: 2 | G74: 1 | H74: 256 | I74: 20.70202274 | J74: 4.239930327 | K74: 2.817213858 | L74: 1.687561084 | M74: 1.120933778 | N74: 48110.525 | P74: 3723.0367 | R74: 3220.13247 | S74: 0.3490896788 | T74: 17.99877134 | U74: 4.882632766
E75: 41 | F75: 2 | G75: 1 | H75: 288 | I75: 21.99400504 | J75: 4.194225731 | K75: 2.817213858 | L75: 1.66889171 | M75: 1.120933778 | N75: 48871.0198 | P75: 4002.777 | R75: 3220.13247 | S75: 0.3293522807 | T75: 19.07740033 | U75: 5.243877285
E76: 42 | F76: 2 | G76: 1 | H76: 320 | I76: 23.2244233 | J76: 4.067772837 | K76: 2.817213858 | L76: 1.61875697 | M76: 1.120933778 | N76: 50613.0374 | P76: 4358.4098 | R76: 3220.13247 | S76: 0.3126238958 | T76: 20.09822471 | U76: 5.709370761
E77: 43 | F77: 2 | G77: 1 | H77: 32 | I77: 7.502640717 | J77: 4.771847961 | K77: 2.817213858 | L77: 1.898657977 | M77: 1.120933778 | N77: 40528.6883 | P77: 1060.543 | R77: 3220.13247 | S77: 0.9470564804 | T77: 6.634435682 | U77: 1.572271535
E78: 44 | F78: 2 | G78: 1 | H78: 64 | I78: 10.40167992 | J78: 5.439684017 | K78: 2.817213858 | L78: 2.164381501 | M78: 1.120933778 | N78: 36055.7645 | P78: 1404.0062 | R78: 3220.13247 | S78: 0.6855224639 | T78: 9.165542544 | U78: 1.912184584
E79: 45 | F79: 2 | G79: 1 | H79: 96 | I79: 12.66239985 | J79: 5.367540416 | K79: 2.817213858 | L79: 2.135676474 | M79: 1.120933778 | N79: 36881.5482 | P79: 1767.1786 | R79: 3220.13247 | S79: 0.5642498749 | T79: 11.13546602 | U79: 2.359069307
E80: 46 | F80: 3 | G80: 1.5 | H80: 144 | I80: 16.83120862 | J80: 14.38258006 | K80: 9.50809677 | L80: 1.695599046 | M80: 1.120933778 | N80: 14143.3637 | P80: 934.6135 | R80: 7245.298057 | S80: 0.6855224639 | T80: 9.165542544 | U80: 1.170249604
E81: 47 | F81: 3 | G81: 1.5 | H81: 216 | I81: 20.33900462 | J81: 13.17549628 | K81: 9.50809677 | L81: 1.554018627 | M81: 1.120933778 | N81: 15628.5269 | P81: 1222.1878 | R81: 7245.298057 | S81: 0.5642498749 | T81: 11.13546602 | U81: 1.543699318
E82: 48 | F82: 3 | G82: 1.5 | H82: 288 | I82: 23.35117306 | J82: 11.79391006 | K82: 9.50809677 | L82: 1.392504956 | M82: 1.120933778 | N82: 17630.2992 | P82: 1552.8136 | R82: 7245.298057 | S82: 0.4906492472 | T82: 12.80585947 | U82: 1.979934808
E83: 49 | F83: 3 | G83: 1.5 | H83: 360 | I83: 26.04660819 | J83: 10.48554837 | K83: 9.50809677 | L83: 1.241189544 | M83: 1.120933778 | N83: 19996.2937 | P83: 1931.5369 | R83: 7245.298057 | S83: 0.4399309431 | T83: 14.28220816 | U83: 2.484048261
E84: 50 | F84: 3 | G84: 1.5 | H84: 432 | I84: 28.51705786 | J84: 9.824047094 | K84: 9.50809677 | L84: 1.167132661 | M84: 1.120933778 | N84: 21516.8585 | P84: 2246.2769 | R84: 7245.298057 | S84: 0.402262058 | T84: 15.61963198 | U84: 2.902781062
E85: 51 | F85: 3 | G85: 1.5 | H85: 576 | I85: 32.98201944 | J85: 9.828426403 | K85: 9.50809677 | L85: 1.166681948 | M85: 1.120933778 | N85: 21848.888 | P85: 2586.7997 | R85: 7245.298057 | S85: 0.3490896788 | T85: 17.99877134 | U85: 3.355778239
E86: 52 | F86: 3 | G86: 1.5 | H86: 648 | I86: 35.03670899 | J86: 8.932230813 | K86: 9.50809677 | L86: 1.060855618 | M86: 1.120933778 | N86: 24183.542 | P86: 3005.6209 | R86: 7245.298057 | S86: 0.3293522807 | T86: 19.07740033 | U86: 3.922503764
E87: 53 | F87: 3 | G87: 1.5 | H87: 720 | I87: 36.99905248 | J87: 8.173177168 | K87: 9.50809677 | L87: 0.9808987299 | M87: 1.120933778 | N87: 26580.1458 | P87: 3451.1716 | R87: 7245.298057 | S87: 0.3126238958 | T87: 20.09822471 | U87: 4.526887368
E88: 54 | F88: 3 | G88: 1.5 | H88: 72 | I88: 12.36593373 | J88: 11.44865347 | K88: 9.50809677 | L88: 1.350385236 | M88: 1.120933778 | N88: 17386.7033 | P88: 828.8046 | R88: 7245.298057 | S88: 0.9470564804 | T88: 6.634435682 | U88: 1.080121235
E89: 65 | F89: 4 | G89: 2 | H89: 1024 | I89: 47.54326292 | J89: 13.69668063 | K89: 22.53664027 | L89: 0.7144768798 | M89: 1.120880531 | N89: 16440.8209 | P89: 2577.4187 | R89: 12880.52988 | S89: 0.3490896788 | T89: 17.99877134 | U89: 3.471152186
E90: 66 | F90: 4 | G90: 2 | H90: 1152 | I90: 50.43847044 | J90: 13.38854607 | K90: 22.53664027 | L90: 0.6913240379 | M90: 1.120880531 | N90: 16966.2398 | P90: 2786.8717 | R90: 12880.52988 | S90: 0.3293522807 | T90: 19.07740033 | U90: 3.767285125
E91: 67 | F91: 4 | G91: 2 | H91: 1280 | I91: 53.2105499 | J91: 13.22194603 | K91: 22.53664027 | L91: 0.6791627524 | M91: 1.120880531 | N91: 17323.2992 | P91: 2966.9991 | R91: 12880.52988 | S91: 0.3126238958 | T91: 20.09822471 | U91: 4.024411366
E92: 68 | F92: 4 | G92: 2 | H92: 128 | I92: 18.96579839 | J92: 18.79026679 | K92: 22.53664027 | L92: 0.9363566188 | M92: 1.120880531 | N92: 10899.4712 | P92: 759.9962 | R92: 12880.52988 | S92: 0.9470564804 | T92: 6.634435682 | U92: 1.009341623
E93: 69 | F93: 4 | G93: 2 | H93: 256 | I93: 25.07511971 | J93: 24.80090173 | K93: 22.53664027 | L93: 1.235148669 | M93: 1.120880531 | N93: 8507.3211 | P93: 798.1819 | R93: 12880.52988 | S93: 0.6855224639 | T93: 9.165542544 | U93: 1.011056775
E94: 70 | F94: 4 | G94: 2 | H94: 384 | I94: 29.90780251 | J94: 23.31215093 | K94: 22.53664027 | L94: 1.16203225 | M94: 1.120880531 | N94: 9197.2788 | P94: 1002.613 | R94: 12880.52988 | S94: 0.5642498749 | T94: 11.13546602 | U94: 1.282927629
E95: 71 | F95: 4 | G95: 2 | H95: 512 | I95: 34.07964856 | J95: 20.68762063 | K95: 22.53664027 | L95: 1.039124233 | M95: 1.120880531 | N95: 10488.8138 | P95: 1268.6505 | R95: 12880.52988 | S95: 0.4906492472 | T95: 12.80585947 | U95: 1.647345008
E96: 72 | F96: 4 | G96: 2 | H96: 640 | I96: 37.82918353 | J96: 19.092121 | K96: 22.53664027 | L96: 0.9652522527 | M96: 1.120880531 | N96: 11492.8409 | P96: 1511.7551 | R96: 12880.52988 | S96: 0.4399309431 | T96: 14.28220816 | U96: 1.98140288
E97: 73 | F97: 4 | G97: 2 | H97: 768 | I97: 41.27873788 | J97: 16.51445451 | K97: 22.53664027 | L97: 0.8427701956 | M97: 1.120880531 | N97: 13403.4007 | P97: 1883.5188 | R97: 12880.52988 | S97: 0.402262058 | T97: 15.61963198 | U97: 2.499552004
E98: 74 | F98: 4 | G98: 2 | H98: 896 | I98: 44.50098152 | J98: 16.1249058 | K98: 22.53664027 | L98: 0.8215209356 | M98: 1.120880531 | N98: 13866.085 | P98: 2070.8882 | R98: 12880.52988 | S98: 0.3728618657 | T98: 16.8512414 | U98: 2.759766914
E99: 55 | F99: 5 | G99: 2.5 | H99: 1000 | I99: 51.89393626 | J99: 26.82545139 | K99: 43.94925187 | L99: 0.7138767623 | M99: 1.119158509 | N99: 8544.5247 | P99: 1409.3004 | R99: 20125.82794 | S99: 0.4399309431 | T99: 14.28220816 | U99: 1.934503748
E100: 56 | F100: 5 | G100: 2.5 | H100: 1200 | I100: 56.40040602 | J100: 22.61787705 | K100: 43.94925187 | L100: 0.6133248627 | M100: 1.119158509 | N100: 10234.066 | P100: 1791.4097 | R100: 20125.82794 | S100: 0.402262058 | T100: 15.61963198 | U100: 2.493620683
E101: 57 | F101: 5 | G101: 2.5 | H101: 1400 | I101: 60.6227374 | J101: 21.70523422 | K101: 43.94925187 | L101: 0.5958561442 | M101: 1.119158509 | N101: 10790.0102 | P101: 1997.04 | R101: 20125.82794 | S101: 0.3728618657 | T101: 16.8512414 | U101: 2.793000839
E102: 58 | F102: 5 | G102: 2.5 | H102: 1600 | I102: 64.62011599 | J102: 20.01014081 | K102: 43.94925187 | L102: 0.5454920135 | M102: 1.119158509 | N102: 11822.012 | P102: 2293.612 | R102: 20125.82794 | S102: 0.3490896788 | T102: 17.99877134 | U102: 3.229368379
E103: 59 | F103: 5 | G103: 2.5 | H103: 1800 | I103: 68.43365222 | J103: 18.54918876 | K103: 43.94925187 | L103: 0.5043767179 | M103: 1.119158509 | N103: 12874.1809 | P103: 2604.3729 | R103: 20125.82794 | S103: 0.3293522807 | T103: 19.07740033 | U103: 3.689307016
E104: 60 | F104: 5 | G104: 2.5 | H104: 2000 | I104: 72.09327836 | J104: 18.87113777 | K104: 43.94925187 | L104: 0.5045854705 | M104: 1.119158509 | N104: 12787.4206 | P104: 2690.8589 | R104: 20125.82794 | S104: 0.3126238958 | T104: 20.09822471 | U104: 3.820293151
E105: 61 | F105: 5 | G105: 2.5 | H105: 200 | I105: 27.53659751 | J105: 25.04975257 | K105: 43.94925187 | L105: 0.6400829477 | M105: 1.119158509 | N105: 8406.4155 | P105: 772.7904 | R105: 20125.82794 | S105: 0.9470564804 | T105: 6.634435682 | U105: 1.099276228
E106: 62 | F106: 5 | G106: 2.5 | H106: 400 | I106: 35.367776 | J106: 35.18564202 | K106: 43.94925187 | L106: 0.905801847 | M106: 1.119158509 | N106: 6217.507 | P106: 754.4905 | R106: 20125.82794 | S106: 0.6855224639 | T106: 9.165542544 | U106: 1.005176372
E107: 63 | F107: 5 | G107: 2.5 | H107: 600 | I107: 41.60315632 | J107: 32.03501369 | K107: 43.94925187 | L107: 0.8307941057 | M107: 1.119158509 | N107: 6955.5961 | P107: 964.5428 | R107: 20125.82794 | S107: 0.5642498749 | T107: 11.13546602 | U107: 1.298677651
E108: 64 | F108: 5 | G108: 2.5 | H108: 800 | I108: 47.01249072 | J108: 30.04156843 | K108: 43.94925187 | L108: 0.7874190212 | M108: 1.119158509 | N108: 7535.6012 | P108: 1153.4406 | R108: 20125.82794 | S108: 0.4906492472 | T108: 12.80585947 | U108: 1.564914656
E109: 75 | F109: 8 | G109: 2.9 | H109: 1024 | I109: 69.66449857 | J109: 54.35884294 | K109: 125.6514792 | L109: 0.4744044588 | M109: 1.077481359 | N109: 4404.2756 | P109: 837.0061 | R109: 51522.11952 | S109: 0.6855224639 | T109: 9.165542544 | U109: 1.281566987
E110: 76 | F110: 8 | G110: 2.9 | H110: 1536 | I110: 80.57483585 | J110: 53.11801053 | K110: 125.6514792 | L110: 0.4660515515 | M110: 1.077481359 | N110: 4645.4895 | P110: 996.8419 | R110: 51522.11952 | S110: 0.5642498749 | T110: 11.13546602 | U110: 1.516902366
E111: 77 | F111: 8 | G111: 2.9 | H111: 2048 | I111: 90.16349968 | J111: 49.65923403 | K111: 125.6514792 | L111: 0.4418803561 | M111: 1.077481359 | N111: 5085.0812 | P111: 1188.184 | R111: 51522.11952 | S111: 0.4906492472 | T111: 12.80585947 | U111: 1.815644188
E112: 78 | F112: 8 | G112: 2.9 | H112: 2560 | I112: 98.90754132 | J112: 46.15343307 | K112: 125.6514792 | L112: 0.413108865 | M112: 1.077481359 | N112: 5579.9311 | P112: 1393.5194 | R112: 51522.11952 | S112: 0.4399309431 | T112: 14.28220816 | U112: 2.143015909
E113: 79 | F113: 8 | G113: 2.9 | H113: 3072 | I113: 107.0516217 | J113: 42.93160407 | K113: 125.6514792 | L113: 0.3803974549 | M113: 1.077481359 | N113: 6104.2306 | P113: 1610.233 | R113: 51522.11952 | S113: 0.402262058 | T113: 15.61963198 | U113: 2.493538829
E114: 80 | F114: 8 | G114: 2.9 | H114: 3584 | I114: 114.7410807 | J114: 41.24681234 | K114: 125.6514792 | L114: 0.3658094949 | M114: 1.077481359 | N114: 6461.043 | P114: 1787.1254 | R114: 51522.11952 | S114: 0.3728618657 | T114: 16.8512414 | U114: 2.781816926
E115: 81 | F115: 8 | G115: 2.9 | H115: 4096 | I115: 122.0706152 | J115: 39.09415737 | K115: 125.6514792 | L115: 0.3505351553 | M115: 1.077481359 | N115: 6919.6728 | P115: 1993.3859 | R115: 51522.11952 | S115: 0.3490896788 | T115: 17.99877134 | U115: 3.122477204
E116: 82 | F116: 8 | G116: 2.9 | H116: 4608 | I116: 129.106002 | J116: 38.36766151 | K116: 125.6514792 | L116: 0.3394770158 | M116: 1.077481359 | N116: 7115.9732 | P116: 2098.1415 | R116: 51522.11952 | S116: 0.3293522807 | T116: 19.07740033 | U116: 3.364969271
E117: 83 | F117: 8 | G117: 2.9 | H117: 5120 | I117: 135.8951326 | J117: 37.85734555 | K117: 125.6514792 | L117: 0.33378914 | M117: 1.077481359 | N117: 7230.8855 | P117: 2146.6474 | R117: 51522.11952 | S117: 0.3126238958 | T117: 20.09822471 | U117: 3.589663528
E118: 84 | F118: 8 | G118: 2.9 | H118: 512 | I118: 56.20088421 | J118: 44.1538506 | K118: 125.6514792 | L118: 0.3796519545 | M118: 1.077481359 | N118: 5154.9169 | P118: 782.9115 | R118: 51522.11952 | S118: 0.9470564804 | T118: 6.634435682 | U118: 1.272842197
E119: 85 | F119: 11 | G119: 3.3 | H119: 1936.8 | I119: 122.5193988 | J119: 112.8835748 | K119: 239.2225178 | L119: 0.4690931115 | M119: 0.9535047887 | N119: 2388.3328 | P119: 630.4458 | R119: 97409.00722 | S119: 0.6853876518 | T119: 9.167345357 | U119: 1.085360727
E120: 86 | F120: 11 | G120: 3.3 | H120: 2905.2 | I120: 138.8093268 | J120: 130.6669579 | K120: 239.2225178 | L120: 0.542230983 | M120: 0.9535047887 | N120: 2168.5306 | P120: 640.0949 | R120: 97409.00722 | S120: 0.5641371117 | T120: 11.13769184 | U120: 1.062313909
E121: 87 | F121: 11 | G121: 3.3 | H121: 3873.6 | I121: 153.2815784 | J121: 128.2782153 | K121: 239.2225178 | L121: 0.5408621048 | M121: 0.9535047887 | N121: 2275.3779 | P121: 719.8038 | R121: 97409.00722 | S121: 0.4905503909 | T121: 12.80844012 | U121: 1.194915115
E122: 88 | F122: 11 | G122: 3.3 | H122: 4842 | I122: 166.5922345 | J122: 101.126402 | K122: 239.2225178 | L122: 0.4392231274 | M122: 0.9535047887 | N122: 2854.4447 | P122: 900.6671 | R122: 97409.00722 | S122: 0.4398418686 | T122: 14.28510052 | U122: 1.647366377
E123: 89 | F123: 11 | G123: 3.3 | H123: 5810.4 | I123: 179.0777735 | J123: 85.39835753 | K123: 239.2225178 | L123: 0.386928231 | M123: 0.9535047887 | N123: 3363.7696 | P123: 1064.0403 | R123: 97409.00722 | S123: 0.4021803418 | T123: 15.62280563 | U123: 2.096969763
E124: 90 | F124: 11 | G124: 3.3 | H124: 6778.8 | I124: 190.938079 | J124: 81.58491751 | K124: 239.2225178 | L124: 0.3588500145 | M124: 0.9535047887 | N124: 3529.7191 | P124: 1126.0561 | R124: 97409.00722 | S124: 0.3727859431 | T124: 16.85467337 | U124: 2.340360018
E125: 91 | F125: 11 | G125: 3.3 | H125: 7747.2 | I125: 202.303386 | J125: 73.86310137 | K125: 239.2225178 | L125: 0.3373753352 | M125: 0.9535047887 | N125: 3897.3363 | P125: 1250.5425 | R125: 97409.00722 | S125: 0.3490184706 | T125: 18.00244353 | U125: 2.738896449
E126: 92 | F126: 11 | G126: 3.3 | H126: 8715.6 | I126: 213.2641563 | J126: 67.68368511 | K126: 239.2225178 | L126: 0.295370854 | M126: 0.9535047887 | N126: 4255.03 | P126: 1373.801 | R126: 97409.00722 | S126: 0.3292850058 | T126: 19.08129796 | U126: 3.150894576
E127: 93 | F127: 11 | G127: 3.3 | H127: 9684 | I127: 223.8862545 | J127: 67.62295678 | K127: 239.2225178 | L127: 0.2932284646 | M127: 0.9535047887 | N127: 4277.0299 | P127: 1393.2842 | R127: 97409.00722 | S127: 0.3125599672 | T127: 20.10233545 | U127: 3.310802502
E128: 94 | F128: 11 | G128: 3.3 | H128: 968.4 | I128: 102.7179895 | J128: 68.803649 | K128: 239.2225178 | L128: 0.2755052515 | M128: 0.9535047887 | N128: 3602.2866 | P128: 766.6792 | R128: 97409.00722 | S128: 0.9468787478 | T128: 6.635680991 | U128: 1.492914852
E129: 95 | F129: 14 | G129: 3.7 | H129: 10978.8 | I129: 294.3852263 | J129: 110.174938 | K129: 369.4861174 | L129: 0.2849553878 | M129: 0.8108905566 | N129: 2760.0861 | P129: 960.6203 | R129: 157786.491 | S129: 0.3728149897 | T129: 16.8533602 | U129: 2.671979959
E130: 96 | F130: 14 | G130: 3.7 | H130: 12547.2 | I130: 310.4829879 | J130: 107.524421 | K130: 369.4861174 | L130: 0.2703152231 | M130: 0.8108905566 | N130: 2840.3876 | P130: 998.5673 | R130: 157786.491 | S130: 0.3490457135 | T130: 18.00103844 | U130: 2.887557869
E131: 97 | F131: 14 | G131: 3.7 | H131: 14115.6 | I131: 326.0659253 | J131: 97.48024781 | K131: 369.4861174 | L131: 0.2317573598 | M131: 0.8108905566 | N131: 3132.6272 | P131: 1108.5999 | R131: 157786.491 | S131: 0.3293107438 | T131: 19.07980661 | U131: 3.344943541
E132: 98 | F132: 14 | G132: 3.7 | H132: 15684 | I132: 341.2178594 | J132: 88.03255278 | K132: 369.4861174 | L132: 0.2098707768 | M132: 0.8108905566 | N132: 3468.6197 | P132: 1235.4411 | R132: 157786.491 | S132: 0.312584425 | T132: 20.10076256 | U132: 3.876041858
E133: 99 | F133: 14 | G133: 3.7 | H133: 1568.4 | I133: 172.3101748 | J133: 91.56605562 | K133: 369.4861174 | L133: 0.2023186221 | M133: 0.8108905566 | N133: 2952.5616 | P133: 802.7274 | R133: 157786.491 | S133: 0.9469467459 | T133: 6.635204497 | U133: 1.881812792
E134: 100 | F134: 14 | G134: 3.7 | H134: 3136.8 | I134: 199.1439453 | J134: 144.6560367 | K134: 369.4861174 | L134: 0.3291048236 | M134: 0.8108905566 | N134: 2056.8685 | P134: 669.1615 | R134: 157786.491 | S134: 0.6854392286 | T134: 9.166655547 | U134: 1.376672206
E135: 101 | F135: 14 | G135: 3.7 | H135: 4705.2 | I135: 221.5089109 | J135: 160.9723543 | K135: 369.4861174 | L135: 0.3793745094 | M135: 0.8108905566 | N135: 1892.6689 | P135: 638.4671 | R135: 157786.491 | S135: 0.5641802529 | T135: 11.13684018 | U135: 1.376068033
E136: 102 | F136: 14 | G136: 3.7 | H136: 6273.6 | I136: 241.5606531 | J136: 148.1340531 | K136: 369.4861174 | L136: 0.3595322759 | M136: 0.8108905566 | N136: 2057.4464 | P136: 700.631 | R136: 157786.491 | S136: 0.4905882115 | T136: 12.80745269 | U136: 1.630689554
E137: 103 | F137: 14 | G137: 3.7 | H137: 7842 | I137: 260.1341178 | J137: 136.2925501 | K137: 369.4861174 | L137: 0.340280696 | M137: 0.8108905566 | N137: 2236.6308 | P137: 768.1317 | R137: 157786.491 | S137: 0.4398759469 | T137: 14.28399382 | U137: 1.908645173
E138: 104 | F138: 14 | G138: 3.7 | H138: 9410.4 | I138: 277.6575166 | J138: 123.149233 | K138: 369.4861174 | L138: 0.3135535894 | M138: 0.8108905566 | N138: 2472.6884 | P138: 855.1342 | R138: 157786.491 | S138: 0.4022116049 | T138: 15.6215913 | U138: 2.254642678
E139: 105 | F139: 17 | G139: 4.1 | H139: 11562 | I139: 386.015427 | J139: 141.9148663 | K139: 510.1695506 | L139: 0.2196394649 | M139: 0.6856597017 | N139: 2244.2743 | P139: 831.1222 | R139: 232654.571 | S139: 0.4398936424 | T139: 14.28341922 | U139: 2.720049259
E140: 106 | F140: 17 | G140: 4.1 | H140: 13874.4 | I140: 409.2771034 | J140: 134.4610994 | K140: 510.1695506 | L140: 0.2139049879 | M140: 0.6856597017 | N140: 2378.5 | P140: 890.9664 | R140: 232654.571 | S140: 0.4022278386 | T140: 15.62096082 | U140: 3.043832791
E141: 107 | F141: 17 | G141: 4.1 | H141: 16186.8 | I141: 431.5726258 | J141: 128.84201 | K141: 510.1695506 | L141: 0.1988812459 | M141: 0.6856597017 | N141: 2494.0161 | P141: 944.7217 | R141: 232654.571 | S141: 0.3728300724 | T141: 16.8526784 | U141: 3.349626615
E142: 108 | F142: 17 | G142: 4.1 | H142: 18499.2 | I142: 453.1032424 | J142: 112.8202666 | K142: 510.1695506 | L142: 0.1854418872 | M142: 0.6856597017 | N142: 2843.7858 | P142: 1084.8049 | R142: 232654.571 | S142: 0.3490598597 | T142: 18.00030892 | U142: 4.016151142
E143: 109 | F143: 17 | G143: 4.1 | H143: 20811.6 | I143: 474.008741 | J143: 104.6803605 | K143: 510.1695506 | L143: 0.1721251661 | M143: 0.6856597017 | N143: 3072.6514 | P143: 1182.7594 | R143: 232654.571 | S143: 0.3293241087 | T143: 19.0790323 | U143: 4.528153503
E144: 110 | F144: 17 | G144: 4.1 | H144: 23124 | I144: 494.3909001 | J144: 101.6172263 | K144: 510.1695506 | L144: 0.1558875733 | M144: 0.6856597017 | N144: 3182.0143 | P144: 1237.3824 | R144: 232654.571 | S144: 0.3125971251 | T144: 20.09994592 | U144: 4.865227266
E145: 111 | F145: 17 | G145: 4.1 | H145: 2312.4 | I145: 271.4398963 | J145: 69.04751776 | K145: 510.1695506 | L145: 0.09335049451 | M145: 0.6856597017 | N145: 4168.517 | P145: 1342.6516 | R145: 232654.571 | S145: 0.9469820542 | T145: 6.634957103 | U145: 3.931204264
E146: 112 | F146: 17 | G146: 4.1 | H146: 4624.8 | I146: 306.0065601 | J146: 108.3842269 | K146: 510.1695506 | L146: 0.1484754006 | M146: 0.6856597017 | N146: 2794.8092 | P146: 967.0445 | R146: 232654.571 | S146: 0.6854660104 | T146: 9.166297398 | U146: 2.823349566
E147: 113 | F147: 17 | G147: 4.1 | H147: 6937.2 | I147: 335.1470409 | J147: 144.8988392 | K147: 510.1695506 | L147: 0.2049928397 | M147: 0.6856597017 | N147: 2160.7463 | P147: 775.2322 | R147: 232654.571 | S147: 0.5642026544 | T147: 11.13639799 | U147: 2.312972572
E148: 114 | F148: 17 | G148: 4.1 | H148: 9249.6 | I148: 361.4787226 | J148: 142.8787555 | K148: 510.1695506 | L148: 0.2088098487 | M148: 0.6856597017 | N148: 2210.4711 | P148: 806.3575 | R148: 232654.571 | S148: 0.4906078503 | T148: 12.80694001 | U148: 2.529968304
E149: 16 | F149: 25 | G149: 5.3 | H149: 10002.4 | I149: 796.7918199 | J149: 255.5312631 | K149: 768.5848107 | L149: 0.1300674218 | M149: 0.3978671819 | N149: 1470.4931 | P149: 655.0378 | R149: 503145.6984 | S149: 0.6854441553 | T149: 9.166589661 | U149: 3.11817744
E150: 17 | F150: 25 | G150: 5.3 | H150: 15003.6 | I150: 847.4303976 | J150: 279.2158764 | K150: 768.5848107 | L150: 0.1454832862 | M150: 0.3978671819 | N150: 1381.5169 | P150: 629.5563 | R150: 503145.6984 | S150: 0.5641843738 | T150: 11.13675883 | U150: 3.035036577
E151: 18 | F151: 25 | G151: 5.3 | H151: 20004.8 | I151: 893.9382502 | J151: 297.0716171 | K151: 768.5848107 | L151: 0.1645243482 | M151: 0.3978671819 | N151: 1326.7215 | P151: 615.9319 | R151: 503145.6984 | S151: 0.4905918242 | T151: 12.80735837 | U151: 3.009167483
E152: 19 | F152: 25 | G152: 5.3 | H152: 25006 | I152: 937.8063418 | J152: 282.8845423 | K152: 768.5848107 | L152: 0.1610861437 | M152: 0.3978671819 | N152: 1401.5294 | P152: 658.4657 | R152: 503145.6984 | S152: 0.4398792021 | T152: 14.28388812 | U152: 3.315155838
E153: 20 | F153: 25 | G153: 5.3 | H153: 30007.2 | I153: 979.7993295 | J153: 229.3697251 | K153: 768.5848107 | L153: 0.1514615785 | M153: 0.3978671819 | N153: 1707.4031 | P153: 806.6455 | R153: 503145.6984 | S153: 0.4022145912 | T153: 15.62147531 | U153: 4.271702943
E154: 21 | F154: 25 | G154: 5.3 | H154: 35008.4 | I154: 1020.371455 | J154: 212.5516931 | K154: 768.5848107 | L154: 0.118266414 | M154: 0.3978671819 | N154: 1849.1606 | P154: 882.5086 | R154: 503145.6984 | S154: 0.3728177642 | T154: 16.85323477 | U154: 4.800580226
E155: 22 | F155: 25 | G155: 5.3 | H155: 40009.6 | I155: 1059.818681 | J155: 217.9168876 | K155: 768.5848107 | L155: 0.1167507638 | M155: 0.3978671819 | N155: 1826.9191 | P155: 882.5913 | R155: 503145.6984 | S155: 0.3490483158 | T155: 18.00090424 | U155: 4.863407756
E156: 23 | F156: 25 | G156: 5.3 | H156: 45010.8 | I156: 1098.346586 | J156: 210.0449123 | K156: 768.5848107 | L156: 0.1132556795 | M156: 0.3978671819 | N156: 1908.2877 | P156: 931.127 | R156: 503145.6984 | S156: 0.3293132024 | T156: 19.07966417 | U156: 5.229103498
E157: 24 | F157: 25 | G157: 5.3 | H157: 50012 | I157: 1136.104847 | J157: 199.2883929 | K157: 768.5848107 | L157: 0.1041139709 | M157: 0.3978671819 | N157: 2022.0306 | P157: 995.7199 | R157: 503145.6984 | S157: 0.3125867613 | T157: 20.10061233 | U157: 5.700807914
E158: 25 | F158: 25 | G158: 5.3 | H158: 5001.2 | I158: 738.1732938 | J158: 186.2938838 | K158: 768.5848107 | L158: 0.09092429559 | M158: 0.3978671819 | N158: 1913.5957 | P158: 820.464 | R158: 503145.6984 | S158: 0.9469532411 | T158: 6.635158986 | U158: 3.96241293
E159: 26 | F159: 30 | G159: 6 | H159: 14403.2 | I159: 1284.066198 | J159: 318.1263886 | K159: 781.9093897 | L159: 0.09951245771 | M159: 0.2739348965 | N159: 1357.1137 | P159: 688.9868 | R159: 724529.8057 | S159: 0.685449955 | T159: 9.166512101 | U159: 4.036339782
E160: 27 | F160: 30 | G160: 6 | H160: 21604.8 | I160: 1350.668794 | J160: 339.7614199 | K160: 781.9093897 | L160: 0.1093663467 | M160: 0.2739348965 | N160: 1303.7888 | P160: 674.0358 | R160: 724529.8057 | S160: 0.564189225 | T160: 11.13666307 | U160: 3.9753448
E161: 28 | F161: 30 | G161: 6 | H161: 28806.4 | I161: 1412.314563 | J161: 332.0338387 | K161: 781.9093897 | L161: 0.1166910286 | M161: 0.2739348965 | N161: 1350.4609 | P161: 707.5953 | R161: 724529.8057 | S161: 0.490596077 | T161: 12.80724735 | U161: 4.253525992
E162: 29 | F162: 30 | G162: 6 | H162: 36008 | I162: 1470.792648 | J162: 305.8896158 | K162: 781.9093897 | L162: 0.1135538898 | M162: 0.2739348965 | N162: 1471.649 | P162: 779.4777 | R162: 724529.8057 | S162: 0.4398830341 | T162: 14.28376368 | U162: 4.808246412
E163: 30 | F163: 30 | G163: 6 | H163: 43209.6 | I163: 1527.020627 | J163: 275.4504214 | K163: 781.9093897 | L163: 0.09829199736 | M163: 0.2739348965 | N163: 1636.7838 | P163: 875.4486 | R163: 724529.8057 | S163: 0.4022181067 | T163: 15.62133878 | U163: 5.54372224
E164: 31 | F164: 30 | G164: 6 | H164: 50411.2 | I164: 1581.543588 | J164: 282.3588836 | K164: 781.9093897 | L164: 0.09673549276 | M164: 0.2739348965 | N164: 1621.4922 | P164: 877.1605 | R164: 724529.8057 | S164: 0.3728210305 | T164: 16.85308712 | U164: 5.601182323
E165: 32 | F165: 30 | G165: 6 | H165: 57612.8 | I165: 1634.716681 | J165: 257.7034884 | K165: 781.9093897 | L165: 0.08746772874 | M165: 0.2739348965 | N165: 1781.4868 | P165: 972.3357 | R165: 724529.8057 | S165: 0.3490513792 | T165: 18.00074626 | U165: 6.343401446
E166: 33 | F166: 30 | G166: 6 | H166: 64814.4 | I166: 1686.786598 | J166: 260.7269872 | K166: 781.9093897 | L166: 0.08397534107 | M166: 0.2739348965 | N166: 1783.6931 | P166: 983.1573 | R166: 724529.8057 | S166: 0.3293160966 | T166: 19.07949648 | U166: 6.469551217
E167: 34 | F167: 30 | G167: 6 | H167: 72016 | I167: 1737.932951 | J167: 241.3872312 | K167: 781.9093897 | L167: 0.07682366008 | M167: 0.2739348965 | N167: 1934.4571 | P167: 1075.1649 | R167: 724529.8057 | S167: 0.3125895115 | T167: 20.10043548 | U167: 7.199771681
E168: 35 | F168: 30 | G168: 6 | H168: 7201.6 | I168: 1207.88775 | J168: 205.7777048 | K168: 781.9093897 | L168: 0.06180273982 | M168: 0.2739348965 | N168: 1958.2717 | P168: 962.2383 | R168: 724529.8057 | S168: 0.9469608873 | T168: 6.635105411 | U168: 5.869866955
A171: Configuration Comparisons | E171: 1-Body
M172: Grid Connected | O172: Blue Economy
E173: Device Index | F173: Diameter | G173: Height | H173: Volume | I173: Pavg-Mech | J173: Pavg-Upper | K173: P/V | L173: P/V - Theory | M173: LCoE | N173: LCoE - Upper Limit | O173: LCoE | P173: LCoE - Upper Limit
E174: 6 | F174: 2 | G174: 1 | H174: 3.141592654 | I174: 2.838470149 | J174: 2.817213858 | K174: 1.133039378 | L174: 1.120933778 | M174: 67284.5907 | N174: 67788.999 | O174: 1131.1274 | P174: 1138.8882
E175: 7 | F175: 3 | G175: 1.5 | H175: 10.60287521 | I175: 5.716279495 | J175: 9.50809677 | K175: 0.6863164813 | L175: 1.120933778 | M175: 33654.4081 | N175: 20351.5256 | O175: 669.1381 | P175: 445.9906
E176: 8 | F176: 4 | G176: 2 | H176: 25.13274123 | I176: 9.641581641 | J176: 22.53664027 | K176: 0.4891295372 | L176: 1.120880531 | M176: 20133.4542 | N176: 8749.8514 | O176: 501.2348 | P176: 277.0016
E177: 9 | F177: 5 | G177: 2.5 | H177: 49.08738521 | I177: 13.77389625 | J177: 43.94925187 | K177: 0.3607776655 | L177: 1.119158509 | M177: 14235.9821 | N177: 4607.5215 | O177: 449.5889 | P177: 215.7569
E178: 10 | F178: 8 | G178: 2.9 | H178: 145.7698991 | I178: 30.7812056 | J178: 125.6514792 | K178: 0.2707020859 | L178: 1.077481359 | M178: 6598.6978 | N178: 1759.3812 | O178: 367.6674 | P178: 172.6362
E179: 11 | F179: 11 | G179: 3.3 | H179: 313.6094866 | I179: 51.09252412 | J179: 239.2225178 | K179: 0.2103171272 | L179: 0.9535047887 | M179: 4223.6545 | N179: 1045.0827 | O179: 433.6986 | P179: 178.6568
E180: 12 | F180: 14 | G180: 3.7 | H180: 569.5707481 | I180: 73.26602398 | J180: 369.4861174 | K180: 0.1669797956 | L180: 0.8108905566 | M180: 3175.8716 | N180: 772.657 | O180: 508.1491 | P180: 188.3213
E181: 13 | F181: 17 | G181: 4.1 | H181: 930.6182838 | I181: 67.00935487 | J181: 510.1695506 | K181: 0.09403850798 | L181: 0.6856597017 | M181: 3714.5275 | N181: 642.0012 | O181: 805.1193 | P181: 200.7861
E182: 14 | F182: 24 | G182: 5.3 | H182: 2397.663513 | I182: 171.8776202 | J182: 760.788574 | K182: 0.09328007012 | L182: 0.4207826994 | M182: 1961.5945 | N182: 578.2496 | O182: 782.6013 | P182: 261.3662
E183: 15 | F183: 30 | G183: 6 | H183: 4241.150082 | I183: 203.8830679 | J183: 781.9093897 | K183: 0.06380507829 | L183: 0.2739348965 | M183: 2095.2434 | N183: 674.933 | O183: 1090.5638 | P183: 364.9868
E185: 2-Body
N186: Grid Connected | P186: Blue Economy | R186: AM | S186: Omega | T186: T
E187: Device Index | F187: Diameter | G187: Height | H187: React Mass | I187: Volume | J187: Pavg-Mech | K187: Pavg-Upper | L187: P/V | M187: P/V - Theory | N187: LCoE | P187: LCoE | R187: (kg) | S187: (rad/s) | T187: s
E188: 43 | F188: 2 | G188: 1 | H188: 32 | I188: 7.502640717 | J188: 4.771847961 | K188: 2.817213858 | L188: 1.898657977 | M188: 1.120933778 | N188: 40528.6883 | O188: 0 | P188: 1060.543 | Q188: 0 | R188: 3220.13247 | S188: 0.9470564804 | T188: 6.634435682
E189: 46 | F189: 3 | G189: 1.5 | H189: 144 | I189: 16.83120862 | J189: 14.38258006 | K189: 9.50809677 | L189: 1.695599046 | M189: 1.120933778 | N189: 14143.3637 | O189: 0 | P189: 934.6135 | Q189: 0 | R189: 7245.298057 | S189: 0.6855224639 | T189: 9.165542544
E190: 69 | F190: 4 | G190: 2 | H190: 256 | I190: 25.07511971 | J190: 24.80090173 | K190: 22.53664027 | L190: 1.235148669 | M190: 1.120880531 | N190: 8507.3211 | O190: 0 | P190: 798.1819 | Q190: 0 | R190: 12880.52988 | S190: 0.6855224639 | T190: 9.165542544
E191: 62 | F191: 5 | G191: 2.5 | H191: 400 | I191: 35.367776 | J191: 35.18564202 | K191: 43.94925187 | L191: 0.905801847 | M191: 1.119158509 | N191: 6217.507 | O191: 0 | P191: 754.4905 | Q191: 0 | R191: 20125.82794 | S191: 0.6855224639 | T191: 9.165542544
E192: 75 | F192: 8 | G192: 2.9 | H192: 1024 | I192: 69.66449857 | J192: 54.35884294 | K192: 125.6514792 | L192: 0.4744044588 | M192: 1.077481359 | N192: 4404.2756 | O192: 0 | P192: 837.0061 | Q192: 0 | R192: 51522.11952 | S192: 0.6855224639 | T192: 9.165542544
E193: 85 | F193: 11 | G193: 3.3 | H193: 1936.8 | I193: 122.5193988 | J193: 112.8835748 | K193: 239.2225178 | L193: 0.4690931115 | M193: 0.9535047887 | N193: 2388.3328 | O193: 0 | P193: 630.4458 | Q193: 0 | R193: 97409.00722 | S193: 0.6853876518 | T193: 9.167345357
E194: 101 | F194: 14 | G194: 3.7 | H194: 4705.2 | I194: 221.5089109 | J194: 160.9723543 | K194: 369.4861174 | L194: 0.3793745094 | M194: 0.8108905566 | N194: 1892.6689 | O194: 0 | P194: 638.4671 | Q194: 0 | R194: 157786.491 | S194: 0.5641802529 | T194: 11.13684018
E195: 113 | F195: 17 | G195: 4.1 | H195: 6937.2 | I195: 335.1470409 | J195: 144.8988392 | K195: 510.1695506 | L195: 0.2049928397 | M195: 0.6856597017 | N195: 2160.7463 | O195: 0 | P195: 775.2322 | Q195: 0 | R195: 232654.571 | S195: 0.5642026544 | T195: 11.13639799
E196: 16 | F196: 25 | G196: 5.3 | H196: 10002.4 | I196: 796.7918199 | J196: 255.5312631 | K196: 768.5848107 | L196: 0.1300674218 | M196: 0.3978671819 | N196: 1470.4931 | O196: 0 | P196: 655.0378 | Q196: 0 | R196: 503145.6984 | S196: 0.6854441553 | T196: 9.166589661
E197: 26 | F197: 30 | G197: 6 | H197: 14403.2 | I197: 1284.066198 | J197: 318.1263886 | K197: 781.9093897 | L197: 0.09951245771 | M197: 0.2739348965 | N197: 1357.1137 | O197: 0 | P197: 688.9868 | Q197: 0 | R197: 724529.8057 | S197: 0.685449955 | T197: 9.166512101
A200: Plant Capacity vs. LCoE
E201: Plant Capacity | G201: LCoE
E202: 1 | G202: 868.9384
E203: 2 | G203: 527.7431
E204: 4 | G204: 285.2267
E205: 10 | G205: 200.7422
E206: 20 | G206: 166.4849
E207: 40 | G207: 145.1727
E208: 80 | G208: 132.8719
E209: 160 | G209: 123.9468
E210: 320 | G210: 117.3319
E211: 640 | G211: 112.0854
A213: Sensitivity to Capacity Factor
E214: Capacity Factor | F214: LCoE
E215: 0.1 | F215: 332.8481
E216: 0.2 | F216: 179.0934
E217: 0.3 | F217: 129.6629
E218: 0.4 | F218: 105.3728
E219: 0.5 | F219: 91.0742
E220: 0.6 | F220: 81.7213
... 112 more rows

Sheet Case 4
A1: I/O - Screen
A4: CAPEX
E5: Cost | H5: Economics | K5: Uncertainty | M5: Multiplier
E6: $/Farm | F6: $/WEC | G6: $/kW | H6: $/MWh | I6: in % | J6: in % Total | K6: +% | L6: -% | M6: MC
C7: 1.1 | D7: Marine Energy Converter (MEC) | E7: 830730.6478 | F7: 830730.6478 | G7: 41536.53239 | H7: 225.8681753 | I7: 0.008819062707 | J7: 0.005696398955
C8: 1.1.1 | D8: Structural Assembly | E8: 108350.8022 | F8: 108350.8022 | G8: 5417.540108 | H8: 29.45960648 | I8: 0.001150255526 | J8: 0.0007429717415 | K8: 0.5 | L8: -0.5 | M8: 1
C9: 1.1.2 | D9: Power Take-Off System (PTO) | E9: 596640.5616 | F9: 596640.5616 | G9: 29832.02808 | H9: 162.2211908 | I9: 0.006333954983 | J9: 0.004091220999 | K9: 0.5 | L9: -0.5 | M9: 1
C10: 1.1.3 | D10: Mooring, Foundation, and Sub-Structure | E10: 125739.2841 | F10: 125739.2841 | G10: 6286.964204 | H10: 34.18737798 | I10: 0.001334852198 | J10: 0.0008622062136 | K10: 0.5 | L10: -0.5 | M10: 1
C11: 1.2 | D11: Balance of System (BOS) | E11: 84803049.83 | F11: 84803049.83 | G11: 4240152.491 | H11: 23057.18487 | I11: 0.9002718464 | J11: 0.8342637668
C12: 1.2.1 | D12: Project Development | E12: 14546076.02 | F12: 14546076.02 | G12: 727303.801 | H12: 3954.946958 | I12: 0.1544216009 | J12: 0.09974382485 | K12: 1 | L12: -0.5 | M12: 1
C13: 1.2.2 | D13: Engineering and Management | E13: 1679093.735 | F13: 1679093.735 | G13: 83954.68674 | H13: 456.5304518 | I13: 0.01782531194 | J13: 0.01151370522 | K13: 1 | L13: -0.5 | M13: 1
C14: 1.2.3 | D14: Electrical Infrastructure | E14: 31716614.43 | F14: 31716614.43 | G14: 1585830.721 | H14: 8623.461582 | I14: 0.3367045771 | J14: 0.2174838376 | K14: 1 | L14: -0.5 | M14: 1
C15: 1.2.6 | D15: Assembly & Installation | E15: 36861265.64 | F15: 36861265.64 | G15: 1843063.282 | H15: 10022.24588 | I15: 0.3913203564 | J15: 0.2527611996 | K15: 1 | L15: -0.5 | M15: 1
C16: 1.2.6.1 | D16: Device | E16: 19812750.16 | F16: 19812750.16 | G16: 990637.508 | H16: 5386.908184 | I16: 0.2103327794 | J16: 0.1358579097 | K16: 1 | L16: -0.5 | M16: 1
C17: 1.2.6.2 | D17: Subsea Cables | E17: 17048515.48 | F17: 17048515.48 | G17: 852425.7742 | H17: 4635.337692 | I17: 0.180987577 | J17: 0.1169032899 | K17: 1 | L17: -0.5 | M17: 1
C18: 1.3 | D18: Financial Costs | E18: 8563378.048 | F18: 8563378.048 | G18: 428168.9024 | H18: 2328.305304 | I18: 0.09090909091 | J18: 0.05871989662
C19: 1.3.2 | D19: Insurance During Construction | E19: 1712675.61 | F19: 1712675.61 | G19: 85633.78048 | H19: 465.6610609 | I19: 0.01818181818 | J19: 0.01174397932 | K19: 0.5 | L19: -0.3 | M19: 1
C20: 1.3.3 | D20: Construction Financing Costs | E20: 6850702.438 | F20: 6850702.438 | G20: 342535.1219 | H20: 1862.644243 | I20: 0.07272727273 | J20: 0.04697591729 | K20: 0.5 | L20: -0.3 | M20: 1
C22: Total CAPEX | E22: 224424852 | F22: 224424852 | G22: 4709857.926 | H22: 25611.35835 | I22: 1 | J22: 0.8986800624
A24: OPEX
E25: Cost | H25: Economics | K25: Uncertainty | M25: Multiplier
E26: $/Farm | F26: $/WEC | G26: $/kW | H26: $/MWh | I26: in % | K26: +% | L26: -% | M26: MC
C27: 2.1 | D27: Operations | E27: 2365248.52 | F27: 2365248.52 | G27: 53148.57926 | H27: 9186.996476 | I27: 0.6543590498 | J27: 0.2316961965
C28: 2.1.1 | D28: Environmental Monitoring | E28: 121000 | F28: 121000 | G28: 6050 | H28: 469.9829908 | I28: 0.03347531743 | J28: 0.01185297846 | K28: 1 | L28: -0.5 | M28: 1
C29: 2.1.3 | D29: Insurance | E29: 2244248.52 | F29: 2244248.52 | G29: 47098.57926 | H29: 8717.013485 | I29: 0.6208837324 | J29: 0.219843218 | K29: 1 | L29: -0.5 | M29: 1
C30: 2.2 | D30: Maintenance | E30: 1249354.993 | F30: 1249354.993 | G30: 62467.74965 | H30: 4852.690877 | I30: 0.3456409502 | J30: 0.1223849407 | K30: 1 | L30: -0.5 | M30: 1
C32: Total OPEX | E32: 3614603.513 | F32: 3614603.513 | G32: 115616.3289 | H32: 14039.68735 | I32: 1 | J32: 0.3540811372
C34: $/MWh | H34: 39651.0457
C36: Technology LCoE | E36: 32700462.37 | F36: 32700462.37 | G36: 1569909.272 | H36: 21510.78603 | I36: 1.276585616 | J36: 0.542502364
A38: Tables for Plots
D39: LCOE Table | E39: % | F39: LCoE | I39: CAPEX | J39: %
D40: Structural Assembly | E40: 0.0007429717415 | F40: 29.45960648 | I40: Structural Assembly | J40: 0.001150255526
D41: Power Take-Off System (PTO) | E41: 0.004091220999 | F41: 162.2211908 | I41: Power Take-Off System (PTO) | J41: 0.006333954983
D42: Mooring, Foundation, and Sub-Structure | E42: 0.0008622062136 | F42: 34.18737798 | I42: Mooring, Foundation, and Sub-Structure | J42: 0.001334852198
D43: Device Installation | E43: 0.1358579097 | F43: 5386.908184 | I43: Device Installation | J43: 0.2103327794
D44: Project Development | E44: 0.09974382485 | F44: 3954.946958 | I44: Project Development | J44: 0.1544216009
D45: Engineering and Management | E45: 0.01151370522 | F45: 456.5304518 | I45: Engineering and Management | J45: 0.01782531194
D46: Subsea Cables | E46: 0.3343871275 | F46: 13258.79927 | I46: Subsea Cables | J46: 0.5176921542
D47: Construction Financing and Insurance | E47: 0.05871989662 | F47: 2328.305304 | I47: Construction Financing and Insurance | J47: 0.09090909091
D48: Operations | E48: 0.2316961965 | F48: 9186.996476
D49: Annual Maintennce & Repair | E49: 0.1223849407 | F49: 4852.690877
E51: 1 | F51: 39651.0457 | G51: /MWh | J51: 1
A53: Study 1 - Device Trade-Offs - 1-Body WEC | M53: Grid Connected | O53: Blue Economy | Q53: Steel Mass | R53: M/P
E54: Device Index | F54: Diameter | G54: Height | H54: Volume | I54: Pavg-Mech | J54: Pavg-Upper | K54: P/V | L54: P/V - Theory | M54: LCoE | N54: LCoE - Upper Limit | O54: LCoE | P54: LCoE - Upper Limit | Q54: mT | R54: mT/kW
E55: 6 | F55: 2 | G55: 1 | H55: 3.141592654 | I55: 2.838470149 | J55: 2.817213858 | K55: 1.133039378 | L55: 1.120933778 | M55: 67284.5907 | N55: 67788.999 | O55: 1131.1274 | P55: 1138.8882 | Q55: 0.7238229474 | R55: 0.2550046009
E56: 7 | F56: 3 | G56: 1.5 | H56: 10.60287521 | I56: 5.716279495 | J56: 9.50809677 | K56: 0.6863164813 | L56: 1.120933778 | M56: 33654.4081 | N56: 20351.5256 | O56: 669.1381 | P56: 445.9906 | Q56: 2.080990974 | R56: 0.3640464004
E57: 8 | F57: 4 | G57: 2 | H57: 25.13274123 | I57: 9.641581641 | J57: 22.53664027 | K57: 0.4891295372 | L57: 1.120880531 | M57: 20133.4542 | N57: 8749.8514 | O57: 501.2348 | P57: 277.0016 | Q57: 5.096919921 | R57: 0.5286393987
E58: 9 | F58: 5 | G58: 2.5 | H58: 49.08738521 | I58: 13.77389625 | J58: 43.94925187 | K58: 0.3607776655 | L58: 1.119158509 | M58: 14235.9821 | N58: 4607.5215 | O58: 449.5889 | P58: 215.7569 | Q58: 10.0059726 | R58: 0.7264446036
E59: 10 | F59: 8 | G59: 2.9 | H59: 145.7698991 | I59: 30.7812056 | J59: 125.6514792 | K59: 0.2707020859 | L59: 1.077481359 | M59: 6598.6978 | N59: 1759.3812 | O59: 367.6674 | P59: 172.6362 | Q59: 27.21815556 | R59: 0.8842459233
E60: 11 | F60: 11 | G60: 3.3 | H60: 313.6094866 | I60: 51.09252412 | J60: 239.2225178 | K60: 0.2103171272 | L60: 0.9535047887 | M60: 4223.6545 | N60: 1045.0827 | O60: 433.6986 | P60: 178.6568 | Q60: 61.5733897 | R60: 1.205135012
E61: 12 | F61: 14 | G61: 3.7 | H61: 569.5707481 | I61: 73.26602398 | J61: 369.4861174 | K61: 0.1669797956 | L61: 0.8108905566 | M61: 3175.8716 | N61: 772.657 | O61: 508.1491 | P61: 188.3213 | Q61: 118.3144905 | R61: 1.614861624
E62: 13 | F62: 17 | G62: 4.1 | H62: 930.6182838 | I62: 67.00935487 | J62: 510.1695506 | K62: 0.09403850798 | L62: 0.6856597017 | M62: 3714.5275 | N62: 642.0012 | O62: 805.1193 | P62: 200.7861 | Q62: 203.8922619 | R62: 3.042743245
E63: 14 | F63: 24 | G63: 5.3 | H63: 2397.663513 | I63: 171.8776202 | J63: 760.788574 | K63: 0.09328007012 | L63: 0.4207826994 | M63: 1961.5945 | N63: 578.2496 | O63: 782.6013 | P63: 261.3662 | Q63: 581.5772618 | R63: 3.383670666
E64: 15 | F64: 30 | G64: 6 | H64: 4241.150082 | I64: 203.8830679 | J64: 781.9093897 | K64: 0.06380507829 | L64: 0.2739348965 | M64: 2095.2434 | N64: 674.933 | O64: 1090.5638 | P64: 364.9868 | Q64: 1073.506157 | R64: 5.265303136
I70: Steel Mass | N70: Grid Connected | P70: Blue Economy | R70: AM | S70: Omega | T70: T | U70: M/P
A71: Study 2 - Device Trade-Offs - 2-Body WEC | E71: Device Index | F71: Diameter | G71: Height | H71: React Mass | I71: mT | J71: Pavg-Mech | K71: Pavg-Upper | L71: P/V | M71: P/V - Theory | N71: LCoE | P71: LCoE | R71: (kg) | S71: (rad/s) | T71: s | U71: mT/kW
E72: 36 | F72: 2 | G72: 1 | H72: 128 | I72: 14.59270141 | J72: 5.040006117 | K72: 2.817213858 | L72: 2.005354717 | M72: 1.120933778 | N72: 39567.0252 | P72: 2185.8125 | R72: 3220.13247 | S72: 0.4906492472 | T72: 12.80585947 | U72: 2.89537375
E73: 37 | F73: 2 | G73: 1 | H73: 160 | I73: 16.31184743 | J73: 4.6977289 | K73: 2.817213858 | L73: 1.869166939 | M73: 1.120933778 | N73: 42718.2177 | P73: 2631.2467 | R73: 3220.13247 | S73: 0.4399309431 | T73: 14.28220816 | U73: 3.472283689
E74: 38 | F74: 2 | G74: 1 | H74: 192 | I74: 17.88100315 | J74: 4.506856548 | K74: 2.817213858 | L74: 1.793287538 | M74: 1.120933778 | N74: 44789.7735 | P74: 3015.6296 | R74: 3220.13247 | S74: 0.402262058 | T74: 15.61963198 | U74: 3.967511048
E75: 39 | F75: 2 | G75: 1 | H75: 224 | I75: 19.3365035 | J75: 4.243243192 | K75: 2.817213858 | L75: 1.688522516 | M75: 1.120933778 | N75: 47820.4932 | P75: 3467.4502 | R75: 3220.13247 | S75: 0.3728618657 | T75: 16.8512414 | U75: 4.557010435
E76: 40 | F76: 2 | G76: 1 | H76: 256 | I76: 20.70202274 | J76: 4.239930327 | K76: 2.817213858 | L76: 1.687561084 | M76: 1.120933778 | N76: 48110.525 | P76: 3723.0367 | R76: 3220.13247 | S76: 0.3490896788 | T76: 17.99877134 | U76: 4.882632766
E77: 41 | F77: 2 | G77: 1 | H77: 288 | I77: 21.99400504 | J77: 4.194225731 | K77: 2.817213858 | L77: 1.66889171 | M77: 1.120933778 | N77: 48871.0198 | P77: 4002.777 | R77: 3220.13247 | S77: 0.3293522807 | T77: 19.07740033 | U77: 5.243877285
E78: 42 | F78: 2 | G78: 1 | H78: 320 | I78: 23.2244233 | J78: 4.067772837 | K78: 2.817213858 | L78: 1.61875697 | M78: 1.120933778 | N78: 50613.0374 | P78: 4358.4098 | R78: 3220.13247 | S78: 0.3126238958 | T78: 20.09822471 | U78: 5.709370761
E79: 43 | F79: 2 | G79: 1 | H79: 32 | I79: 7.502640717 | J79: 4.771847961 | K79: 2.817213858 | L79: 1.898657977 | M79: 1.120933778 | N79: 40528.6883 | P79: 1060.543 | R79: 3220.13247 | S79: 0.9470564804 | T79: 6.634435682 | U79: 1.572271535
E80: 44 | F80: 2 | G80: 1 | H80: 64 | I80: 10.40167992 | J80: 5.439684017 | K80: 2.817213858 | L80: 2.164381501 | M80: 1.120933778 | N80: 36055.7645 | P80: 1404.0062 | R80: 3220.13247 | S80: 0.6855224639 | T80: 9.165542544 | U80: 1.912184584
E81: 45 | F81: 2 | G81: 1 | H81: 96 | I81: 12.66239985 | J81: 5.367540416 | K81: 2.817213858 | L81: 2.135676474 | M81: 1.120933778 | N81: 36881.5482 | P81: 1767.1786 | R81: 3220.13247 | S81: 0.5642498749 | T81: 11.13546602 | U81: 2.359069307
E82: 46 | F82: 3 | G82: 1.5 | H82: 144 | I82: 16.83120862 | J82: 14.38258006 | K82: 9.50809677 | L82: 1.695599046 | M82: 1.120933778 | N82: 14143.3637 | P82: 934.6135 | R82: 7245.298057 | S82: 0.6855224639 | T82: 9.165542544 | U82: 1.170249604
E83: 47 | F83: 3 | G83: 1.5 | H83: 216 | I83: 20.33900462 | J83: 13.17549628 | K83: 9.50809677 | L83: 1.554018627 | M83: 1.120933778 | N83: 15628.5269 | P83: 1222.1878 | R83: 7245.298057 | S83: 0.5642498749 | T83: 11.13546602 | U83: 1.543699318
E84: 48 | F84: 3 | G84: 1.5 | H84: 288 | I84: 23.35117306 | J84: 11.79391006 | K84: 9.50809677 | L84: 1.392504956 | M84: 1.120933778 | N84: 17630.2992 | P84: 1552.8136 | R84: 7245.298057 | S84: 0.4906492472 | T84: 12.80585947 | U84: 1.979934808
E85: 49 | F85: 3 | G85: 1.5 | H85: 360 | I85: 26.04660819 | J85: 10.48554837 | K85: 9.50809677 | L85: 1.241189544 | M85: 1.120933778 | N85: 19996.2937 | P85: 1931.5369 | R85: 7245.298057 | S85: 0.4399309431 | T85: 14.28220816 | U85: 2.484048261
E86: 50 | F86: 3 | G86: 1.5 | H86: 432 | I86: 28.51705786 | J86: 9.824047094 | K86: 9.50809677 | L86: 1.167132661 | M86: 1.120933778 | N86: 21516.8585 | P86: 2246.2769 | R86: 7245.298057 | S86: 0.402262058 | T86: 15.61963198 | U86: 2.902781062
E87: 51 | F87: 3 | G87: 1.5 | H87: 576 | I87: 32.98201944 | J87: 9.828426403 | K87: 9.50809677 | L87: 1.166681948 | M87: 1.120933778 | N87: 21848.888 | P87: 2586.7997 | R87: 7245.298057 | S87: 0.3490896788 | T87: 17.99877134 | U87: 3.355778239
E88: 52 | F88: 3 | G88: 1.5 | H88: 648 | I88: 35.03670899 | J88: 8.932230813 | K88: 9.50809677 | L88: 1.060855618 | M88: 1.120933778 | N88: 24183.542 | P88: 3005.6209 | R88: 7245.298057 | S88: 0.3293522807 | T88: 19.07740033 | U88: 3.922503764
E89: 53 | F89: 3 | G89: 1.5 | H89: 720 | I89: 36.99905248 | J89: 8.173177168 | K89: 9.50809677 | L89: 0.9808987299 | M89: 1.120933778 | N89: 26580.1458 | P89: 3451.1716 | R89: 7245.298057 | S89: 0.3126238958 | T89: 20.09822471 | U89: 4.526887368
E90: 54 | F90: 3 | G90: 1.5 | H90: 72 | I90: 12.36593373 | J90: 11.44865347 | K90: 9.50809677 | L90: 1.350385236 | M90: 1.120933778 | N90: 17386.7033 | P90: 828.8046 | R90: 7245.298057 | S90: 0.9470564804 | T90: 6.634435682 | U90: 1.080121235
E91: 65 | F91: 4 | G91: 2 | H91: 1024 | I91: 47.54326292 | J91: 13.69668063 | K91: 22.53664027 | L91: 0.7144768798 | M91: 1.120880531 | N91: 16440.8209 | P91: 2577.4187 | R91: 12880.52988 | S91: 0.3490896788 | T91: 17.99877134 | U91: 3.471152186
E92: 66 | F92: 4 | G92: 2 | H92: 1152 | I92: 50.43847044 | J92: 13.38854607 | K92: 22.53664027 | L92: 0.6913240379 | M92: 1.120880531 | N92: 16966.2398 | P92: 2786.8717 | R92: 12880.52988 | S92: 0.3293522807 | T92: 19.07740033 | U92: 3.767285125
E93: 67 | F93: 4 | G93: 2 | H93: 1280 | I93: 53.2105499 | J93: 13.22194603 | K93: 22.53664027 | L93: 0.6791627524 | M93: 1.120880531 | N93: 17323.2992 | P93: 2966.9991 | R93: 12880.52988 | S93: 0.3126238958 | T93: 20.09822471 | U93: 4.024411366
E94: 68 | F94: 4 | G94: 2 | H94: 128 | I94: 18.96579839 | J94: 18.79026679 | K94: 22.53664027 | L94: 0.9363566188 | M94: 1.120880531 | N94: 10899.4712 | P94: 759.9962 | R94: 12880.52988 | S94: 0.9470564804 | T94: 6.634435682 | U94: 1.009341623
E95: 69 | F95: 4 | G95: 2 | H95: 256 | I95: 25.07511971 | J95: 24.80090173 | K95: 22.53664027 | L95: 1.235148669 | M95: 1.120880531 | N95: 8507.3211 | P95: 798.1819 | R95: 12880.52988 | S95: 0.6855224639 | T95: 9.165542544 | U95: 1.011056775
E96: 70 | F96: 4 | G96: 2 | H96: 384 | I96: 29.90780251 | J96: 23.31215093 | K96: 22.53664027 | L96: 1.16203225 | M96: 1.120880531 | N96: 9197.2788 | P96: 1002.613 | R96: 12880.52988 | S96: 0.5642498749 | T96: 11.13546602 | U96: 1.282927629
E97: 71 | F97: 4 | G97: 2 | H97: 512 | I97: 34.07964856 | J97: 20.68762063 | K97: 22.53664027 | L97: 1.039124233 | M97: 1.120880531 | N97: 10488.8138 | P97: 1268.6505 | R97: 12880.52988 | S97: 0.4906492472 | T97: 12.80585947 | U97: 1.647345008
E98: 72 | F98: 4 | G98: 2 | H98: 640 | I98: 37.82918353 | J98: 19.092121 | K98: 22.53664027 | L98: 0.9652522527 | M98: 1.120880531 | N98: 11492.8409 | P98: 1511.7551 | R98: 12880.52988 | S98: 0.4399309431 | T98: 14.28220816 | U98: 1.98140288
E99: 73 | F99: 4 | G99: 2 | H99: 768 | I99: 41.27873788 | J99: 16.51445451 | K99: 22.53664027 | L99: 0.8427701956 | M99: 1.120880531 | N99: 13403.4007 | P99: 1883.5188 | R99: 12880.52988 | S99: 0.402262058 | T99: 15.61963198 | U99: 2.499552004
E100: 74 | F100: 4 | G100: 2 | H100: 896 | I100: 44.50098152 | J100: 16.1249058 | K100: 22.53664027 | L100: 0.8215209356 | M100: 1.120880531 | N100: 13866.085 | P100: 2070.8882 | R100: 12880.52988 | S100: 0.3728618657 | T100: 16.8512414 | U100: 2.759766914
E101: 55 | F101: 5 | G101: 2.5 | H101: 1000 | I101: 51.89393626 | J101: 26.82545139 | K101: 43.94925187 | L101: 0.7138767623 | M101: 1.119158509 | N101: 8544.5247 | P101: 1409.3004 | R101: 20125.82794 | S101: 0.4399309431 | T101: 14.28220816 | U101: 1.934503748
E102: 56 | F102: 5 | G102: 2.5 | H102: 1200 | I102: 56.40040602 | J102: 22.61787705 | K102: 43.94925187 | L102: 0.6133248627 | M102: 1.119158509 | N102: 10234.066 | P102: 1791.4097 | R102: 20125.82794 | S102: 0.402262058 | T102: 15.61963198 | U102: 2.493620683
E103: 57 | F103: 5 | G103: 2.5 | H103: 1400 | I103: 60.6227374 | J103: 21.70523422 | K103: 43.94925187 | L103: 0.5958561442 | M103: 1.119158509 | N103: 10790.0102 | P103: 1997.04 | R103: 20125.82794 | S103: 0.3728618657 | T103: 16.8512414 | U103: 2.793000839
E104: 58 | F104: 5 | G104: 2.5 | H104: 1600 | I104: 64.62011599 | J104: 20.01014081 | K104: 43.94925187 | L104: 0.5454920135 | M104: 1.119158509 | N104: 11822.012 | P104: 2293.612 | R104: 20125.82794 | S104: 0.3490896788 | T104: 17.99877134 | U104: 3.229368379
E105: 59 | F105: 5 | G105: 2.5 | H105: 1800 | I105: 68.43365222 | J105: 18.54918876 | K105: 43.94925187 | L105: 0.5043767179 | M105: 1.119158509 | N105: 12874.1809 | P105: 2604.3729 | R105: 20125.82794 | S105: 0.3293522807 | T105: 19.07740033 | U105: 3.689307016
E106: 60 | F106: 5 | G106: 2.5 | H106: 2000 | I106: 72.09327836 | J106: 18.87113777 | K106: 43.94925187 | L106: 0.5045854705 | M106: 1.119158509 | N106: 12787.4206 | P106: 2690.8589 | R106: 20125.82794 | S106: 0.3126238958 | T106: 20.09822471 | U106: 3.820293151
E107: 61 | F107: 5 | G107: 2.5 | H107: 200 | I107: 27.53659751 | J107: 25.04975257 | K107: 43.94925187 | L107: 0.6400829477 | M107: 1.119158509 | N107: 8406.4155 | P107: 772.7904 | R107: 20125.82794 | S107: 0.9470564804 | T107: 6.634435682 | U107: 1.099276228
E108: 62 | F108: 5 | G108: 2.5 | H108: 400 | I108: 35.367776 | J108: 35.18564202 | K108: 43.94925187 | L108: 0.905801847 | M108: 1.119158509 | N108: 6217.507 | P108: 754.4905 | R108: 20125.82794 | S108: 0.6855224639 | T108: 9.165542544 | U108: 1.005176372
E109: 63 | F109: 5 | G109: 2.5 | H109: 600 | I109: 41.60315632 | J109: 32.03501369 | K109: 43.94925187 | L109: 0.8307941057 | M109: 1.119158509 | N109: 6955.5961 | P109: 964.5428 | R109: 20125.82794 | S109: 0.5642498749 | T109: 11.13546602 | U109: 1.298677651
E110: 64 | F110: 5 | G110: 2.5 | H110: 800 | I110: 47.01249072 | J110: 30.04156843 | K110: 43.94925187 | L110: 0.7874190212 | M110: 1.119158509 | N110: 7535.6012 | P110: 1153.4406 | R110: 20125.82794 | S110: 0.4906492472 | T110: 12.80585947 | U110: 1.564914656
E111: 75 | F111: 8 | G111: 2.9 | H111: 1024 | I111: 69.66449857 | J111: 54.35884294 | K111: 125.6514792 | L111: 0.4744044588 | M111: 1.077481359 | N111: 4404.2756 | P111: 837.0061 | R111: 51522.11952 | S111: 0.6855224639 | T111: 9.165542544 | U111: 1.281566987
E112: 76 | F112: 8 | G112: 2.9 | H112: 1536 | I112: 80.57483585 | J112: 53.11801053 | K112: 125.6514792 | L112: 0.4660515515 | M112: 1.077481359 | N112: 4645.4895 | P112: 996.8419 | R112: 51522.11952 | S112: 0.5642498749 | T112: 11.13546602 | U112: 1.516902366
E113: 77 | F113: 8 | G113: 2.9 | H113: 2048 | I113: 90.16349968 | J113: 49.65923403 | K113: 125.6514792 | L113: 0.4418803561 | M113: 1.077481359 | N113: 5085.0812 | P113: 1188.184 | R113: 51522.11952 | S113: 0.4906492472 | T113: 12.80585947 | U113: 1.815644188
E114: 78 | F114: 8 | G114: 2.9 | H114: 2560 | I114: 98.90754132 | J114: 46.15343307 | K114: 125.6514792 | L114: 0.413108865 | M114: 1.077481359 | N114: 5579.9311 | P114: 1393.5194 | R114: 51522.11952 | S114: 0.4399309431 | T114: 14.28220816 | U114: 2.143015909
E115: 79 | F115: 8 | G115: 2.9 | H115: 3072 | I115: 107.0516217 | J115: 42.93160407 | K115: 125.6514792 | L115: 0.3803974549 | M115: 1.077481359 | N115: 6104.2306 | P115: 1610.233 | R115: 51522.11952 | S115: 0.402262058 | T115: 15.61963198 | U115: 2.493538829
E116: 80 | F116: 8 | G116: 2.9 | H116: 3584 | I116: 114.7410807 | J116: 41.24681234 | K116: 125.6514792 | L116: 0.3658094949 | M116: 1.077481359 | N116: 6461.043 | P116: 1787.1254 | R116: 51522.11952 | S116: 0.3728618657 | T116: 16.8512414 | U116: 2.781816926
E117: 81 | F117: 8 | G117: 2.9 | H117: 4096 | I117: 122.0706152 | J117: 39.09415737 | K117: 125.6514792 | L117: 0.3505351553 | M117: 1.077481359 | N117: 6919.6728 | P117: 1993.3859 | R117: 51522.11952 | S117: 0.3490896788 | T117: 17.99877134 | U117: 3.122477204
E118: 82 | F118: 8 | G118: 2.9 | H118: 4608 | I118: 129.106002 | J118: 38.36766151 | K118: 125.6514792 | L118: 0.3394770158 | M118: 1.077481359 | N118: 7115.9732 | P118: 2098.1415 | R118: 51522.11952 | S118: 0.3293522807 | T118: 19.07740033 | U118: 3.364969271
E119: 83 | F119: 8 | G119: 2.9 | H119: 5120 | I119: 135.8951326 | J119: 37.85734555 | K119: 125.6514792 | L119: 0.33378914 | M119: 1.077481359 | N119: 7230.8855 | P119: 2146.6474 | R119: 51522.11952 | S119: 0.3126238958 | T119: 20.09822471 | U119: 3.589663528
E120: 84 | F120: 8 | G120: 2.9 | H120: 512 | I120: 56.20088421 | J120: 44.1538506 | K120: 125.6514792 | L120: 0.3796519545 | M120: 1.077481359 | N120: 5154.9169 | P120: 782.9115 | R120: 51522.11952 | S120: 0.9470564804 | T120: 6.634435682 | U120: 1.272842197
E121: 85 | F121: 11 | G121: 3.3 | H121: 1936.8 | I121: 122.5193988 | J121: 112.8835748 | K121: 239.2225178 | L121: 0.4690931115 | M121: 0.9535047887 | N121: 2388.3328 | P121: 630.4458 | R121: 97409.00722 | S121: 0.6853876518 | T121: 9.167345357 | U121: 1.085360727
E122: 86 | F122: 11 | G122: 3.3 | H122: 2905.2 | I122: 138.8093268 | J122: 130.6669579 | K122: 239.2225178 | L122: 0.542230983 | M122: 0.9535047887 | N122: 2168.5306 | P122: 640.0949 | R122: 97409.00722 | S122: 0.5641371117 | T122: 11.13769184 | U122: 1.062313909
E123: 87 | F123: 11 | G123: 3.3 | H123: 3873.6 | I123: 153.2815784 | J123: 128.2782153 | K123: 239.2225178 | L123: 0.5408621048 | M123: 0.9535047887 | N123: 2275.3779 | P123: 719.8038 | R123: 97409.00722 | S123: 0.4905503909 | T123: 12.80844012 | U123: 1.194915115
E124: 88 | F124: 11 | G124: 3.3 | H124: 4842 | I124: 166.5922345 | J124: 101.126402 | K124: 239.2225178 | L124: 0.4392231274 | M124: 0.9535047887 | N124: 2854.4447 | P124: 900.6671 | R124: 97409.00722 | S124: 0.4398418686 | T124: 14.28510052 | U124: 1.647366377
E125: 89 | F125: 11 | G125: 3.3 | H125: 5810.4 | I125: 179.0777735 | J125: 85.39835753 | K125: 239.2225178 | L125: 0.386928231 | M125: 0.9535047887 | N125: 3363.7696 | P125: 1064.0403 | R125: 97409.00722 | S125: 0.4021803418 | T125: 15.62280563 | U125: 2.096969763
E126: 90 | F126: 11 | G126: 3.3 | H126: 6778.8 | I126: 190.938079 | J126: 81.58491751 | K126: 239.2225178 | L126: 0.3588500145 | M126: 0.9535047887 | N126: 3529.7191 | P126: 1126.0561 | R126: 97409.00722 | S126: 0.3727859431 | T126: 16.85467337 | U126: 2.340360018
E127: 91 | F127: 11 | G127: 3.3 | H127: 7747.2 | I127: 202.303386 | J127: 73.86310137 | K127: 239.2225178 | L127: 0.3373753352 | M127: 0.9535047887 | N127: 3897.3363 | P127: 1250.5425 | R127: 97409.00722 | S127: 0.3490184706 | T127: 18.00244353 | U127: 2.738896449
E128: 92 | F128: 11 | G128: 3.3 | H128: 8715.6 | I128: 213.2641563 | J128: 67.68368511 | K128: 239.2225178 | L128: 0.295370854 | M128: 0.9535047887 | N128: 4255.03 | P128: 1373.801 | R128: 97409.00722 | S128: 0.3292850058 | T128: 19.08129796 | U128: 3.150894576
E129: 93 | F129: 11 | G129: 3.3 | H129: 9684 | I129: 223.8862545 | J129: 67.62295678 | K129: 239.2225178 | L129: 0.2932284646 | M129: 0.9535047887 | N129: 4277.0299 | P129: 1393.2842 | R129: 97409.00722 | S129: 0.3125599672 | T129: 20.10233545 | U129: 3.310802502
E130: 94 | F130: 11 | G130: 3.3 | H130: 968.4 | I130: 102.7179895 | J130: 68.803649 | K130: 239.2225178 | L130: 0.2755052515 | M130: 0.9535047887 | N130: 3602.2866 | P130: 766.6792 | R130: 97409.00722 | S130: 0.9468787478 | T130: 6.635680991 | U130: 1.492914852
E131: 95 | F131: 14 | G131: 3.7 | H131: 10978.8 | I131: 294.3852263 | J131: 110.174938 | K131: 369.4861174 | L131: 0.2849553878 | M131: 0.8108905566 | N131: 2760.0861 | P131: 960.6203 | R131: 157786.491 | S131: 0.3728149897 | T131: 16.8533602 | U131: 2.671979959
E132: 96 | F132: 14 | G132: 3.7 | H132: 12547.2 | I132: 310.4829879 | J132: 107.524421 | K132: 369.4861174 | L132: 0.2703152231 | M132: 0.8108905566 | N132: 2840.3876 | P132: 998.5673 | R132: 157786.491 | S132: 0.3490457135 | T132: 18.00103844 | U132: 2.887557869
E133: 97 | F133: 14 | G133: 3.7 | H133: 14115.6 | I133: 326.0659253 | J133: 97.48024781 | K133: 369.4861174 | L133: 0.2317573598 | M133: 0.8108905566 | N133: 3132.6272 | P133: 1108.5999 | R133: 157786.491 | S133: 0.3293107438 | T133: 19.07980661 | U133: 3.344943541
E134: 98 | F134: 14 | G134: 3.7 | H134: 15684 | I134: 341.2178594 | J134: 88.03255278 | K134: 369.4861174 | L134: 0.2098707768 | M134: 0.8108905566 | N134: 3468.6197 | P134: 1235.4411 | R134: 157786.491 | S134: 0.312584425 | T134: 20.10076256 | U134: 3.876041858
E135: 99 | F135: 14 | G135: 3.7 | H135: 1568.4 | I135: 172.3101748 | J135: 91.56605562 | K135: 369.4861174 | L135: 0.2023186221 | M135: 0.8108905566 | N135: 2952.5616 | P135: 802.7274 | R135: 157786.491 | S135: 0.9469467459 | T135: 6.635204497 | U135: 1.881812792
E136: 100 | F136: 14 | G136: 3.7 | H136: 3136.8 | I136: 199.1439453 | J136: 144.6560367 | K136: 369.4861174 | L136: 0.3291048236 | M136: 0.8108905566 | N136: 2056.8685 | P136: 669.1615 | R136: 157786.491 | S136: 0.6854392286 | T136: 9.166655547 | U136: 1.376672206
E137: 101 | F137: 14 | G137: 3.7 | H137: 4705.2 | I137: 221.5089109 | J137: 160.9723543 | K137: 369.4861174 | L137: 0.3793745094 | M137: 0.8108905566 | N137: 1892.6689 | P137: 638.4671 | R137: 157786.491 | S137: 0.5641802529 | T137: 11.13684018 | U137: 1.376068033
E138: 102 | F138: 14 | G138: 3.7 | H138: 6273.6 | I138: 241.5606531 | J138: 148.1340531 | K138: 369.4861174 | L138: 0.3595322759 | M138: 0.8108905566 | N138: 2057.4464 | P138: 700.631 | R138: 157786.491 | S138: 0.4905882115 | T138: 12.80745269 | U138: 1.630689554
E139: 103 | F139: 14 | G139: 3.7 | H139: 7842 | I139: 260.1341178 | J139: 136.2925501 | K139: 369.4861174 | L139: 0.340280696 | M139: 0.8108905566 | N139: 2236.6308 | P139: 768.1317 | R139: 157786.491 | S139: 0.4398759469 | T139: 14.28399382 | U139: 1.908645173
E140: 104 | F140: 14 | G140: 3.7 | H140: 9410.4 | I140: 277.6575166 | J140: 123.149233 | K140: 369.4861174 | L140: 0.3135535894 | M140: 0.8108905566 | N140: 2472.6884 | P140: 855.1342 | R140: 157786.491 | S140: 0.4022116049 | T140: 15.6215913 | U140: 2.254642678
E141: 105 | F141: 17 | G141: 4.1 | H141: 11562 | I141: 386.015427 | J141: 141.9148663 | K141: 510.1695506 | L141: 0.2196394649 | M141: 0.6856597017 | N141: 2244.2743 | P141: 831.1222 | R141: 232654.571 | S141: 0.4398936424 | T141: 14.28341922 | U141: 2.720049259
E142: 106 | F142: 17 | G142: 4.1 | H142: 13874.4 | I142: 409.2771034 | J142: 134.4610994 | K142: 510.1695506 | L142: 0.2139049879 | M142: 0.6856597017 | N142: 2378.5 | P142: 890.9664 | R142: 232654.571 | S142: 0.4022278386 | T142: 15.62096082 | U142: 3.043832791
E143: 107 | F143: 17 | G143: 4.1 | H143: 16186.8 | I143: 431.5726258 | J143: 128.84201 | K143: 510.1695506 | L143: 0.1988812459 | M143: 0.6856597017 | N143: 2494.0161 | P143: 944.7217 | R143: 232654.571 | S143: 0.3728300724 | T143: 16.8526784 | U143: 3.349626615
E144: 108 | F144: 17 | G144: 4.1 | H144: 18499.2 | I144: 453.1032424 | J144: 112.8202666 | K144: 510.1695506 | L144: 0.1854418872 | M144: 0.6856597017 | N144: 2843.7858 | P144: 1084.8049 | R144: 232654.571 | S144: 0.3490598597 | T144: 18.00030892 | U144: 4.016151142
E145: 109 | F145: 17 | G145: 4.1 | H145: 20811.6 | I145: 474.008741 | J145: 104.6803605 | K145: 510.1695506 | L145: 0.1721251661 | M145: 0.6856597017 | N145: 3072.6514 | P145: 1182.7594 | R145: 232654.571 | S145: 0.3293241087 | T145: 19.0790323 | U145: 4.528153503
E146: 110 | F146: 17 | G146: 4.1 | H146: 23124 | I146: 494.3909001 | J146: 101.6172263 | K146: 510.1695506 | L146: 0.1558875733 | M146: 0.6856597017 | N146: 3182.0143 | P146: 1237.3824 | R146: 232654.571 | S146: 0.3125971251 | T146: 20.09994592 | U146: 4.865227266
E147: 111 | F147: 17 | G147: 4.1 | H147: 2312.4 | I147: 271.4398963 | J147: 69.04751776 | K147: 510.1695506 | L147: 0.09335049451 | M147: 0.6856597017 | N147: 4168.517 | P147: 1342.6516 | R147: 232654.571 | S147: 0.9469820542 | T147: 6.634957103 | U147: 3.931204264
E148: 112 | F148: 17 | G148: 4.1 | H148: 4624.8 | I148: 306.0065601 | J148: 108.3842269 | K148: 510.1695506 | L148: 0.1484754006 | M148: 0.6856597017 | N148: 2794.8092 | P148: 967.0445 | R148: 232654.571 | S148: 0.6854660104 | T148: 9.166297398 | U148: 2.823349566
E149: 113 | F149: 17 | G149: 4.1 | H149: 6937.2 | I149: 335.1470409 | J149: 144.8988392 | K149: 510.1695506 | L149: 0.2049928397 | M149: 0.6856597017 | N149: 2160.7463 | P149: 775.2322 | R149: 232654.571 | S149: 0.5642026544 | T149: 11.13639799 | U149: 2.312972572
E150: 114 | F150: 17 | G150: 4.1 | H150: 9249.6 | I150: 361.4787226 | J150: 142.8787555 | K150: 510.1695506 | L150: 0.2088098487 | M150: 0.6856597017 | N150: 2210.4711 | P150: 806.3575 | R150: 232654.571 | S150: 0.4906078503 | T150: 12.80694001 | U150: 2.529968304
E151: 16 | F151: 25 | G151: 5.3 | H151: 10002.4 | I151: 796.7918199 | J151: 255.5312631 | K151: 768.5848107 | L151: 0.1300674218 | M151: 0.3978671819 | N151: 1470.4931 | P151: 655.0378 | R151: 503145.6984 | S151: 0.6854441553 | T151: 9.166589661 | U151: 3.11817744
E152: 17 | F152: 25 | G152: 5.3 | H152: 15003.6 | I152: 847.4303976 | J152: 279.2158764 | K152: 768.5848107 | L152: 0.1454832862 | M152: 0.3978671819 | N152: 1381.5169 | P152: 629.5563 | R152: 503145.6984 | S152: 0.5641843738 | T152: 11.13675883 | U152: 3.035036577
E153: 18 | F153: 25 | G153: 5.3 | H153: 20004.8 | I153: 893.9382502 | J153: 297.0716171 | K153: 768.5848107 | L153: 0.1645243482 | M153: 0.3978671819 | N153: 1326.7215 | P153: 615.9319 | R153: 503145.6984 | S153: 0.4905918242 | T153: 12.80735837 | U153: 3.009167483
E154: 19 | F154: 25 | G154: 5.3 | H154: 25006 | I154: 937.8063418 | J154: 282.8845423 | K154: 768.5848107 | L154: 0.1610861437 | M154: 0.3978671819 | N154: 1401.5294 | P154: 658.4657 | R154: 503145.6984 | S154: 0.4398792021 | T154: 14.28388812 | U154: 3.315155838
E155: 20 | F155: 25 | G155: 5.3 | H155: 30007.2 | I155: 979.7993295 | J155: 229.3697251 | K155: 768.5848107 | L155: 0.1514615785 | M155: 0.3978671819 | N155: 1707.4031 | P155: 806.6455 | R155: 503145.6984 | S155: 0.4022145912 | T155: 15.62147531 | U155: 4.271702943
E156: 21 | F156: 25 | G156: 5.3 | H156: 35008.4 | I156: 1020.371455 | J156: 212.5516931 | K156: 768.5848107 | L156: 0.118266414 | M156: 0.3978671819 | N156: 1849.1606 | P156: 882.5086 | R156: 503145.6984 | S156: 0.3728177642 | T156: 16.85323477 | U156: 4.800580226
E157: 22 | F157: 25 | G157: 5.3 | H157: 40009.6 | I157: 1059.818681 | J157: 217.9168876 | K157: 768.5848107 | L157: 0.1167507638 | M157: 0.3978671819 | N157: 1826.9191 | P157: 882.5913 | R157: 503145.6984 | S157: 0.3490483158 | T157: 18.00090424 | U157: 4.863407756
E158: 23 | F158: 25 | G158: 5.3 | H158: 45010.8 | I158: 1098.346586 | J158: 210.0449123 | K158: 768.5848107 | L158: 0.1132556795 | M158: 0.3978671819 | N158: 1908.2877 | P158: 931.127 | R158: 503145.6984 | S158: 0.3293132024 | T158: 19.07966417 | U158: 5.229103498
E159: 24 | F159: 25 | G159: 5.3 | H159: 50012 | I159: 1136.104847 | J159: 199.2883929 | K159: 768.5848107 | L159: 0.1041139709 | M159: 0.3978671819 | N159: 2022.0306 | P159: 995.7199 | R159: 503145.6984 | S159: 0.3125867613 | T159: 20.10061233 | U159: 5.700807914
E160: 25 | F160: 25 | G160: 5.3 | H160: 5001.2 | I160: 738.1732938 | J160: 186.2938838 | K160: 768.5848107 | L160: 0.09092429559 | M160: 0.3978671819 | N160: 1913.5957 | P160: 820.464 | R160: 503145.6984 | S160: 0.9469532411 | T160: 6.635158986 | U160: 3.96241293
E161: 26 | F161: 30 | G161: 6 | H161: 14403.2 | I161: 1284.066198 | J161: 318.1263886 | K161: 781.9093897 | L161: 0.09951245771 | M161: 0.2739348965 | N161: 1357.1137 | P161: 688.9868 | R161: 724529.8057 | S161: 0.685449955 | T161: 9.166512101 | U161: 4.036339782
E162: 27 | F162: 30 | G162: 6 | H162: 21604.8 | I162: 1350.668794 | J162: 339.7614199 | K162: 781.9093897 | L162: 0.1093663467 | M162: 0.2739348965 | N162: 1303.7888 | P162: 674.0358 | R162: 724529.8057 | S162: 0.564189225 | T162: 11.13666307 | U162: 3.9753448
E163: 28 | F163: 30 | G163: 6 | H163: 28806.4 | I163: 1412.314563 | J163: 332.0338387 | K163: 781.9093897 | L163: 0.1166910286 | M163: 0.2739348965 | N163: 1350.4609 | P163: 707.5953 | R163: 724529.8057 | S163: 0.490596077 | T163: 12.80724735 | U163: 4.253525992
E164: 29 | F164: 30 | G164: 6 | H164: 36008 | I164: 1470.792648 | J164: 305.8896158 | K164: 781.9093897 | L164: 0.1135538898 | M164: 0.2739348965 | N164: 1471.649 | P164: 779.4777 | R164: 724529.8057 | S164: 0.4398830341 | T164: 14.28376368 | U164: 4.808246412
E165: 30 | F165: 30 | G165: 6 | H165: 43209.6 | I165: 1527.020627 | J165: 275.4504214 | K165: 781.9093897 | L165: 0.09829199736 | M165: 0.2739348965 | N165: 1636.7838 | P165: 875.4486 | R165: 724529.8057 | S165: 0.4022181067 | T165: 15.62133878 | U165: 5.54372224
E166: 31 | F166: 30 | G166: 6 | H166: 50411.2 | I166: 1581.543588 | J166: 282.3588836 | K166: 781.9093897 | L166: 0.09673549276 | M166: 0.2739348965 | N166: 1621.4922 | P166: 877.1605 | R166: 724529.8057 | S166: 0.3728210305 | T166: 16.85308712 | U166: 5.601182323
E167: 32 | F167: 30 | G167: 6 | H167: 57612.8 | I167: 1634.716681 | J167: 257.7034884 | K167: 781.9093897 | L167: 0.08746772874 | M167: 0.2739348965 | N167: 1781.4868 | P167: 972.3357 | R167: 724529.8057 | S167: 0.3490513792 | T167: 18.00074626 | U167: 6.343401446
E168: 33 | F168: 30 | G168: 6 | H168: 64814.4 | I168: 1686.786598 | J168: 260.7269872 | K168: 781.9093897 | L168: 0.08397534107 | M168: 0.2739348965 | N168: 1783.6931 | P168: 983.1573 | R168: 724529.8057 | S168: 0.3293160966 | T168: 19.07949648 | U168: 6.469551217
E169: 34 | F169: 30 | G169: 6 | H169: 72016 | I169: 1737.932951 | J169: 241.3872312 | K169: 781.9093897 | L169: 0.07682366008 | M169: 0.2739348965 | N169: 1934.4571 | P169: 1075.1649 | R169: 724529.8057 | S169: 0.3125895115 | T169: 20.10043548 | U169: 7.199771681
E170: 35 | F170: 30 | G170: 6 | H170: 7201.6 | I170: 1207.88775 | J170: 205.7777048 | K170: 781.9093897 | L170: 0.06180273982 | M170: 0.2739348965 | N170: 1958.2717 | P170: 962.2383 | R170: 724529.8057 | S170: 0.9469608873 | T170: 6.635105411 | U170: 5.869866955
A173: Configuration Comparisons | E173: 1-Body
M174: Grid Connected | O174: Blue Economy
E175: Device Index | F175: Diameter | G175: Height | H175: Volume | I175: Pavg-Mech | J175: Pavg-Upper | K175: P/V | L175: P/V - Theory | M175: LCoE | N175: LCoE - Upper Limit | O175: LCoE | P175: LCoE - Upper Limit
E176: 6 | F176: 2 | G176: 1 | H176: 3.141592654 | I176: 2.838470149 | J176: 2.817213858 | K176: 1.133039378 | L176: 1.120933778 | M176: 67284.5907 | N176: 67788.999 | O176: 1131.1274 | P176: 1138.8882
E177: 7 | F177: 3 | G177: 1.5 | H177: 10.60287521 | I177: 5.716279495 | J177: 9.50809677 | K177: 0.6863164813 | L177: 1.120933778 | M177: 33654.4081 | N177: 20351.5256 | O177: 669.1381 | P177: 445.9906
E178: 8 | F178: 4 | G178: 2 | H178: 25.13274123 | I178: 9.641581641 | J178: 22.53664027 | K178: 0.4891295372 | L178: 1.120880531 | M178: 20133.4542 | N178: 8749.8514 | O178: 501.2348 | P178: 277.0016
E179: 9 | F179: 5 | G179: 2.5 | H179: 49.08738521 | I179: 13.77389625 | J179: 43.94925187 | K179: 0.3607776655 | L179: 1.119158509 | M179: 14235.9821 | N179: 4607.5215 | O179: 449.5889 | P179: 215.7569
E180: 10 | F180: 8 | G180: 2.9 | H180: 145.7698991 | I180: 30.7812056 | J180: 125.6514792 | K180: 0.2707020859 | L180: 1.077481359 | M180: 6598.6978 | N180: 1759.3812 | O180: 367.6674 | P180: 172.6362
E181: 11 | F181: 11 | G181: 3.3 | H181: 313.6094866 | I181: 51.09252412 | J181: 239.2225178 | K181: 0.2103171272 | L181: 0.9535047887 | M181: 4223.6545 | N181: 1045.0827 | O181: 433.6986 | P181: 178.6568
E182: 12 | F182: 14 | G182: 3.7 | H182: 569.5707481 | I182: 73.26602398 | J182: 369.4861174 | K182: 0.1669797956 | L182: 0.8108905566 | M182: 3175.8716 | N182: 772.657 | O182: 508.1491 | P182: 188.3213
E183: 13 | F183: 17 | G183: 4.1 | H183: 930.6182838 | I183: 67.00935487 | J183: 510.1695506 | K183: 0.09403850798 | L183: 0.6856597017 | M183: 3714.5275 | N183: 642.0012 | O183: 805.1193 | P183: 200.7861
E184: 14 | F184: 24 | G184: 5.3 | H184: 2397.663513 | I184: 171.8776202 | J184: 760.788574 | K184: 0.09328007012 | L184: 0.4207826994 | M184: 1961.5945 | N184: 578.2496 | O184: 782.6013 | P184: 261.3662
E185: 15 | F185: 30 | G185: 6 | H185: 4241.150082 | I185: 203.8830679 | J185: 781.9093897 | K185: 0.06380507829 | L185: 0.2739348965 | M185: 2095.2434 | N185: 674.933 | O185: 1090.5638 | P185: 364.9868
E187: 2-Body
N188: Grid Connected | P188: Blue Economy | R188: AM | S188: Omega | T188: T
E189: Device Index | F189: Diameter | G189: Height | H189: React Mass | I189: Volume | J189: Pavg-Mech | K189: Pavg-Upper | L189: P/V | M189: P/V - Theory | N189: LCoE | P189: LCoE | R189: (kg) | S189: (rad/s) | T189: s
E190: 43 | F190: 2 | G190: 1 | H190: 32 | I190: 7.502640717 | J190: 4.771847961 | K190: 2.817213858 | L190: 1.898657977 | M190: 1.120933778 | N190: 40528.6883 | O190: 0 | P190: 1060.543 | Q190: 0 | R190: 3220.13247 | S190: 0.9470564804 | T190: 6.634435682
E191: 46 | F191: 3 | G191: 1.5 | H191: 144 | I191: 16.83120862 | J191: 14.38258006 | K191: 9.50809677 | L191: 1.695599046 | M191: 1.120933778 | N191: 14143.3637 | O191: 0 | P191: 934.6135 | Q191: 0 | R191: 7245.298057 | S191: 0.6855224639 | T191: 9.165542544
E192: 69 | F192: 4 | G192: 2 | H192: 256 | I192: 25.07511971 | J192: 24.80090173 | K192: 22.53664027 | L192: 1.235148669 | M192: 1.120880531 | N192: 8507.3211 | O192: 0 | P192: 798.1819 | Q192: 0 | R192: 12880.52988 | S192: 0.6855224639 | T192: 9.165542544
E193: 62 | F193: 5 | G193: 2.5 | H193: 400 | I193: 35.367776 | J193: 35.18564202 | K193: 43.94925187 | L193: 0.905801847 | M193: 1.119158509 | N193: 6217.507 | O193: 0 | P193: 754.4905 | Q193: 0 | R193: 20125.82794 | S193: 0.6855224639 | T193: 9.165542544
E194: 75 | F194: 8 | G194: 2.9 | H194: 1024 | I194: 69.66449857 | J194: 54.35884294 | K194: 125.6514792 | L194: 0.4744044588 | M194: 1.077481359 | N194: 4404.2756 | O194: 0 | P194: 837.0061 | Q194: 0 | R194: 51522.11952 | S194: 0.6855224639 | T194: 9.165542544
E195: 85 | F195: 11 | G195: 3.3 | H195: 1936.8 | I195: 122.5193988 | J195: 112.8835748 | K195: 239.2225178 | L195: 0.4690931115 | M195: 0.9535047887 | N195: 2388.3328 | O195: 0 | P195: 630.4458 | Q195: 0 | R195: 97409.00722 | S195: 0.6853876518 | T195: 9.167345357
E196: 101 | F196: 14 | G196: 3.7 | H196: 4705.2 | I196: 221.5089109 | J196: 160.9723543 | K196: 369.4861174 | L196: 0.3793745094 | M196: 0.8108905566 | N196: 1892.6689 | O196: 0 | P196: 638.4671 | Q196: 0 | R196: 157786.491 | S196: 0.5641802529 | T196: 11.13684018
E197: 113 | F197: 17 | G197: 4.1 | H197: 6937.2 | I197: 335.1470409 | J197: 144.8988392 | K197: 510.1695506 | L197: 0.2049928397 | M197: 0.6856597017 | N197: 2160.7463 | O197: 0 | P197: 775.2322 | Q197: 0 | R197: 232654.571 | S197: 0.5642026544 | T197: 11.13639799
E198: 16 | F198: 25 | G198: 5.3 | H198: 10002.4 | I198: 796.7918199 | J198: 255.5312631 | K198: 768.5848107 | L198: 0.1300674218 | M198: 0.3978671819 | N198: 1470.4931 | O198: 0 | P198: 655.0378 | Q198: 0 | R198: 503145.6984 | S198: 0.6854441553 | T198: 9.166589661
E199: 26 | F199: 30 | G199: 6 | H199: 14403.2 | I199: 1284.066198 | J199: 318.1263886 | K199: 781.9093897 | L199: 0.09951245771 | M199: 0.2739348965 | N199: 1357.1137 | O199: 0 | P199: 688.9868 | Q199: 0 | R199: 724529.8057 | S199: 0.685449955 | T199: 9.166512101
A202: Plant Capacity vs. LCoE
E203: Plant Capacity | G203: LCoE
E204: 1 | G204: 1106.4872
E205: 2 | G205: 695.8288
E206: 4 | G206: 416.1624
E207: 10 | G207: 305.7935
E208: 20 | G208: 260.2539
E209: 40 | G209: 234.5605
E210: 80 | G210: 219.2683
E211: 160 | G211: 208.8491
E212: 320 | G212: 201.1768
E213: 640 | G213: 195.1018
A215: Sensitivity to Capacity Factor
E216: Capacity Factor | F216: LCoE
E217: 0.1 | F217: 414.56
E218: 0.2 | F218: 261.3451
E219: 0.3 | F219: 215.5111
E220: 0.4 | F220: 200.0066
E221: 0.5 | F221: 197.2039
... 113 more rows

Sheet MC_Simu (hidden)
A1: I/O - Screen
A3: WEC Device | AB3: Lookup 1
B4: Topology | E4: =#REF! ->  | AC4: One Body
B5: Device Selection | E5: =#REF! ->  | AC5: Two Body
B6: Absorber Buoy Diameter | E6: =#REF! ->  | F6: m
B7: Absorber Buoy Height | E7: =#REF! ->  | F7: m
B8: Absorber Volume | E8: =(E6/2)^2*PI()*E7 ->  | F8: m^3
B9: Steel Weight | E9: =#REF! ->  | F9: mT
B10: Reaction Mass | E10: =#REF! ->  | F10: mT | AB10: Lookup 2
B11: Reaction Tube Length | E11: =#REF! ->  | F11: m | AC11: Oregon
B12: Rho | E12: 1025 | F12: kg/m^3 | AC12: California
B13: Reaction Tube Volume | E13: =E10*1000/E12 ->  | F13: m^3 | AC13: Cape Cod
B14: Reaction Tube Diameter | E14: =SQRT(E13/E11/PI())*2 ->  | F14: m
B15: Water Depth | E15: =#REF! ->  | F15: m
A17: WEC Farm
B18: Wave Resource | E18: =#REF! -> 
B19: Power Export | E19: =#REF! ->  | AB19: Lookup 3
B20: Distance to Shore | E20: =#REF! ->  | F20: m | AC20: Blue Economy
B21: # of WECs | E21: =#REF! ->  | AC21: Grid Connected
A23: Economics
B24: Fixed Charge Rate | E24: =#REF! -> 
B25: Construction Financing Rate | E25: =#REF! -> 
B26: Insurance Rate (annual percent of Capex) | E26: =#REF! -> 
B27: O&M as percentage of CAPEX | E27: =#REF! -> 
K28: Plant Scale Target | M28: =#REF! ->  | N28: MW
A29: Performance | E29: Per Unit | G29: Farm | K29: # Units | M29: =M28*1000/E31 -> 
B30: Compute Upper Theretical Limit | E30: =#REF! -> 
B31: Rated Power | E31: =#REF! ->  | F31: kW | G31: =E31*E21 ->  | H31: kW
B32: PTO Efficiency | E32: =#REF! ->  | G32: =E32 -> 
B33: Availability | E33: =#REF! ->  | G33: =E33 -> 
B34: Transmission Efficiency | E34: =#REF! ->  | G34: =E34 -> 
B35: Average Mechanical Power | E35: =IF(E30=1,#REF!,#REF!) -> 
B36: Average Electric Power | E36: =IF(E30=1,#REF!,#REF!) -> 
B37: Annual Electrical Energy Output | E37: =IF(E30=1,#REF!,#REF!) ->  | F37: MWh | G37: =E37*E21 ->  | H37: MWh
B38: Equivalent # US Households | E38: =IF(E30=1,#REF!,#REF!) -> 
B39: Capacity Factor | E39: =IF(E30=1,#REF!,#REF!) ->  | G39: =E39 ->  | K39: CF Target | L39: =#REF! -> 
B40: P/V | E40: =IF(E30=1,#REF!,#REF!) ->  | F40: kW/m^3 | G40: =E40 -> 
A42: CAPEX
E43: Cost | H43: Economics | K43: Uncertainty | M43: Multiplier | N43: Min | O43: $/Farm from IO Screen | P43: Max | Q43: Lower Range | R43: Higher Range | S43: Total Range | T43: Cumm. Probability | V43: Value
E44: $/Farm | F44: $/WEC | G44: $/kW | H44: $/MWh | I44: in % | J44: in % Total | K44: +% | L44: -% | M44: MC
C45: 1.1 | D45: Marine Energy Converter (MEC) | E45: =SUM(E46:E48) ->  | F45: =SUM(F46:F48) ->  | G45: =F45/E31 ->  | H45: =SUM(H46:H48) ->  | I45: =SUM(I46:I48) ->  | J45: =SUM(J46:J48) -> 
C46: 1.1.1 | D46: Structural Assembly | E46: =V46 ->  | F46: =E46/$M$29 ->  | G46: =F46/E31 ->  | H46: =(F46*$E$24)/$E$37 ->  | I46: =H46/$H$60 ->  | J46: =H46/$H$72 ->  | K46: =#REF! ->  | L46: =#REF! ->  | M46: =#REF! ->  | N46: =O46+O46*L46 ->  | O46: =IF(#REF!=0,1,#REF!) ->  | P46: =O46+O46*K46 ->  | Q46: =O46-N46 ->  | R46: =P46-O46 ->  | S46: =P46-N46 ->  | T46: =RAND() -> 0.9369942229 | V46: =IF(T46<(Q46/S46),N46+SQRT(T46*Q46*S46),P46-SQRT((1-T46)*R46*S46)) -> 
C47: 1.1.2 | D47: Power Take-Off System (PTO) | E47: =V47 ->  | F47: =E47/$M$29 ->  | G47: =F47/E31 ->  | H47: =(F47*$E$24)/$E$37 ->  | I47: =H47/$H$60 ->  | J47: =H47/$H$72 ->  | K47: =#REF! ->  | L47: =#REF! ->  | M47: =#REF! ->  | N47: =O47+O47*L47 ->  | O47: =IF(#REF!=0,1,#REF!) ->  | P47: =O47+O47*K47 ->  | Q47: =O47-N47 ->  | R47: =P47-O47 ->  | S47: =P47-N47 ->  | T47: =RAND() -> 0.5083603049 | V47: =IF(T47<(Q47/S47),N47+SQRT(T47*Q47*S47),P47-SQRT((1-T47)*R47*S47)) -> 
C48: 1.1.3 | D48: Mooring, Foundation, and Sub-Structure | G48: =F48/E31 ->  | H48: =(F48*$E$24)/$E$37 ->  | I48: =H48/$H$60 ->  | J48: =H48/$H$72 ->  | K48: =#REF! ->  | L48: =#REF! ->  | M48: =#REF! ->  | O48: =IF(#REF!=0,1,#REF!) ->  | T48: 0.6458081871
C49: 1.2 | D49: Balance of System (BOS) | E49: =SUM(E50:E55) ->  | G49: =SUM(G50:G55) ->  | H49: =SUM(H50:H53) ->  | I49: =SUM(I50:I53) ->  | J49: =SUM(J50:J55) -> 
C50: 1.2.1 | D50: Project Development | E50: =V50 ->  | G50: =F50/$E$31 ->  | H50: =(F50*$E$24)/$E$37 ->  | I50: =H50/$H$60 ->  | J50: =H50/$H$72 ->  | K50: =#REF! ->  | L50: =#REF! ->  | M50: =#REF! ->  | N50: =O50+O50*L50 ->  | O50: =IF(#REF!=0,1,#REF!) ->  | P50: =O50+O50*K50 ->  | T50: 0.05502865455 | V50: =IF(T50<(Q50/S50),N50+SQRT(T50*Q50*S50),P50-SQRT((1-T50)*R50*S50)) -> 
C51: 1.2.2 | D51: Engineering and Management | E51: =V51 ->  | G51: =F51/$E$31 ->  | H51: =(F51*$E$24)/$E$37 ->  | I51: =H51/$H$60 ->  | K51: =#REF! ->  | L51: =#REF! ->  | M51: =#REF! ->  | N51: =O51+O51*L51 ->  | O51: =IF(#REF!=0,1,#REF!) ->  | P51: =O51+O51*K51 ->  | T51: 0.5138830407
C52: 1.2.3 | D52: Electrical Infrastructure | H52: =(F52*$E$24)/$E$37 ->  | K52: =#REF! ->  | L52: =#REF! ->  | M52: =#REF! ->  | O52: =IF(#REF!=0,1,#REF!) ->  | T52: 0.7310311177
C53: 1.2.6 | D53: Assembly & Installation | E53: =E54+E55 ->  | H53: =(F53*$E$24)/$E$37 ->  | K53: =#REF! ->  | L53: =#REF! -> 
C54: 1.2.6.1 | D54: Device | H54: =(F54*$E$24)/$E$37 ->  | K54: =#REF! ->  | L54: =#REF! ->  | M54: =#REF! ->  | O54: =IF(#REF!=0,1,#REF!) ->  | T54: 0.7801554004
C55: 1.2.6.2 | D55: Subsea Cables | K55: =#REF! ->  | L55: =#REF! ->  | M55: =#REF! ->  | O55: =IF(#REF!=0,1,#REF!) ->  | T55: 0.9304989526
C56: 1.3 | D56: Financial Costs | E56: =SUM(E57:E58) -> 
C57: 1.3.2 | D57: Insurance During Construction | E57: =V57 ->  | H57: =H58/4 ->  | I57: =I58/4 ->  | J57: =H57/$H$72 ->  | K57: =#REF! ->  | L57: =#REF! ->  | M57: =#REF! ->  | N57: =O57+O57*L57 ->  | O57: =IF(#REF!=0,1,#REF!) ->  | P57: =O57+O57*K57 ->  | T57: 0.8360525226
C58: 1.3.3 | D58: Construction Financing Costs | E58: =V58 ->  | H58: =(F58*$E$24)/$E$37 ->  | I58: =H58/$H$60 ->  | J58: =H58/$H$72 ->  | K58: =#REF! ->  | L58: =#REF! ->  | M58: =#REF! ->  | N58: =O58+O58*L58 ->  | O58: =IF(#REF!=0,1,#REF!) ->  | P58: =O58+O58*K58 ->  | T58: 0.03929440821
C60: Total CAPEX | E60: =SUM(E46:E58) ->  | F60: =SUM(F46:F58) ->  | G60: =SUM(G46:G58) ->  | H60: =H45+H49+H56 ->  | I60: =I45+I49+I56 ->  | J60: =J45+J49+J56 -> 
A62: OPEX
E63: Cost | H63: Economics | K63: Uncertainty | M63: Multiplier
E64: $/Farm | F64: $/WEC | G64: $/kW | H64: $/MWh | I64: in % | K64: +% | L64: -% | M64: MC
C65: 2.1 | D65: Operations | E65: =E66+E67 ->  | F65: =F66+F67 ->  | G65: =F65/$E$31 ->  | H65: =H66+H67 -> 
C66: 2.1.1 | D66: Environmental Monitoring | E66: =V66 ->  | F66: =E66/$E$21 ->  | G66: =F66/$E$31 ->  | H66: =F66/$E$37 ->  | I66: =H66/$H$70 ->  | J66: =H66/$H$72 ->  | K66: =#REF! ->  | L66: =#REF! ->  | M66: =#REF! ->  | N66: =O66+O66*L66 ->  | O66: =IF(#REF!=0,1,#REF!) ->  | P66: =O66+O66*K66 ->  | T66: 0.7490284626
C67: 2.1.3 | D67: Insurance | E67: =V67 ->  | F67: =E67/$E$21 ->  | J67: =H67/$H$72 ->  | K67: =#REF! ->  | L67: =#REF! ->  | M67: =#REF! ->  | N67: =O67+O67*L67 ->  | O67: =IF(#REF!=0,1,#REF!) ->  | P67: =O67+O67*K67 ->  | T67: 0.2966072037
C68: 2.2 | D68: Maintenance | E68: =V68 ->  | J68: =H68/$H$72 ->  | K68: =#REF! ->  | L68: =#REF! ->  | M68: =#REF! ->  | O68: =IF(#REF!=0,1,#REF!) ->  | T68: 0.9037307164
C70: Total OPEX | E70: =E68+E65 ->  | F70: =F68+F65 ->  | H70: =H68+H65 ->  | I70: =I65+I68 ->  | J70: =J65+J68 -> 
C72: $/MWh | H72: =H70+H60 -> 
C74: Technology LCoE | E74: =E45+E54+E68+E67+E57+E58 ->  | F74: =F45+F54+F68+F67+F57+F58 -> 
N76: =VLOOKUP(90%,K82:L176,2,TRUE) -> 278.8362821 | O76: 90% Percentile
E77: # Iterations | F77: =[4]Monte_Carlo!D7 -> 500 | G77: Iteration | H77: LCoE | N77: =VLOOKUP(50%,K82:L176,2,TRUE) -> 251.3453811 | O77: 50% Percentile
E78: Iteration | G78: 1 | H78: 248.124 | N78: =VLOOKUP(10%,K82:L176,2,TRUE) -> 227.7817516 | O78: 10% Percentile
E79: Average | G79: 2 | H79: 251.6381 | N79: =VLOOKUP(99%,K83:L177,2,TRUE) -> 306.3271832 | O79: 100% Percentile
G80: 3 | H80: 231.3301 | N80: =VLOOKUP(1%,K84:L178,2,TRUE) -> 212.0726653 | O80: 1% Percentile
G81: 4 | H81: 266.2009 | J81: LCoE ($/MWh) | K81: Probability | L81: LCoE | M81: Normalized LCOE
G82: 5 | H82: 285.5622 | J82: =$J$176/95 -> 3.927271579 | K82: =COUNTIF($H$78:$H$10000,"<" & J82)/$F$77 -> 0 | L82: =J82 -> 3.927271579 | M82: =J82/$N$77 -> 0.015625
G83: 6 | H83: 222.032 | J83: =$J$176/95+J82 -> 7.854543158 | K83: =COUNTIF($H$78:$H$10000,"<" & J83)/$F$77 -> 0 | L83: =J83 -> 7.854543158 | M83: =J83/$N$77 -> 0.03125
G84: 7 | H84: 246.9542 | J84: =$J$176/95+J83 -> 11.78181474 | K84: =COUNTIF($H$78:$H$10000,"<" & J84)/$F$77 -> 0 | L84: 11.78181474 | M84: 0.046875
G85: 8 | H85: 267.4386 | J85: 15.70908632 | K85: 0 | L85: 15.70908632 | M85: 0.0625
G86: 9 | H86: 278.7542 | J86: 19.63635789 | K86: 0 | L86: 19.63635789 | M86: 0.078125
G87: 10 | H87: 248.1561 | J87: 23.56362947 | K87: 0 | L87: 23.56362947 | M87: 0.09375
G88: 11 | H88: 252.8822 | J88: 27.49090105 | K88: 0 | L88: 27.49090105 | M88: 0.109375
G89: 12 | H89: 254.551 | J89: 31.41817263 | K89: 0 | L89: 31.41817263 | M89: 0.125
G90: 13 | H90: 240.4532 | J90: 35.34544421 | K90: 0 | L90: 35.34544421 | M90: 0.140625
G91: 14 | H91: 241.3967 | J91: 39.27271579 | K91: 0 | L91: 39.27271579 | M91: 0.15625
G92: 15 | H92: 245.6256 | J92: 43.19998737 | K92: 0 | L92: 43.19998737 | M92: 0.171875
G93: 16 | H93: 263.6127 | J93: 47.12725895 | K93: 0 | L93: 47.12725895 | M93: 0.1875
G94: 17 | H94: 241.5933 | J94: 51.05453053 | K94: 0 | L94: 51.05453053 | M94: 0.203125
G95: 18 | H95: 269.3578 | J95: 54.98180211 | K95: 0 | L95: 54.98180211 | M95: 0.21875
G96: 19 | H96: 279.0534 | J96: 58.90907368 | K96: 0 | L96: 58.90907368 | M96: 0.234375
G97: 20 | H97: 233.072 | J97: 62.83634526 | K97: 0 | L97: 62.83634526 | M97: 0.25
G98: 21 | H98: 263.5086 | J98: 66.76361684 | K98: 0 | L98: 66.76361684 | M98: 0.265625
G99: 22 | H99: 221.3364 | J99: 70.69088842 | K99: 0 | L99: 70.69088842 | M99: 0.28125
G100: 23 | H100: 263.6139 | J100: 74.61816 | K100: 0 | L100: 74.61816 | M100: 0.296875
G101: 24 | H101: 246.9928 | J101: 78.54543158 | K101: 0 | L101: 78.54543158 | M101: 0.3125
G102: 25 | H102: 237.7756 | J102: 82.47270316 | K102: 0 | L102: 82.47270316 | M102: 0.328125
G103: 26 | H103: 235.7362 | J103: 86.39997474 | K103: 0 | L103: 86.39997474 | M103: 0.34375
G104: 27 | H104: 230.3488 | J104: 90.32724632 | K104: 0 | L104: 90.32724632 | M104: 0.359375
G105: 28 | H105: 246.9294 | J105: 94.25451789 | K105: 0 | L105: 94.25451789 | M105: 0.375
G106: 29 | H106: 259.9068 | J106: 98.18178947 | K106: 0 | L106: 98.18178947 | M106: 0.390625
G107: 30 | H107: 288.4879 | J107: 102.1090611 | K107: 0 | L107: 102.1090611 | M107: 0.40625
G108: 31 | H108: 255.779 | J108: 106.0363326 | K108: 0 | L108: 106.0363326 | M108: 0.421875
G109: 32 | H109: 246.3155 | J109: 109.9636042 | K109: 0 | L109: 109.9636042 | M109: 0.4375
G110: 33 | H110: 264.5299 | J110: 113.8908758 | K110: 0 | L110: 113.8908758 | M110: 0.453125
G111: 34 | H111: 251.0986 | J111: 117.8181474 | K111: 0 | L111: 117.8181474 | M111: 0.46875
G112: 35 | H112: 278.8524 | J112: 121.7454189 | K112: 0 | L112: 121.7454189 | M112: 0.484375
G113: 36 | H113: 270.4533 | J113: 125.6726905 | K113: 0 | L113: 125.6726905 | M113: 0.5
G114: 37 | H114: 246.8778 | J114: 129.5999621 | K114: 0 | L114: 129.5999621 | M114: 0.515625
G115: 38 | H115: 280.6725 | J115: 133.5272337 | K115: 0 | L115: 133.5272337 | M115: 0.53125
G116: 39 | H116: 248.4872 | J116: 137.4545053 | K116: 0 | L116: 137.4545053 | M116: 0.546875
G117: 40 | H117: 261.6058 | J117: 141.3817768 | K117: 0 | L117: 141.3817768 | M117: 0.5625
G118: 41 | H118: 251.722 | J118: 145.3090484 | K118: 0 | L118: 145.3090484 | M118: 0.578125
G119: 42 | H119: 257.3084 | J119: 149.23632 | K119: 0 | L119: 149.23632 | M119: 0.59375
G120: 43 | H120: 229.229 | J120: 153.1635916 | K120: 0 | L120: 153.1635916 | M120: 0.609375
G121: 44 | H121: 251.2407 | J121: 157.0908632 | K121: 0 | L121: 157.0908632 | M121: 0.625
G122: 45 | H122: 243.9718 | J122: 161.0181347 | K122: 0 | L122: 161.0181347 | M122: 0.640625
G123: 46 | H123: 296.2024 | J123: 164.9454063 | K123: 0 | L123: 164.9454063 | M123: 0.65625
G124: 47 | H124: 253.3949 | J124: 168.8726779 | K124: 0 | L124: 168.8726779 | M124: 0.671875
G125: 48 | H125: 244.1321 | J125: 172.7999495 | K125: 0 | L125: 172.7999495 | M125: 0.6875
G126: 49 | H126: 262.0543 | J126: 176.7272211 | K126: 0 | L126: 176.7272211 | M126: 0.703125
G127: 50 | H127: 242.2947 | J127: 180.6544926 | K127: 0 | L127: 180.6544926 | M127: 0.71875
G128: 51 | H128: 235.6754 | J128: 184.5817642 | K128: 0 | L128: 184.5817642 | M128: 0.734375
G129: 52 | H129: 246.5356 | J129: 188.5090358 | K129: 0 | L129: 188.5090358 | M129: 0.75
G130: 53 | H130: 228.4829 | J130: 192.4363074 | K130: 0 | L130: 192.4363074 | M130: 0.765625
G131: 54 | H131: 236.6575 | J131: 196.3635789 | K131: 0.002 | L131: 196.3635789 | M131: 0.78125
G132: 55 | H132: 258.2518 | J132: 200.2908505 | K132: 0.002 | L132: 200.2908505 | M132: 0.796875
G133: 56 | H133: 263.6718 | J133: 204.2181221 | K133: 0.002 | L133: 204.2181221 | M133: 0.8125
G134: 57 | H134: 259.5139 | J134: 208.1453937 | K134: 0.004 | L134: 208.1453937 | M134: 0.828125
G135: 58 | H135: 251.3261 | J135: 212.0726653 | K135: 0.008 | L135: 212.0726653 | M135: 0.84375
G136: 59 | H136: 280.0725 | J136: 215.9999368 | K136: 0.016 | L136: 215.9999368 | M136: 0.859375
G137: 60 | H137: 252.0389 | J137: 219.9272084 | K137: 0.036 | L137: 219.9272084 | M137: 0.875
G138: 61 | H138: 249.2838 | J138: 223.85448 | K138: 0.064 | L138: 223.85448 | M138: 0.890625
G139: 62 | H139: 240.326 | J139: 227.7817516 | K139: 0.092 | L139: 227.7817516 | M139: 0.90625
G140: 63 | H140: 266.2145 | J140: 231.7090232 | K140: 0.126 | L140: 231.7090232 | M140: 0.921875
G141: 64 | H141: 294.2417 | J141: 235.6362947 | K141: 0.158 | L141: 235.6362947 | M141: 0.9375
G142: 65 | H142: 245.1352 | J142: 239.5635663 | K142: 0.208 | L142: 239.5635663 | M142: 0.953125
G143: 66 | H143: 260.1354 | J143: 243.4908379 | K143: 0.268 | L143: 243.4908379 | M143: 0.96875
G144: 67 | H144: 248.119 | J144: 247.4181095 | K144: 0.346 | L144: 247.4181095 | M144: 0.984375
G145: 68 | H145: 244.8591 | J145: 251.3453811 | K145: 0.426 | L145: 251.3453811 | M145: 1
G146: 69 | H146: 243.9647 | J146: 255.2726526 | K146: =COUNTIF($H$78:$H$10000,"<" & J146)/$F$77 -> 0.516 | L146: 255.2726526 | M146: 1.015625
G147: 70 | H147: 266.6415 | J147: 259.1999242 | K147: 0.564 | L147: =J147 -> 259.1999242 | M147: =J147/$N$77 -> 1.03125
G148: 71 | H148: 290.9778 | J148: =$J$176/95+J147 -> 263.1271958 | K148: 0.626 | L148: 263.1271958 | M148: 1.046875
G149: 72 | H149: 249.0261 | J149: 267.0544674 | K149: 0.696 | L149: 267.0544674 | M149: 1.0625
G150: 73 | H150: 253.3705 | J150: 270.9817389 | K150: 0.77 | L150: 270.9817389 | M150: 1.078125
G151: 74 | H151: 277.2349 | J151: 274.9090105 | K151: 0.838 | L151: 274.9090105 | M151: 1.09375
G152: 75 | H152: 285.549 | J152: 278.8362821 | K152: 0.868 | L152: 278.8362821 | M152: 1.109375
G153: 76 | H153: 270.9093 | J153: 282.7635537 | K153: 0.904 | L153: 282.7635537 | M153: 1.125
G154: 77 | H154: 226.2651 | J154: 286.6908253 | K154: 0.92 | L154: 286.6908253 | M154: 1.140625
G155: 78 | H155: 269.2834 | J155: 290.6180968 | K155: 0.942 | L155: 290.6180968 | M155: 1.15625
G156: 79 | H156: 273.3077 | J156: 294.5453684 | K156: 0.966 | L156: 294.5453684 | M156: 1.171875
G157: 80 | H157: 228.0263 | J157: 298.47264 | K157: 0.978 | L157: 298.47264 | M157: 1.1875
G158: 81 | H158: 253.1018 | J158: 302.3999116 | K158: 0.984 | L158: 302.3999116 | M158: 1.203125
G159: 82 | H159: 261.5798 | J159: 306.3271832 | K159: 0.99 | L159: 306.3271832 | M159: 1.21875
G160: 83 | H160: 252.4174 | J160: 310.2544547 | K160: 0.996 | L160: 310.2544547 | M160: 1.234375
G161: 84 | H161: 250.0638 | J161: 314.1817263 | K161: 1 | L161: 314.1817263 | M161: 1.25
G162: 85 | H162: 230.1408 | J162: 318.1089979 | K162: 1 | L162: 318.1089979 | M162: 1.265625
G163: 86 | H163: 262.6994 | J163: 322.0362695 | K163: 1 | L163: 322.0362695 | M163: 1.28125
G164: 87 | H164: 272.3511 | J164: 325.9635411 | K164: 1 | L164: 325.9635411 | M164: 1.296875
G165: 88 | H165: 245.8528 | J165: 329.8908126 | K165: 1 | L165: 329.8908126 | M165: 1.3125
G166: 89 | H166: 241.2467 | J166: 333.8180842 | K166: 1 | L166: 333.8180842 | M166: 1.328125
G167: 90 | H167: 271.349 | J167: 337.7453558 | K167: 1 | L167: 337.7453558 | M167: 1.34375
G168: 91 | H168: 252.4143 | J168: 341.6726274 | K168: 1 | L168: 341.6726274 | M168: 1.359375
G169: 92 | H169: 266.0743 | J169: 345.5998989 | K169: 1 | L169: 345.5998989 | M169: 1.375
G170: 93 | H170: 270.2204 | J170: 349.5271705 | K170: 1 | L170: 349.5271705 | M170: 1.390625
G171: 94 | H171: 288.0339 | J171: 353.4544421 | K171: 1 | L171: 353.4544421 | M171: 1.40625
G172: 95 | H172: 282.1754 | J172: 357.3817137 | K172: 1 | L172: 357.3817137 | M172: 1.421875
G173: 96 | H173: 269.4828 | J173: 361.3089853 | K173: 1 | L173: 361.3089853 | M173: 1.4375
G174: 97 | H174: 263.9119 | J174: 365.2362568 | K174: 1 | L174: 365.2362568 | M174: 1.453125
G175: 98 | H175: 244.9729 | J175: 369.1635284 | K175: 1 | L175: 369.1635284 | M175: 1.46875
G176: 99 | H176: 251.4766 | J176: =MAX(H78:H577)*1.2 -> 373.0908 | K176: 1 | L176: =J176 -> 373.0908 | M176: 1.484375
G177: 100 | H177: 229.7912
G178: 101 | H178: 249.0154
G179: 102 | H179: 277.4707
G180: 103 | H180: 263.9621
G181: 104 | H181: 236.6783
G182: 105 | H182: 290.821
G183: 106 | H183: 241.8676
G184: 107 | H184: 243.9177
G185: 108 | H185: 294.6397
G186: 109 | H186: 218.6363
G187: 110 | H187: 236.3917
G188: 111 | H188: 261.0122
G189: 112 | H189: 271.9492
G190: 113 | H190: 271.0568
G191: 114 | H191: 289.8217
G192: 115 | H192: 240.6948
G193: 116 | H193: 264.6451
G194: 117 | H194: 258.5325
G195: 118 | H195: 243.4238
G196: 119 | H196: 226.119
G197: 120 | H197: 243.3546
G198: 121 | H198: 218.3223
G199: 122 | H199: 236.2324
G200: 123 | H200: 247.3192
G201: 124 | H201: 226.2957
G202: 125 | H202: 250.2116
G203: 126 | H203: 274.0555
G204: 127 | H204: 270.1044
G205: 128 | H205: 271.8959
G206: 129 | H206: 276.5415
G207: 130 | H207: 235.8703
G208: 131 | H208: 291.6217
G209: 132 | H209: 269.2708
G210: 133 | H210: 219.9465
... 367 more rows
